{"text_format":"1","workbook":"xlsx","n_sheets":4,"sheets":["Année 2024","Feuil2","Installation","No.Dos.-Adresse"],"not_rendered":{"charts":0,"images":1,"macros":1,"external_links":0,"defined_names":53,"comments":0,"pivot_tables":0},"unopened":[],"bounds":{"document_bytes":16777216,"sheet_cells":100000,"rows_first":2000,"rows_last":500,"rows_between":2000,"halvings":0,"cell_chars":16384,"cell_head_chars":4096},"cells_cut":0,"cells_raw":0,"read":"whole","date_system":"1900"}

{"sheet":"Année 2024","index":0,"n_rows":577,"n_cols":7,"rows_kept":577,"cut":false,"hidden":false,"merged":[[458,1,459,2],[81,1,81,2],[81,3,81,5],[82,1,82,2],[82,3,82,5],[83,1,83,2],[84,1,84,2],[410,1,413,2],[63,1,63,5],[78,1,78,6],[79,6,80,6],[85,1,85,2],[86,1,86,2],[139,4,139,5],[166,4,166,5],[180,4,180,5],[175,4,175,5],[102,4,102,5],[142,4,142,5],[143,4,143,5],[128,4,128,5],[129,4,129,5],[130,4,130,5],[146,4,146,5],[0,3,4,6],[6,1,6,6],[223,1,226,2],[233,1,237,2],[213,1,218,2],[203,1,208,2],[192,1,196,2],[122,1,126,2],[449,1,453,2],[87,1,87,2],[88,1,88,2],[92,1,92,2],[92,3,92,5],[89,1,89,2],[89,3,89,5],[90,1,90,2],[90,3,90,5],[85,3,85,5],[86,3,86,5],[87,3,87,5],[88,3,88,5],[173,4,173,5],[181,3,181,5],[182,4,182,5],[526,1,526,6],[545,1,545,3],[536,1,536,5],[543,1,543,5],[535,4,535,5],[542,3,542,5],[569,1,569,6],[58,1,58,5],[59,1,59,5],[118,4,118,5],[60,1,60,5],[529,1,529,4],[206,4,206,5],[201,4,201,5],[198,4,198,5],[203,4,203,5],[204,4,204,5],[97,1,97,6],[62,1,62,5],[79,1,79,5],[75,1,75,5],[76,1,76,5],[80,1,80,2],[80,3,80,5],[144,4,144,5],[147,4,147,5],[148,4,148,5],[149,4,149,5],[150,4,150,5],[145,4,145,5],[113,4,113,5],[111,4,111,5],[115,4,115,5],[135,4,135,5],[119,4,119,5],[420,4,420,5],[107,4,107,5],[172,1,172,2],[137,4,137,5],[134,4,134,5],[117,4,117,5],[131,4,131,5],[120,4,120,5],[121,3,121,5],[133,4,133,5],[122,4,122,5],[123,4,123,5],[132,4,132,5],[164,4,164,5],[159,3,159,5],[167,4,167,5],[142,1,144,2],[141,3,141,5],[136,4,136,5],[138,4,138,5],[124,4,124,5],[125,4,125,5],[126,4,126,5],[127,4,127,5],[332,4,332,5],[152,4,152,5],[546,6,547,6],[553,1,553,6],[269,4,269,5],[372,4,372,5],[370,3,370,5],[550,1,550,6],[335,4,335,5],[334,1,334,2],[337,1,337,2],[338,4,338,5],[328,4,328,5],[325,1,325,2],[336,4,336,5],[329,4,329,5],[324,4,324,5],[339,1,339,2],[336,1,336,2],[339,4,339,5],[325,4,325,5],[276,4,276,5],[321,4,321,5],[322,3,322,5],[170,4,170,5],[401,1,401,2],[314,1,316,2],[317,1,317,2],[341,1,341,2],[371,4,371,5],[367,4,367,5],[323,1,323,2],[342,1,342,2],[342,4,342,5],[357,1,357,2],[354,4,354,5],[353,4,353,5],[368,4,368,5],[357,4,357,5],[351,4,351,5],[343,1,343,2],[344,3,344,5],[343,4,343,5],[315,4,315,5],[327,4,327,5],[318,1,318,2],[318,4,318,5],[319,4,319,5],[163,4,163,5],[161,4,161,5],[162,4,162,5],[168,4,168,5],[420,1,427,2],[103,4,103,5],[104,4,104,5],[105,4,105,5],[106,4,106,5],[112,4,112,5],[140,4,140,5],[341,4,341,5],[301,4,301,5],[302,4,302,5],[303,4,303,5],[304,3,304,5],[313,3,313,5],[331,4,331,5],[294,3,294,5],[291,4,291,5],[305,4,305,5],[330,4,330,5],[316,4,316,5],[317,4,317,5],[240,4,240,5],[185,4,185,5],[189,4,189,5],[186,4,186,5],[222,3,222,5],[216,4,216,5],[215,4,215,5],[221,4,221,5],[197,4,197,5],[220,4,220,5],[213,4,213,5],[190,4,190,5],[191,3,191,5],[209,4,209,5],[207,4,207,5],[205,4,205,5],[202,3,202,5],[210,4,210,5],[217,4,217,5],[239,4,239,5],[228,4,228,5],[229,4,229,5],[223,4,223,5],[224,4,224,5],[225,4,225,5],[233,4,233,5],[226,4,226,5],[227,4,227,5],[184,4,184,5],[212,3,212,5],[208,4,208,5],[200,4,200,5],[235,4,235,5],[214,4,214,5],[195,4,195,5],[196,4,196,5],[7,1,7,6],[20,1,20,6],[19,1,19,6],[174,4,174,5],[187,4,187,5],[183,4,183,5],[176,4,176,5],[199,4,199,5],[22,1,22,4],[22,5,22,6],[36,1,36,4],[21,5,21,6],[53,1,53,5],[8,1,8,6],[18,1,18,6],[13,1,13,3],[14,1,14,3],[155,4,155,5],[153,4,153,5],[154,4,154,5],[151,4,151,5],[169,4,169,5],[160,4,160,5],[12,1,12,3],[242,3,242,5],[177,4,177,5],[279,4,279,5],[292,4,292,5],[192,4,192,5],[238,4,238,5],[275,4,275,5],[273,3,273,5],[178,4,178,5],[230,4,230,5],[261,4,261,5],[218,4,218,5],[219,4,219,5],[211,4,211,5],[281,4,281,5],[254,4,254,5],[277,4,277,5],[278,4,278,5],[236,4,236,5],[237,4,237,5],[231,4,231,5],[232,3,232,5],[193,4,193,5],[188,4,188,5],[13,4,13,5],[14,4,14,5],[54,1,54,5],[52,1,52,5],[24,1,24,4],[40,5,40,6],[34,1,34,6],[30,1,30,6],[32,1,32,6],[24,5,24,6],[28,1,28,3],[28,4,28,5],[42,1,42,6],[43,1,44,6],[46,1,46,6],[47,1,47,6],[38,5,38,6],[40,1,40,4],[51,1,51,6],[38,1,38,4],[430,1,433,2],[418,4,418,5],[55,1,55,5],[172,4,172,5],[171,3,171,5],[179,4,179,5],[156,4,156,5],[158,4,158,5],[157,4,157,5],[165,4,165,5],[100,1,101,2],[98,1,99,2],[99,3,99,5],[110,4,110,5],[100,4,100,5],[114,4,114,5],[116,4,116,5],[84,3,84,5],[108,4,108,5],[98,3,98,5],[101,4,101,5],[109,4,109,5],[93,1,93,5],[194,4,194,5],[462,4,462,5],[463,4,463,5],[474,4,474,5],[464,4,464,5],[465,4,465,5],[466,4,466,5],[467,3,467,5],[445,4,445,5],[448,3,448,5],[472,4,472,5],[470,4,470,5],[471,4,471,5],[571,1,571,3],[571,4,571,6],[563,2,563,6],[564,2,564,5],[521,4,521,5],[518,1,518,2],[518,4,518,5],[557,2,557,6],[523,3,523,5],[539,1,539,4],[528,1,528,4],[530,1,530,4],[522,4,522,5],[556,2,556,6],[541,1,541,4],[538,1,538,4],[524,3,524,5],[540,1,540,4],[520,4,520,5],[519,1,519,2],[546,1,546,5],[522,1,522,2],[521,1,521,2],[561,1,561,4],[347,1,347,6],[422,4,422,5],[516,4,516,5],[513,3,513,5],[516,1,516,2],[515,1,515,2],[499,4,499,5],[514,4,514,5],[500,4,500,5],[497,4,497,5],[501,4,501,5],[512,4,512,5],[509,4,509,5],[510,4,510,5],[511,4,511,5],[506,4,506,5],[507,4,507,5],[508,4,508,5],[502,4,502,5],[494,1,500,2],[504,1,508,2],[505,4,505,5],[442,4,442,5],[443,4,443,5],[475,1,475,2],[473,1,473,2],[476,4,476,5],[471,1,471,2],[470,1,470,2],[478,3,478,5],[488,4,488,5],[493,3,493,5],[491,4,491,5],[481,3,481,5],[483,1,484,2],[487,4,487,5],[486,4,486,5],[498,4,498,5],[496,4,496,5],[474,1,474,2],[475,4,475,5],[477,3,477,5],[476,1,476,2],[293,4,293,5],[326,4,326,5],[267,4,267,5],[424,4,424,5],[421,4,421,5],[431,4,431,5],[426,4,426,5],[468,4,468,5],[427,4,427,5],[433,4,433,5],[430,4,430,5],[432,4,432,5],[458,4,458,5],[459,4,459,5],[460,4,460,5],[456,4,456,5],[457,3,457,5],[434,4,434,5],[285,4,285,5],[286,4,286,5],[287,4,287,5],[289,4,289,5],[247,4,247,5],[323,4,323,5],[264,4,264,5],[266,4,266,5],[250,4,250,5],[284,4,284,5],[288,4,288,5],[311,4,311,5],[312,4,312,5],[320,4,320,5],[274,4,274,5],[251,4,251,5],[314,4,314,5],[272,4,272,5],[290,4,290,5],[444,4,444,5],[438,4,438,5],[435,4,435,5],[441,4,441,5],[439,3,439,5],[454,4,454,5],[436,4,436,5],[447,4,447,5],[446,4,446,5],[274,1,278,2],[259,4,259,5],[335,1,335,2],[337,4,337,5],[338,1,338,2],[340,1,340,2],[340,4,340,5],[333,3,333,5],[334,4,334,5],[284,1,286,2],[298,1,298,2],[305,1,310,2],[306,4,306,5],[295,1,297,2],[295,4,295,5],[296,4,296,5],[297,4,297,5],[298,4,298,5],[299,4,299,5],[300,4,300,5],[307,4,307,5],[308,4,308,5],[309,4,309,5],[310,4,310,5],[266,1,269,2],[252,3,252,5],[262,4,262,5],[263,3,263,5],[243,4,243,5],[256,4,256,5],[265,4,265,5],[268,4,268,5],[253,4,253,5],[246,4,246,5],[264,1,265,2],[255,4,255,5],[245,4,245,5],[391,1,391,2],[358,4,358,5],[364,1,364,2],[375,4,375,5],[379,3,379,5],[364,4,364,5],[361,4,361,5],[356,3,356,5],[350,1,353,2],[371,1,373,2],[355,4,355,5],[383,4,383,5],[389,4,389,5],[405,1,405,6],[393,1,393,2],[360,4,360,5],[393,4,393,5],[468,1,468,2],[469,4,469,5],[472,1,472,2],[473,4,473,5],[485,4,485,5],[481,1,482,2],[483,4,483,5],[484,4,484,5],[482,3,482,5],[480,1,480,6],[469,1,469,2],[415,4,415,5],[440,4,440,5],[453,4,453,5],[440,1,445,2],[455,4,455,5],[425,4,425,5],[417,4,417,5],[399,4,399,5],[396,4,396,5],[392,4,392,5],[400,4,400,5],[359,4,359,5],[397,3,397,5],[386,4,386,5],[387,4,387,5],[388,4,388,5],[374,4,374,5],[382,4,382,5],[378,4,378,5],[394,4,394,5],[380,4,380,5],[369,4,369,5],[381,4,381,5],[391,4,391,5],[363,3,363,5],[413,4,413,5],[402,3,402,5],[519,4,519,5],[503,3,503,5],[520,1,520,2],[83,3,83,5],[408,1,409,2],[345,3,345,5],[384,4,384,5],[390,3,390,5],[398,4,398,5],[411,4,411,5],[429,3,429,5],[423,4,423,5],[419,3,419,5],[412,4,412,5],[410,4,410,5],[408,3,408,5],[400,1,400,2],[366,4,366,5],[362,4,362,5],[365,4,365,5],[253,1,254,2],[403,3,403,5],[575,1,575,4],[234,4,234,5],[280,4,280,5],[283,3,283,5],[257,4,257,5],[258,4,258,5],[271,4,271,5],[241,4,241,5],[401,4,401,5],[395,4,395,5],[533,1,533,4],[398,1,398,2],[399,1,399,2],[461,4,461,5],[428,4,428,5],[437,4,437,5],[414,4,414,5],[449,4,449,5],[450,4,450,5],[451,4,451,5],[452,4,452,5],[407,1,407,6],[416,4,416,5],[409,3,409,5],[534,1,534,4],[56,1,56,5],[69,1,69,5],[70,1,70,5],[71,1,71,5],[72,1,72,5],[73,1,73,5],[57,1,57,5],[65,1,65,6],[66,1,66,5],[67,1,67,5],[68,1,68,5],[514,1,514,2],[517,4,517,5],[515,4,515,5],[517,1,517,2],[531,1,531,4],[532,1,532,4],[504,4,504,5],[495,4,495,5],[494,4,494,5],[492,4,492,5],[489,4,489,5],[490,4,490,5],[61,1,61,5],[74,1,74,5],[91,1,91,2],[91,3,91,5],[385,4,385,5],[376,4,376,5],[377,4,377,5],[380,1,385,2],[160,1,161,2],[182,1,183,2],[373,4,373,5],[348,1,349,2],[348,3,348,5],[349,3,349,5],[352,4,352,5],[350,4,350,5],[244,4,244,5],[248,4,248,5],[260,4,260,5],[282,4,282,5],[243,1,245,2],[270,4,270,5],[249,4,249,5],[255,1,258,2]]}
[null,null,null,"FORMULAIRE DE DÉCLARATION ANNUELLE 2024"]
[]
[]
[]
[]
[]
[null,"Avant le 31 mars de chaque année, les exploitants visés par le Règlement sur les redevances exigibles pour l'élimation de matières résiduelles et par les articles 39 et 52 du Règlement sur l'enfouissement et l'incinérateur de matières résiduelles doivent indiquer au Ministère, dans le formulaire de déclaration annuelle fourni à cet effet, la provenance, la nature et le poids des matières résiduelles qui ont été éliminées durant l’année. Ce document doit être certifié par un membre de l’Ordre des comptables professionnels agréés du Québec.\n\nLes données issues du formulaire de déclaration annuelle permettent notamment de déterminer les redevances à verser pour l'année visée, ainsi que les données d’élimination des municipalités du Québec. Ces données sont utilisées pour déterminer les subventions octroyées dans le cadre du Programme sur la redistribution aux municipalités des redevances pour l’élimination de matières résiduelles. \n\nSi aucune matière résiduelle n’a été reçue pendant un trimestre ou une année donnée, l’exploitant est tout de même tenu de remplir et de transmettre les formulaires exigés par le Règlement, et ce, tant que l’autorisation ministérielle relative à son installation d’élimination est en vigueur. "]
[null,"Afin de remplir adéquatement le formulaire de déclaration annuelle 2024, nous vous invitons à consulter le guide préparé à cet effet à l'adresse suivante :"]
[null,"https://www.environnement.gouv.qc.ca/matieres/redevances/Guide-rapp-annuel.pdf"]
[]
[null,"1. Renseignements généraux"]
[]
[null,"Type d'installation (liste déroulante) :",null,null,null,{"$f":"IF($E$13=\"LEET\",\"Veuillez remplir la section 1.5\",\" \")","v":" "}]
[null,"Nom de l'installation (liste déroulante) :"]
[null,"No de dossier (saisie automatique) :                                ",null,null,{"$f":"IF($E$14<>\"\",VLOOKUP($E$14,Installation!D3:E124,2,FALSE),\"\")","v":""}]
[]
[null,"1.1 Identification de l'exploitant :"]
[null,"Nom :"]
[]
[null,"Adresse :"]
[]
[null,"Municipalité ou ville :",null,null,null,"Code postal :"]
[]
[null,"Région administrative (saisie automatique) :",null,null,null,"MRC (saisie automatique) :"]
[null,{"$f":"IF($E$15<>\"\",VLOOKUP($E$15,Installation!E3:F124,2,FALSE),\"\")","v":""},null,null,null,{"$f":"IF($E$15<>\"\",VLOOKUP($E$15,Installation!E3:G124,3,FALSE),\"\")","v":""}]
[]
[null,"1.2 Identification du répondant :"]
[null,"Prénom et nom :",null,null,"Fonction ou titre :",null,"Téléphone :"]
[]
[null,"Adresse courriel :"]
[]
[]
[null,"1.3 Identification du détenteur du certificat d'autorisation de l'installation (si différent de l'exploitant) :"]
[null,"Nom :"]
[]
[null,"Adresse du siège social :",null,null,null,"Municipalité ou ville :","Code postal :"]
[]
[null,"Téléphone au bureau :",null,null,null,"Région administrative :"]
[]
[null,"Télécopieur :",null,null,null,"MRC :"]
[]
[]
[null,"1.4 Emplacement/localisation (numéro de lots) :"]
[]
[]
[]
[null,"1.5 Unité de mesure du poids des matières résiduelles (tonnes ou mètres cubes) - LEET seulement :"]
[]
[]
[null,"2. Identification des installations de provenance et de destination"]
[]
[null,"2.1. Matières reçues en provenance de centres de transfert de FAIBLE CAPACITÉ\nAttention! Ne reportez pas ces tonnages dans les sections 3 et 4. Ne reportez pas non plus les tonnages que vous avez vous-même envoyés dans cette installation."]
[null,"Nom des centres de transfert de faible capacité (liste déroulante) :",null,null,null,null,"Tonnage total reçu"]
[]
[]
[]
[]
[]
[]
[]
[]
[]
[]
[null,"Total 2.1",null,null,null,null,{"$f":"_xlfn.IFS(SUM(G54:G63)>=0,SUM(G54:G63),SUM(G54:G63)<0,\"Erreur\")","v":0}]
[]
[null,"2.2. Matières reçues en provenance de centres de transfert visés et sur lesquelles les REDEVANCES ONT DÉJÀ ÉTÉ PAYÉES\nAttention! Ne reportez pas ces tonnages dans les sections 3 et 4. Ne reportez pas non plus les tonnages que vous avez vous-même envoyés dans cette installation."]
[null,"Nom des centres de transfert qui ont déjà perçu les redevances pour l'élimination (liste déroulante) :",null,null,null,null,"Tonnage total reçu"]
[]
[]
[]
[]
[]
[]
[]
[]
[]
[null,"Total 2.2",null,null,null,null,{"$f":"_xlfn.IFS(SUM(G68:G76)>=0,SUM(G68:G76),SUM(G68:G76)<0,\"Erreur\")","v":0}]
[]
[null,"2.3. Matières envoyées dans d'autres installations d'élimination\nAttention! Vous devez déclarer les tonnages totaux envoyés à chacune des installations d'élimination concernées, et reporter ces tonnages dans les sections 3 et 4."]
[null,"Nom des installations d'élimination (listes déroulantes) :",null,null,null,null,"Tonnage total envoyé"]
[null,"Type d'installation",null,"Nom de l'installation"]
[]
[]
[]
[]
[]
[]
[]
[]
[]
[]
[]
[]
[null,"Total 2.3",null,null,null,null,{"$f":"_xlfn.IFS(SUM(G82:G93)>=0,SUM(G82:G93),SUM(G82:G93)<0,\"Erreur\")","v":0}]
[]
[null,"3. Matières résiduelles ÉLIMINÉES"]
[]
[null,"3.1. Matières résiduelles reçues pour élimination (excluant les boues)\nAttention! Ne reportez pas les tonnages déclarés aux sections 2.1 et 2.2."]
[null,null,null,"Provenance par municipalité d'origine des matières collectées\nPour connaître le code géo de la municipalité, consultez le Répertoire des municipalités du MAMH :",null,null,"Tonnage par municipalité"]
[null,null,null,"www.mamh.gouv.qc.ca/repertoire-des-municipalites/ ",null,null,"Poids (tonnes)"]
[null,"Ordures ménagères\n(résidentielles)",null,"Code géo municipal","Provenance par municipalité"]
[null,null,null,null,{"$f":"IF($D102<>\"\",VLOOKUP($D102,Feuil2!A$1:B$1289,2,FALSE),\"\")","v":""}]
[null,null,null,null,{"$f":"IF($D103<>\"\",VLOOKUP($D103,Feuil2!A$1:B$1289,2,FALSE),\"\")","v":""}]
[null,null,null,null,{"$f":"IF($D104<>\"\",VLOOKUP($D104,Feuil2!A$1:B$1289,2,FALSE),\"\")","v":""}]
[null,null,null,null,{"$f":"IF($D105<>\"\",VLOOKUP($D105,Feuil2!A$1:B$1289,2,FALSE),\"\")","v":""}]
[null,null,null,null,{"$f":"IF($D106<>\"\",VLOOKUP($D106,Feuil2!A$1:B$1289,2,FALSE),\"\")","v":""}]
[null,null,null,null,{"$f":"IF($D107<>\"\",VLOOKUP($D107,Feuil2!A$1:B$1289,2,FALSE),\"\")","v":""}]
[null,null,null,null,{"$f":"IF($D108<>\"\",VLOOKUP($D108,Feuil2!A$1:B$1289,2,FALSE),\"\")","v":""}]
[null,null,null,null,{"$f":"IF($D109<>\"\",VLOOKUP($D109,Feuil2!A$1:B$1289,2,FALSE),\"\")","v":""}]
[null,null,null,null,{"$f":"IF($D110<>\"\",VLOOKUP($D110,Feuil2!A$1:B$1289,2,FALSE),\"\")","v":""}]
[null,null,null,null,{"$f":"IF($D111<>\"\",VLOOKUP($D111,Feuil2!A$1:B$1289,2,FALSE),\"\")","v":""}]
[null,null,null,null,{"$f":"IF($D112<>\"\",VLOOKUP($D112,Feuil2!A$1:B$1289,2,FALSE),\"\")","v":""}]
[null,null,null,null,{"$f":"IF($D113<>\"\",VLOOKUP($D113,Feuil2!A$1:B$1289,2,FALSE),\"\")","v":""}]
[null,null,null,null,{"$f":"IF($D114<>\"\",VLOOKUP($D114,Feuil2!A$1:B$1289,2,FALSE),\"\")","v":""}]
[null,null,null,null,{"$f":"IF($D115<>\"\",VLOOKUP($D115,Feuil2!A$1:B$1289,2,FALSE),\"\")","v":""}]
[null,null,null,null,{"$f":"IF($D116<>\"\",VLOOKUP($D116,Feuil2!A$1:B$1289,2,FALSE),\"\")","v":""}]
[null,null,null,null,{"$f":"IF($D117<>\"\",VLOOKUP($D117,Feuil2!A$1:B$1289,2,FALSE),\"\")","v":""}]
[null,null,null,null,{"$f":"IF($D118<>\"\",VLOOKUP($D118,Feuil2!A$1:B$1289,2,FALSE),\"\")","v":""}]
[null,null,null,null,{"$f":"IF($D119<>\"\",VLOOKUP($D119,Feuil2!A$1:B$1289,2,FALSE),\"\")","v":""}]
[null,null,null,null,{"$f":"IF($D120<>\"\",VLOOKUP($D120,Feuil2!A$1:B$1289,2,FALSE),\"\")","v":""}]
[null,null,null,null,{"$f":"IF($D121<>\"\",VLOOKUP($D121,Feuil2!A$1:B$1289,2,FALSE),\"\")","v":""}]
[null,null,null,"Total",null,null,{"$f":"_xlfn.IFS(SUM(G102:G121)>=0,SUM(G102:G121),SUM(G102:G121)<0,\"Erreur\")","v":0}]
[null,"Résidus ICI\n(industriels, commerciaux, institutionnels)",null,"Code géo municipal","Provenance par municipalité"]
[null,null,null,null,{"$f":"IF($D124<>\"\",VLOOKUP($D124,Feuil2!A$1:B$1289,2,FALSE),\"\")","v":""}]
[null,null,null,null,{"$f":"IF($D125<>\"\",VLOOKUP($D125,Feuil2!A$1:B$1289,2,FALSE),\"\")","v":""}]
[null,null,null,null,{"$f":"IF($D126<>\"\",VLOOKUP($D126,Feuil2!A$1:B$1289,2,FALSE),\"\")","v":""}]
[null,null,null,null,{"$f":"IF($D127<>\"\",VLOOKUP($D127,Feuil2!A$1:B$1289,2,FALSE),\"\")","v":""}]
[null,null,null,null,{"$f":"IF($D128<>\"\",VLOOKUP($D128,Feuil2!A$1:B$1289,2,FALSE),\"\")","v":""}]
[null,null,null,null,{"$f":"IF($D129<>\"\",VLOOKUP($D129,Feuil2!A$1:B$1289,2,FALSE),\"\")","v":""}]
[null,null,null,null,{"$f":"IF($D130<>\"\",VLOOKUP($D130,Feuil2!A$1:B$1289,2,FALSE),\"\")","v":""}]
[null,null,null,null,{"$f":"IF($D131<>\"\",VLOOKUP($D131,Feuil2!A$1:B$1289,2,FALSE),\"\")","v":""}]
[null,null,null,null,{"$f":"IF($D132<>\"\",VLOOKUP($D132,Feuil2!A$1:B$1289,2,FALSE),\"\")","v":""}]
[null,null,null,null,{"$f":"IF($D133<>\"\",VLOOKUP($D133,Feuil2!A$1:B$1289,2,FALSE),\"\")","v":""}]
[null,null,null,null,{"$f":"IF($D134<>\"\",VLOOKUP($D134,Feuil2!A$1:B$1289,2,FALSE),\"\")","v":""}]
[null,null,null,null,{"$f":"IF($D135<>\"\",VLOOKUP($D135,Feuil2!A$1:B$1289,2,FALSE),\"\")","v":""}]
[null,null,null,null,{"$f":"IF($D136<>\"\",VLOOKUP($D136,Feuil2!A$1:B$1289,2,FALSE),\"\")","v":""}]
[null,null,null,null,{"$f":"IF($D137<>\"\",VLOOKUP($D137,Feuil2!A$1:B$1289,2,FALSE),\"\")","v":""}]
[null,null,null,null,{"$f":"IF($D138<>\"\",VLOOKUP($D138,Feuil2!A$1:B$1289,2,FALSE),\"\")","v":""}]
[null,null,null,null,{"$f":"IF($D139<>\"\",VLOOKUP($D139,Feuil2!A$1:B$1289,2,FALSE),\"\")","v":""}]
[null,null,null,null,{"$f":"IF($D140<>\"\",VLOOKUP($D140,Feuil2!A$1:B$1289,2,FALSE),\"\")","v":""}]
[null,null,null,null,{"$f":"IF($D141<>\"\",VLOOKUP($D141,Feuil2!A$1:B$1289,2,FALSE),\"\")","v":""}]
[null,null,null,"Total",null,null,{"$f":"_xlfn.IFS(SUM(G124:G141)>=0,SUM(G124:G141),SUM(G124:G141)<0,\"Erreur\")","v":0}]
[null,"Résidus CRD\n(construction, rénovation et démolition)",null,"Code géo municipal","Provenance par municipalité"]
[null,null,null,null,{"$f":"IF($D144<>\"\",VLOOKUP($D144,Feuil2!A$1:B$1289,2,FALSE),\"\")","v":""}]
[null,null,null,null,{"$f":"IF($D145<>\"\",VLOOKUP($D145,Feuil2!A$1:B$1289,2,FALSE),\"\")","v":""}]
[null,null,null,null,{"$f":"IF($D146<>\"\",VLOOKUP($D146,Feuil2!A$1:B$1289,2,FALSE),\"\")","v":""}]
[null,null,null,null,{"$f":"IF($D147<>\"\",VLOOKUP($D147,Feuil2!A$1:B$1289,2,FALSE),\"\")","v":""}]
[null,null,null,null,{"$f":"IF($D148<>\"\",VLOOKUP($D148,Feuil2!A$1:B$1289,2,FALSE),\"\")","v":""}]
[null,null,null,null,{"$f":"IF($D149<>\"\",VLOOKUP($D149,Feuil2!A$1:B$1289,2,FALSE),\"\")","v":""}]
[null,null,null,null,{"$f":"IF($D150<>\"\",VLOOKUP($D150,Feuil2!A$1:B$1289,2,FALSE),\"\")","v":""}]
[null,null,null,null,{"$f":"IF($D151<>\"\",VLOOKUP($D151,Feuil2!A$1:B$1289,2,FALSE),\"\")","v":""}]
[null,null,null,null,{"$f":"IF($D152<>\"\",VLOOKUP($D152,Feuil2!A$1:B$1289,2,FALSE),\"\")","v":""}]
[null,null,null,null,{"$f":"IF($D153<>\"\",VLOOKUP($D153,Feuil2!A$1:B$1289,2,FALSE),\"\")","v":""}]
[null,null,null,null,{"$f":"IF($D154<>\"\",VLOOKUP($D154,Feuil2!A$1:B$1289,2,FALSE),\"\")","v":""}]
[null,null,null,null,{"$f":"IF($D155<>\"\",VLOOKUP($D155,Feuil2!A$1:B$1289,2,FALSE),\"\")","v":""}]
[null,null,null,null,{"$f":"IF($D156<>\"\",VLOOKUP($D156,Feuil2!A$1:B$1289,2,FALSE),\"\")","v":""}]
[null,null,null,null,{"$f":"IF($D157<>\"\",VLOOKUP($D157,Feuil2!A$1:B$1289,2,FALSE),\"\")","v":""}]
[null,null,null,null,{"$f":"IF($D158<>\"\",VLOOKUP($D158,Feuil2!A$1:B$1289,2,FALSE),\"\")","v":""}]
[null,null,null,null,{"$f":"IF($D159<>\"\",VLOOKUP($D159,Feuil2!A$1:B$1289,2,FALSE),\"\")","v":""}]
[null,null,null,"Total",null,null,{"$f":"_xlfn.IFS(SUM(G144:G159)>=0,SUM(G144:G159),SUM(G144:G159)<0,\"Erreur\")","v":0}]
[null,"Résidus encombrants (« monstres »)",null,"Code géo municipal","Provenance par municipalité"]
[null,null,null,null,{"$f":"IF($D162<>\"\",VLOOKUP($D162,Feuil2!A$1:B$1289,2,FALSE),\"\")","v":""}]
[null,null,null,null,{"$f":"IF($D163<>\"\",VLOOKUP($D163,Feuil2!A$1:B$1289,2,FALSE),\"\")","v":""}]
[null,null,null,null,{"$f":"IF($D164<>\"\",VLOOKUP($D164,Feuil2!A$1:B$1289,2,FALSE),\"\")","v":""}]
[null,null,null,null,{"$f":"IF($D165<>\"\",VLOOKUP($D165,Feuil2!A$1:B$1289,2,FALSE),\"\")","v":""}]
[null,null,null,null,{"$f":"IF($D166<>\"\",VLOOKUP($D166,Feuil2!A$1:B$1289,2,FALSE),\"\")","v":""}]
[null,null,null,null,{"$f":"IF($D167<>\"\",VLOOKUP($D167,Feuil2!A$1:B$1289,2,FALSE),\"\")","v":""}]
[null,null,null,null,{"$f":"IF($D168<>\"\",VLOOKUP($D168,Feuil2!A$1:B$1289,2,FALSE),\"\")","v":""}]
[null,null,null,null,{"$f":"IF($D169<>\"\",VLOOKUP($D169,Feuil2!A$1:B$1289,2,FALSE),\"\")","v":""}]
[null,null,null,null,{"$f":"IF($D170<>\"\",VLOOKUP($D170,Feuil2!A$1:B$1289,2,FALSE),\"\")","v":""}]
[null,null,null,null,{"$f":"IF($D171<>\"\",VLOOKUP($D171,Feuil2!A$1:B$1289,2,FALSE),\"\")","v":""}]
[null,null,null,"Total",null,null,{"$f":"_xlfn.IFS(SUM(G162:G171)>=0,SUM(G162:G171),SUM(G162:G171)<0,\"Erreur\")","v":0}]
[null,"Résidus d'écocentre ",null,"Code géo municipal","Provenance par municipalité"]
[null,null,null,null,{"$f":"IF($D174<>\"\",VLOOKUP($D174,Feuil2!A$1:B$1289,2,FALSE),\"\")","v":""}]
[null,null,null,null,{"$f":"IF($D175<>\"\",VLOOKUP($D175,Feuil2!A$1:B$1289,2,FALSE),\"\")","v":""}]
[null,null,null,null,{"$f":"IF($D176<>\"\",VLOOKUP($D176,Feuil2!A$1:B$1289,2,FALSE),\"\")","v":""}]
[null,null,null,null,{"$f":"IF($D177<>\"\",VLOOKUP($D177,Feuil2!A$1:B$1289,2,FALSE),\"\")","v":""}]
[null,null,null,null,{"$f":"IF($D178<>\"\",VLOOKUP($D178,Feuil2!A$1:B$1289,2,FALSE),\"\")","v":""}]
[null,null,null,null,{"$f":"IF($D179<>\"\",VLOOKUP($D179,Feuil2!A$1:B$1289,2,FALSE),\"\")","v":""}]
[null,null,null,null,{"$f":"IF($D180<>\"\",VLOOKUP($D180,Feuil2!A$1:B$1289,2,FALSE),\"\")","v":""}]
[null,null,null,null,{"$f":"IF($D181<>\"\",VLOOKUP($D181,Feuil2!A$1:B$1289,2,FALSE),\"\")","v":""}]
[null,null,null,"Total",null,null,{"$f":"_xlfn.IFS(SUM(G174:G181)>=0,SUM(G174:G181),SUM(G174:G181)<0,\"Erreur\")","v":0}]
[null,"Résidus de centre de tri \nde CRD",null,"Code géo municipal","Provenance par centre de tri de CRD"]
[null,null,null,null,{"$f":"IF($D184<>\"\",VLOOKUP($D184,Feuil2!A$1:B$1289,2,FALSE),\"\")","v":""}]
[null,null,null,null,{"$f":"IF($D185<>\"\",VLOOKUP($D185,Feuil2!A$1:B$1289,2,FALSE),\"\")","v":""}]
[null,null,null,null,{"$f":"IF($D186<>\"\",VLOOKUP($D186,Feuil2!A$1:B$1289,2,FALSE),\"\")","v":""}]
[null,null,null,null,{"$f":"IF($D187<>\"\",VLOOKUP($D187,Feuil2!A$1:B$1289,2,FALSE),\"\")","v":""}]
[null,null,null,null,{"$f":"IF($D188<>\"\",VLOOKUP($D188,Feuil2!A$1:B$1289,2,FALSE),\"\")","v":""}]
[null,null,null,null,{"$f":"IF($D189<>\"\",VLOOKUP($D189,Feuil2!A$1:B$1289,2,FALSE),\"\")","v":""}]
[null,null,null,null,{"$f":"IF($D190<>\"\",VLOOKUP($D190,Feuil2!A$1:B$1289,2,FALSE),\"\")","v":""}]
[null,null,null,null,{"$f":"IF($D191<>\"\",VLOOKUP($D191,Feuil2!A$1:B$1289,2,FALSE),\"\")","v":""}]
[null,null,null,"Total",null,null,{"$f":"_xlfn.IFS(SUM(G184:G191)>=0,SUM(G184:G191),SUM(G184:G191)<0,\"Erreur\")","v":0}]
[null,"Résidus de centre de tri de matières de la collecte sélective (d'origine municipale ou ICI)",null,"Code géo municipal","Provenance par centre de tri"]
[null,null,null,null,{"$f":"IF($D194<>\"\",VLOOKUP($D194,Feuil2!A$1:B$1289,2,FALSE),\"\")","v":""}]
[null,null,null,null,{"$f":"IF($D195<>\"\",VLOOKUP($D195,Feuil2!A$1:B$1289,2,FALSE),\"\")","v":""}]
[null,null,null,null,{"$f":"IF($D196<>\"\",VLOOKUP($D196,Feuil2!A$1:B$1289,2,FALSE),\"\")","v":""}]
[null,null,null,null,{"$f":"IF($D197<>\"\",VLOOKUP($D197,Feuil2!A$1:B$1289,2,FALSE),\"\")","v":""}]
[null,null,null,null,{"$f":"IF($D198<>\"\",VLOOKUP($D198,Feuil2!A$1:B$1289,2,FALSE),\"\")","v":""}]
[null,null,null,null,{"$f":"IF($D199<>\"\",VLOOKUP($D199,Feuil2!A$1:B$1289,2,FALSE),\"\")","v":""}]
[null,null,null,null,{"$f":"IF($D200<>\"\",VLOOKUP($D200,Feuil2!A$1:B$1289,2,FALSE),\"\")","v":""}]
[null,null,null,null,{"$f":"IF($D201<>\"\",VLOOKUP($D201,Feuil2!A$1:B$1289,2,FALSE),\"\")","v":""}]
[null,null,null,null,{"$f":"IF($D202<>\"\",VLOOKUP($D202,Feuil2!A$1:B$1289,2,FALSE),\"\")","v":""}]
[null,null,null,"Total",null,null,{"$f":"_xlfn.IFS(SUM(G194:G202)>=0,SUM(G194:G202),SUM(G194:G202)<0,\"Erreur\")","v":0}]
[null,"Matières de la collecte sélective acheminées directement à l’élimination, sans tri préalable",null,"Code géo municipal","Provenance par municipalité"]
[null,null,null,null,{"$f":"IF($D205<>\"\",VLOOKUP($D205,Feuil2!A$1:B$1289,2,FALSE),\"\")","v":""}]
[null,null,null,null,{"$f":"IF($D206<>\"\",VLOOKUP($D206,Feuil2!A$1:B$1289,2,FALSE),\"\")","v":""}]
[null,null,null,null,{"$f":"IF($D207<>\"\",VLOOKUP($D207,Feuil2!A$1:B$1289,2,FALSE),\"\")","v":""}]
[null,null,null,null,{"$f":"IF($D208<>\"\",VLOOKUP($D208,Feuil2!A$1:B$1289,2,FALSE),\"\")","v":""}]
[null,null,null,null,{"$f":"IF($D209<>\"\",VLOOKUP($D209,Feuil2!A$1:B$1289,2,FALSE),\"\")","v":""}]
[null,null,null,null,{"$f":"IF($D210<>\"\",VLOOKUP($D210,Feuil2!A$1:B$1289,2,FALSE),\"\")","v":""}]
[null,null,null,null,{"$f":"IF($D211<>\"\",VLOOKUP($D211,Feuil2!A$1:B$1289,2,FALSE),\"\")","v":""}]
[null,null,null,null,{"$f":"IF($D212<>\"\",VLOOKUP($D212,Feuil2!A$1:B$1289,2,FALSE),\"\")","v":""}]
[null,null,null,"Total",null,null,{"$f":"_xlfn.IFS(SUM(G205:G212)>=0,SUM(G205:G212),SUM(G205:G212)<0,\"Erreur\")","v":0}]
[null,"Rejets de lieu de compostage ou de biométhanisation",null,"Code géo municipal","Provenance par municipalité"]
[null,null,null,null,{"$f":"IF($D215<>\"\",VLOOKUP($D215,Feuil2!A$1:B$1289,2,FALSE),\"\")","v":""}]
[null,null,null,null,{"$f":"IF($D216<>\"\",VLOOKUP($D216,Feuil2!A$1:B$1289,2,FALSE),\"\")","v":""}]
[null,null,null,null,{"$f":"IF($D217<>\"\",VLOOKUP($D217,Feuil2!A$1:B$1289,2,FALSE),\"\")","v":""}]
[null,null,null,null,{"$f":"IF($D218<>\"\",VLOOKUP($D218,Feuil2!A$1:B$1289,2,FALSE),\"\")","v":""}]
[null,null,null,null,{"$f":"IF($D219<>\"\",VLOOKUP($D219,Feuil2!A$1:B$1289,2,FALSE),\"\")","v":""}]
[null,null,null,null,{"$f":"IF($D220<>\"\",VLOOKUP($D220,Feuil2!A$1:B$1289,2,FALSE),\"\")","v":""}]
[null,null,null,null,{"$f":"IF($D221<>\"\",VLOOKUP($D221,Feuil2!A$1:B$1289,2,FALSE),\"\")","v":""}]
[null,null,null,null,{"$f":"IF($D222<>\"\",VLOOKUP($D222,Feuil2!A$1:B$1289,2,FALSE),\"\")","v":""}]
[null,null,null,"Total",null,null,{"$f":"_xlfn.IFS(SUM(G215:G222)>=0,SUM(G215:G222),SUM(G215:G222)<0,\"Erreur\")","v":0}]
[null,"Rejets plateforme de tri par traitement mécano-biologique (TMB) \nOrdures ménagères\n",null,"Code géo municipal","Provenance par municipalité"]
[null,null,null,null,{"$f":"IF($D225<>\"\",VLOOKUP($D225,Feuil2!A$1:B$1289,2,FALSE),\"\")","v":""}]
[null,null,null,null,{"$f":"IF($D226<>\"\",VLOOKUP($D226,Feuil2!A$1:B$1289,2,FALSE),\"\")","v":""}]
[null,null,null,null,{"$f":"IF($D227<>\"\",VLOOKUP($D227,Feuil2!A$1:B$1289,2,FALSE),\"\")","v":""}]
[null,null,null,null,{"$f":"IF($D228<>\"\",VLOOKUP($D228,Feuil2!A$1:B$1289,2,FALSE),\"\")","v":""}]
[null,null,null,null,{"$f":"IF($D229<>\"\",VLOOKUP($D229,Feuil2!A$1:B$1289,2,FALSE),\"\")","v":""}]
[null,null,null,null,{"$f":"IF($D230<>\"\",VLOOKUP($D230,Feuil2!A$1:B$1289,2,FALSE),\"\")","v":""}]
[null,null,null,null,{"$f":"IF($D231<>\"\",VLOOKUP($D231,Feuil2!A$1:B$1289,2,FALSE),\"\")","v":""}]
[null,null,null,null,{"$f":"IF($D232<>\"\",VLOOKUP($D232,Feuil2!A$1:B$1289,2,FALSE),\"\")","v":""}]
[null,null,null,"Total",null,null,{"$f":"_xlfn.IFS(SUM(G225:G232)>=0,SUM(G225:G232),SUM(G225:G232)<0,\"Erreur\")","v":0}]
[null,"Rejets plateforme de tri par traitement mécano-biologique (TMB)\nICI\n",null,"Code géo municipal","Provenance par municipalité"]
[null,null,null,null,{"$f":"IF($D235<>\"\",VLOOKUP($D235,Feuil2!A$1:B$1289,2,FALSE),\"\")","v":""}]
[null,null,null,null,{"$f":"IF($D236<>\"\",VLOOKUP($D236,Feuil2!A$1:B$1289,2,FALSE),\"\")","v":""}]
[null,null,null,null,{"$f":"IF($D237<>\"\",VLOOKUP($D237,Feuil2!A$1:B$1289,2,FALSE),\"\")","v":""}]
[null,null,null,null,{"$f":"IF($D238<>\"\",VLOOKUP($D238,Feuil2!A$1:B$1289,2,FALSE),\"\")","v":""}]
[null,null,null,null,{"$f":"IF($D239<>\"\",VLOOKUP($D239,Feuil2!A$1:B$1289,2,FALSE),\"\")","v":""}]
[null,null,null,null,{"$f":"IF($D240<>\"\",VLOOKUP($D240,Feuil2!A$1:B$1289,2,FALSE),\"\")","v":""}]
[null,null,null,null,{"$f":"IF($D241<>\"\",VLOOKUP($D241,Feuil2!A$1:B$1289,2,FALSE),\"\")","v":""}]
[null,null,null,null,{"$f":"IF($D242<>\"\",VLOOKUP($D242,Feuil2!A$1:B$1289,2,FALSE),\"\")","v":""}]
[null,null,null,"Total",null,null,{"$f":"_xlfn.IFS(SUM(G235:G242)>=0,SUM(G235:G242),SUM(G235:G242)<0,\"Erreur\")","v":0}]
[null,"Balayures de rue",null,"Code géo municipal","Provenance par municipalité"]
[null,null,null,null,{"$f":"IF($D245<>\"\",VLOOKUP($D245,Feuil2!A$1:B$1289,2,FALSE),\"\")","v":""}]
[null,null,null,null,{"$f":"IF($D246<>\"\",VLOOKUP($D246,Feuil2!A$1:B$1289,2,FALSE),\"\")","v":""}]
[null,null,null,null,{"$f":"IF($D247<>\"\",VLOOKUP($D247,Feuil2!A$1:B$1289,2,FALSE),\"\")","v":""}]
[null,null,null,null,{"$f":"IF($D248<>\"\",VLOOKUP($D248,Feuil2!A$1:B$1289,2,FALSE),\"\")","v":""}]
[null,null,null,null,{"$f":"IF($D249<>\"\",VLOOKUP($D249,Feuil2!A$1:B$1289,2,FALSE),\"\")","v":""}]
[null,null,null,null,{"$f":"IF($D250<>\"\",VLOOKUP($D250,Feuil2!A$1:B$1289,2,FALSE),\"\")","v":""}]
[null,null,null,null,{"$f":"IF($D251<>\"\",VLOOKUP($D251,Feuil2!A$1:B$1289,2,FALSE),\"\")","v":""}]
[null,null,null,null,{"$f":"IF($D252<>\"\",VLOOKUP($D252,Feuil2!A$1:B$1289,2,FALSE),\"\")","v":""}]
[null,null,null,"Total",null,null,{"$f":"_xlfn.IFS(SUM(G245:G252)>=0,SUM(G245:G252),SUM(G245:G252)<0,\"Erreur\")","v":0}]
[null,"Résidus d'incinération\n(cendres de grilles)",null,"Code géo municipal","Provenance par municipalité"]
[null,null,null,null,{"$f":"IF($D255<>\"\",VLOOKUP($D255,Feuil2!A$1:B$1289,2,FALSE),\"\")","v":""}]
[null,{"$f":"IF($E$13=\"incinérateur\",\"Veuillez inscrire le tonnage à la section 2.5.1\",\"\")","v":""},null,null,{"$f":"IF($D256<>\"\",VLOOKUP($D256,Feuil2!A$1:B$1289,2,FALSE),\"\")","v":""}]
[null,null,null,null,{"$f":"IF($D257<>\"\",VLOOKUP($D257,Feuil2!A$1:B$1289,2,FALSE),\"\")","v":""}]
[null,null,null,null,{"$f":"IF($D258<>\"\",VLOOKUP($D258,Feuil2!A$1:B$1289,2,FALSE),\"\")","v":""}]
[null,null,null,null,{"$f":"IF($D259<>\"\",VLOOKUP($D259,Feuil2!A$1:B$1289,2,FALSE),\"\")","v":""}]
[null,null,null,null,{"$f":"IF($D260<>\"\",VLOOKUP($D260,Feuil2!A$1:B$1289,2,FALSE),\"\")","v":""}]
[null,null,null,null,{"$f":"IF($D261<>\"\",VLOOKUP($D261,Feuil2!A$1:B$1289,2,FALSE),\"\")","v":""}]
[null,null,null,null,{"$f":"IF($D262<>\"\",VLOOKUP($D262,Feuil2!A$1:B$1289,2,FALSE),\"\")","v":""}]
[null,null,null,null,{"$f":"IF($D263<>\"\",VLOOKUP($D263,Feuil2!A$1:B$1289,2,FALSE),\"\")","v":""}]
[null,null,null,"Total",null,null,{"$f":"_xlfn.IFS(SUM(G255:G263)>=0,SUM(G255:G263),SUM(G255:G263)<0,\"Erreur\")","v":0}]
[null,"Résidus d'incinération\n(cendres volantes)",null,"Code géo municipal","Provenance par municipalité"]
[null,null,null,null,{"$f":"IF($D266<>\"\",VLOOKUP($D266,Feuil2!A$1:B$1289,2,FALSE),\"\")","v":""}]
[null,{"$f":"IF($E$13=\"incinérateur\",\"Veuillez inscrire le tonnage à la section 2.5.1\",\"\")","v":""},null,null,{"$f":"IF($D267<>\"\",VLOOKUP($D267,Feuil2!A$1:B$1289,2,FALSE),\"\")","v":""}]
[null,null,null,null,{"$f":"IF($D268<>\"\",VLOOKUP($D268,Feuil2!A$1:B$1289,2,FALSE),\"\")","v":""}]
[null,null,null,null,{"$f":"IF($D269<>\"\",VLOOKUP($D269,Feuil2!A$1:B$1289,2,FALSE),\"\")","v":""}]
[null,null,null,null,{"$f":"IF($D270<>\"\",VLOOKUP($D270,Feuil2!A$1:B$1289,2,FALSE),\"\")","v":""}]
[null,null,null,null,{"$f":"IF($D271<>\"\",VLOOKUP($D271,Feuil2!A$1:B$1289,2,FALSE),\"\")","v":""}]
[null,null,null,null,{"$f":"IF($D272<>\"\",VLOOKUP($D272,Feuil2!A$1:B$1289,2,FALSE),\"\")","v":""}]
[null,null,null,null,{"$f":"IF($D273<>\"\",VLOOKUP($D273,Feuil2!A$1:B$1289,2,FALSE),\"\")","v":""}]
[null,null,null,"Total",null,null,{"$f":"_xlfn.IFS(SUM(G266:G273)>=0,SUM(G266:G273),SUM(G266:G273)<0,\"Erreur\")","v":0}]
[null,"Sols contaminés\n(non visés par le Règlement sur les redevances favorisant le traitement et la valorisation des sols contaminés excavés)\n",null,"Code géo municipal","Provenance par municipalité"]
[null,null,null,null,{"$f":"IF($D276<>\"\",VLOOKUP($D276,Feuil2!A$1:B$1289,2,FALSE),\"\")","v":""}]
[null,null,null,null,{"$f":"IF($D277<>\"\",VLOOKUP($D277,Feuil2!A$1:B$1289,2,FALSE),\"\")","v":""}]
[null,null,null,null,{"$f":"IF($D278<>\"\",VLOOKUP($D278,Feuil2!A$1:B$1289,2,FALSE),\"\")","v":""}]
[null,null,null,null,{"$f":"IF($D279<>\"\",VLOOKUP($D279,Feuil2!A$1:B$1289,2,FALSE),\"\")","v":""}]
[null,null,null,null,{"$f":"IF($D280<>\"\",VLOOKUP($D280,Feuil2!A$1:B$1289,2,FALSE),\"\")","v":""}]
[null,null,null,null,{"$f":"IF($D281<>\"\",VLOOKUP($D281,Feuil2!A$1:B$1289,2,FALSE),\"\")","v":""}]
[null,null,null,null,{"$f":"IF($D282<>\"\",VLOOKUP($D282,Feuil2!A$1:B$1289,2,FALSE),\"\")","v":""}]
[null,null,null,null,{"$f":"IF($D283<>\"\",VLOOKUP($D283,Feuil2!A$1:B$1289,2,FALSE),\"\")","v":""}]
[null,null,null,"Total",null,null,{"$f":"_xlfn.IFS(SUM(G276:G283)>=0,SUM(G276:G283),SUM(G276:G283)<0,\"Erreur\")","v":0}]
[null,"Matériaux d'excavation",null,"Code géo municipal","Provenance par municipalité"]
[null,null,null,null,{"$f":"IF($D286<>\"\",VLOOKUP($D286,Feuil2!A$1:B$1289,2,FALSE),\"\")","v":""}]
[null,null,null,null,{"$f":"IF($D287<>\"\",VLOOKUP($D287,Feuil2!A$1:B$1289,2,FALSE),\"\")","v":""}]
[null,null,null,null,{"$f":"IF($D288<>\"\",VLOOKUP($D288,Feuil2!A$1:B$1289,2,FALSE),\"\")","v":""}]
[null,null,null,null,{"$f":"IF($D289<>\"\",VLOOKUP($D289,Feuil2!A$1:B$1289,2,FALSE),\"\")","v":""}]
[null,null,null,null,{"$f":"IF($D290<>\"\",VLOOKUP($D290,Feuil2!A$1:B$1289,2,FALSE),\"\")","v":""}]
[null,null,null,null,{"$f":"IF($D291<>\"\",VLOOKUP($D291,Feuil2!A$1:B$1289,2,FALSE),\"\")","v":""}]
[null,null,null,null,{"$f":"IF($D292<>\"\",VLOOKUP($D292,Feuil2!A$1:B$1289,2,FALSE),\"\")","v":""}]
[null,null,null,null,{"$f":"IF($D293<>\"\",VLOOKUP($D293,Feuil2!A$1:B$1289,2,FALSE),\"\")","v":""}]
[null,null,null,null,{"$f":"IF($D294<>\"\",VLOOKUP($D294,Feuil2!A$1:B$1289,2,FALSE),\"\")","v":""}]
[null,null,null,"Total",null,null,{"$f":"_xlfn.IFS(SUM(G286:G294)>=0,SUM(G286:G294),SUM(G286:G294)<0,\"Erreur\")","v":0}]
[null,"Résidus de déchiquetage de carcasses d'automobiles\n (« fluff »)",null,"Code géo municipal","Provenance par municipalité"]
[]
[null,null,null,null,{"$f":"IF($D298<>\"\",VLOOKUP($D298,Feuil2!A$1:B$1289,2,FALSE),\"\")","v":""}]
[null,null,null,null,{"$f":"IF($D299<>\"\",VLOOKUP($D299,Feuil2!A$1:B$1289,2,FALSE),\"\")","v":""}]
[null,null,null,null,{"$f":"IF($D300<>\"\",VLOOKUP($D300,Feuil2!A$1:B$1289,2,FALSE),\"\")","v":""}]
[null,null,null,null,{"$f":"IF($D301<>\"\",VLOOKUP($D301,Feuil2!A$1:B$1289,2,FALSE),\"\")","v":""}]
[null,null,null,null,{"$f":"IF($D302<>\"\",VLOOKUP($D302,Feuil2!A$1:B$1289,2,FALSE),\"\")","v":""}]
[null,null,null,null,{"$f":"IF($D303<>\"\",VLOOKUP($D303,Feuil2!A$1:B$1289,2,FALSE),\"\")","v":""}]
[null,null,null,null,{"$f":"IF($D304<>\"\",VLOOKUP($D304,Feuil2!A$1:B$1289,2,FALSE),\"\")","v":""}]
[null,null,null,"Total",null,null,{"$f":"_xlfn.IFS(SUM(G297:G304)>=0,SUM(G297:G304),SUM(G297:G304)<0,\"Erreur\")","v":0}]
[null,"Résidus CRD « fins » de broyage et de tamisage\n",null,"Code géo municipal","Provenance par municipalité"]
[null,null,null,null,{"$f":"IF($D307<>\"\",VLOOKUP($D307,Feuil2!A$1:B$1289,2,FALSE),\"\")","v":""}]
[null,null,null,null,{"$f":"IF($D308<>\"\",VLOOKUP($D308,Feuil2!A$1:B$1289,2,FALSE),\"\")","v":""}]
[null,null,null,null,{"$f":"IF($D309<>\"\",VLOOKUP($D309,Feuil2!A$1:B$1289,2,FALSE),\"\")","v":""}]
[null,null,null,null,{"$f":"IF($D310<>\"\",VLOOKUP($D310,Feuil2!A$1:B$1289,2,FALSE),\"\")","v":""}]
[null,null,null,null,{"$f":"IF($D311<>\"\",VLOOKUP($D311,Feuil2!A$1:B$1289,2,FALSE),\"\")","v":""}]
[null,null,null,null,{"$f":"IF($D312<>\"\",VLOOKUP($D312,Feuil2!A$1:B$1289,2,FALSE),\"\")","v":""}]
[null,null,null,null,{"$f":"IF($D313<>\"\",VLOOKUP($D313,Feuil2!A$1:B$1289,2,FALSE),\"\")","v":""}]
[null,null,null,"Total",null,null,{"$f":"_xlfn.IFS(SUM(G307:G313)>=0,SUM(G307:G313),SUM(G307:G313)<0,\"Erreur\")","v":0}]
[null,"Autres résidus CRD  (bardeaux, briques, bois, granulats de béton, etc.)",null,"Code géo municipal","Provenance par municipalité"]
[null,null,null,null,{"$f":"IF($D316<>\"\",VLOOKUP($D316,Feuil2!A$1:B$1289,2,FALSE),\"\")","v":""}]
[null,null,null,null,{"$f":"IF($D317<>\"\",VLOOKUP($D317,Feuil2!A$1:B$1289,2,FALSE),\"\")","v":""}]
[null,null,null,null,{"$f":"IF($D318<>\"\",VLOOKUP($D318,Feuil2!A$1:B$1289,2,FALSE),\"\")","v":""}]
[null,null,null,null,{"$f":"IF($D319<>\"\",VLOOKUP($D319,Feuil2!A$1:B$1289,2,FALSE),\"\")","v":""}]
[null,null,null,null,{"$f":"IF($D320<>\"\",VLOOKUP($D320,Feuil2!A$1:B$1289,2,FALSE),\"\")","v":""}]
[null,null,null,null,{"$f":"IF($D321<>\"\",VLOOKUP($D321,Feuil2!A$1:B$1289,2,FALSE),\"\")","v":""}]
[null,null,null,null,{"$f":"IF($D322<>\"\",VLOOKUP($D322,Feuil2!A$1:B$1289,2,FALSE),\"\")","v":""}]
[null,null,null,"Total",null,null,{"$f":"_xlfn.IFS(SUM(G316:G322)>=0,SUM(G316:G322),SUM(G316:G322)<0,\"Erreur\")","v":0}]
[null,"Animaux morts ",null,"Code géo municipal","Provenance par municipalité"]
[null,null,null,null,{"$f":"IF($D325<>\"\",VLOOKUP($D325,Feuil2!A$1:B$1289,2,FALSE),\"\")","v":""}]
[null,null,null,null,{"$f":"IF($D326<>\"\",VLOOKUP($D326,Feuil2!A$1:B$1289,2,FALSE),\"\")","v":""}]
[null,null,null,null,{"$f":"IF($D327<>\"\",VLOOKUP($D327,Feuil2!A$1:B$1289,2,FALSE),\"\")","v":""}]
[null,null,null,null,{"$f":"IF($D328<>\"\",VLOOKUP($D328,Feuil2!A$1:B$1289,2,FALSE),\"\")","v":""}]
[null,null,null,null,{"$f":"IF($D329<>\"\",VLOOKUP($D329,Feuil2!A$1:B$1289,2,FALSE),\"\")","v":""}]
[null,null,null,null,{"$f":"IF($D330<>\"\",VLOOKUP($D330,Feuil2!A$1:B$1289,2,FALSE),\"\")","v":""}]
[null,null,null,null,{"$f":"IF($D331<>\"\",VLOOKUP($D331,Feuil2!A$1:B$1289,2,FALSE),\"\")","v":""}]
[null,null,null,null,{"$f":"IF($D332<>\"\",VLOOKUP($D332,Feuil2!A$1:B$1289,2,FALSE),\"\")","v":""}]
[null,null,null,null,{"$f":"IF($D333<>\"\",VLOOKUP($D333,Feuil2!A$1:B$1289,2,FALSE),\"\")","v":""}]
[null,null,null,"Total",null,null,{"$f":"_xlfn.IFS(SUM(G325:G333)>=0,SUM(G325:G333),SUM(G325:G333)<0,\"Erreur\")","v":0}]
[null,"Autres \n(Spécifiez ci-dessous)\n",null,"Code géo municipal","Provenance par municipalité"]
[null,null,null,null,{"$f":"IF($D336<>\"\",VLOOKUP($D336,Feuil2!A$1:B$1289,2,FALSE),\"\")","v":""}]
[null,null,null,null,{"$f":"IF($D337<>\"\",VLOOKUP($D337,Feuil2!A$1:B$1289,2,FALSE),\"\")","v":""}]
[null,null,null,null,{"$f":"IF($D338<>\"\",VLOOKUP($D338,Feuil2!A$1:B$1289,2,FALSE),\"\")","v":""}]
[null,null,null,null,{"$f":"IF($D339<>\"\",VLOOKUP($D339,Feuil2!A$1:B$1289,2,FALSE),\"\")","v":""}]
[null,null,null,null,{"$f":"IF($D340<>\"\",VLOOKUP($D340,Feuil2!A$1:B$1289,2,FALSE),\"\")","v":""}]
[null,null,null,null,{"$f":"IF($D341<>\"\",VLOOKUP($D341,Feuil2!A$1:B$1289,2,FALSE),\"\")","v":""}]
[null,null,null,null,{"$f":"IF($D342<>\"\",VLOOKUP($D342,Feuil2!A$1:B$1289,2,FALSE),\"\")","v":""}]
[null,null,null,null,{"$f":"IF($D343<>\"\",VLOOKUP($D343,Feuil2!A$1:B$1289,2,FALSE),\"\")","v":""}]
[null,null,null,null,{"$f":"IF($D344<>\"\",VLOOKUP($D344,Feuil2!A$1:B$1289,2,FALSE),\"\")","v":""}]
[null,null,null,"Total",null,null,{"$f":"_xlfn.IFS(SUM(G336:G344)>=0,SUM(G336:G344),SUM(G336:G344)<0,\"Erreur\")","v":0}]
[null,null,null,"Total 3.1",null,null,{"$f":"SUM(G122+G345+G284+G334+G274+G264+G253+G223+G203+G192+G182+G172+G160+G142+G213+G295+G243+G233+G305+G314+G323)","v":0}]
[]
[null,"3.2. Boues reçues pour élimination\nAttention! Ne reportez pas les tonnages déclarés aux sections 2.1 et 2.2."]
[null,"Catégorie de boues",null,"Provenance par municipalité d'origine des matières collectées\nPour connaître le code géo de la municipalité, consultez le Répertoire des municipalités du MAMH :",null,null,"Quantité par municipalité"]
[null,null,null,"www.mamh.gouv.qc.ca/repertoire-des-municipalites/ ",null,null,"Poids (tonnes)"]
[null,"Boues de stations d'épuration municipales",null,"Code géo municipal","Provenance par municipalité"]
[null,null,null,null,{"$f":"IF($D352<>\"\",VLOOKUP($D352,Feuil2!A$1:B$1289,2,FALSE),\"\")","v":""}]
[null,null,null,null,{"$f":"IF($D353<>\"\",VLOOKUP($D353,Feuil2!A$1:B$1289,2,FALSE),\"\")","v":""}]
[null,null,null,null,{"$f":"IF($D354<>\"\",VLOOKUP($D354,Feuil2!A$1:B$1289,2,FALSE),\"\")","v":""}]
[null,null,null,null,{"$f":"IF($D355<>\"\",VLOOKUP($D355,Feuil2!A$1:B$1289,2,FALSE),\"\")","v":""}]
[null,null,null,null,{"$f":"IF($D356<>\"\",VLOOKUP($D356,Feuil2!A$1:B$1289,2,FALSE),\"\")","v":""}]
[null,null,null,"Total",null,null,{"$f":"_xlfn.IFS(SUM(G352:G356)>=0,SUM(G352:G356),SUM(G352:G356)<0,\"Erreur\")","v":0}]
[null,"Boues de fosses septiques",null,"Code géo municipal","Provenance par municipalité"]
[null,null,null,null,{"$f":"IF($D359<>\"\",VLOOKUP($D359,Feuil2!A$1:B$1289,2,FALSE),\"\")","v":""}]
[null,null,null,null,{"$f":"IF($D360<>\"\",VLOOKUP($D360,Feuil2!A$1:B$1289,2,FALSE),\"\")","v":""}]
[null,null,null,null,{"$f":"IF($D361<>\"\",VLOOKUP($D361,Feuil2!A$1:B$1289,2,FALSE),\"\")","v":""}]
[null,null,null,null,{"$f":"IF($D362<>\"\",VLOOKUP($D362,Feuil2!A$1:B$1289,2,FALSE),\"\")","v":""}]
[null,null,null,null,{"$f":"IF($D363<>\"\",VLOOKUP($D363,Feuil2!A$1:B$1289,2,FALSE),\"\")","v":""}]
[null,null,null,"Total",null,null,{"$f":"_xlfn.IFS(SUM(G359:G363)>=0,SUM(G359:G363),SUM(G359:G363)<0,\"Erreur\")","v":0}]
[null,"Boues agroalimentaires",null,"Code géo municipal","Provenance par municipalité"]
[null,null,null,null,{"$f":"IF($D366<>\"\",VLOOKUP($D366,Feuil2!A$1:B$1289,2,FALSE),\"\")","v":""}]
[null,null,null,null,{"$f":"IF($D367<>\"\",VLOOKUP($D367,Feuil2!A$1:B$1289,2,FALSE),\"\")","v":""}]
[null,null,null,null,{"$f":"IF($D368<>\"\",VLOOKUP($D368,Feuil2!A$1:B$1289,2,FALSE),\"\")","v":""}]
[null,null,null,null,{"$f":"IF($D369<>\"\",VLOOKUP($D369,Feuil2!A$1:B$1289,2,FALSE),\"\")","v":""}]
[null,null,null,null,{"$f":"IF($D370<>\"\",VLOOKUP($D370,Feuil2!A$1:B$1289,2,FALSE),\"\")","v":""}]
[null,null,null,"Total",null,null,{"$f":"_xlfn.IFS(SUM(G366:G370)>=0,SUM(G366:G370),SUM(G366:G370)<0,\"Erreur\")","v":0}]
[null,"Boues de fabriques de pâtes et papiers",null,"Code géo municipal","Provenance par municipalité"]
[null,null,null,null,{"$f":"IF($D373<>\"\",VLOOKUP($D373,Feuil2!A$1:B$1289,2,FALSE),\"\")","v":""}]
[null,null,null,null,{"$f":"IF($D374<>\"\",VLOOKUP($D374,Feuil2!A$1:B$1289,2,FALSE),\"\")","v":""}]
[null,null,null,null,{"$f":"IF($D375<>\"\",VLOOKUP($D375,Feuil2!A$1:B$1289,2,FALSE),\"\")","v":""}]
[null,null,null,null,{"$f":"IF($D376<>\"\",VLOOKUP($D376,Feuil2!A$1:B$1289,2,FALSE),\"\")","v":""}]
[null,null,null,null,{"$f":"IF($D377<>\"\",VLOOKUP($D377,Feuil2!A$1:B$1289,2,FALSE),\"\")","v":""}]
[null,null,null,null,{"$f":"IF($D378<>\"\",VLOOKUP($D378,Feuil2!A$1:B$1289,2,FALSE),\"\")","v":""}]
[null,null,null,null,{"$f":"IF($D379<>\"\",VLOOKUP($D379,Feuil2!A$1:B$1289,2,FALSE),\"\")","v":""}]
[null,null,null,"Total",null,null,{"$f":"_xlfn.IFS(SUM(G373:G379)>=0,SUM(G373:G379),SUM(G373:G379)<0,\"Erreur\")","v":0}]
[null,"Boues provenant du nettoyage des rues et du nettoyage et récurage des égouts, des regards et des puisards",null,"Code géo municipal","Provenance par municipalité"]
[null,null,null,null,{"$f":"IF($D382<>\"\",VLOOKUP($D382,Feuil2!A$1:B$1289,2,FALSE),\"\")","v":""}]
[null,null,null,null,{"$f":"IF($D383<>\"\",VLOOKUP($D383,Feuil2!A$1:B$1289,2,FALSE),\"\")","v":""}]
[null,null,null,null,{"$f":"IF($D384<>\"\",VLOOKUP($D384,Feuil2!A$1:B$1289,2,FALSE),\"\")","v":""}]
[null,null,null,null,{"$f":"IF($D385<>\"\",VLOOKUP($D385,Feuil2!A$1:B$1289,2,FALSE),\"\")","v":""}]
[null,null,null,null,{"$f":"IF($D386<>\"\",VLOOKUP($D386,Feuil2!A$1:B$1289,2,FALSE),\"\")","v":""}]
[null,null,null,null,{"$f":"IF($D387<>\"\",VLOOKUP($D387,Feuil2!A$1:B$1289,2,FALSE),\"\")","v":""}]
[null,null,null,null,{"$f":"IF($D388<>\"\",VLOOKUP($D388,Feuil2!A$1:B$1289,2,FALSE),\"\")","v":""}]
[null,null,null,null,{"$f":"IF($D389<>\"\",VLOOKUP($D389,Feuil2!A$1:B$1289,2,FALSE),\"\")","v":""}]
[null,null,null,null,{"$f":"IF($D390<>\"\",VLOOKUP($D390,Feuil2!A$1:B$1289,2,FALSE),\"\")","v":""}]
[null,null,null,"Total",null,null,{"$f":"_xlfn.IFS(SUM(G382:G390)>=0,SUM(G382:G390),SUM(G382:G390)<0,\"Erreur\")","v":0}]
[null,"Boues industrielles",null,"Code géo municipal","Provenance par municipalité"]
[null,null,null,null,{"$f":"IF($D393<>\"\",VLOOKUP($D393,Feuil2!A$1:B$1289,2,FALSE),\"\")","v":""}]
[null,null,null,null,{"$f":"IF($D394<>\"\",VLOOKUP($D394,Feuil2!A$1:B$1289,2,FALSE),\"\")","v":""}]
[null,null,null,null,{"$f":"IF($D395<>\"\",VLOOKUP($D395,Feuil2!A$1:B$1289,2,FALSE),\"\")","v":""}]
[null,null,null,null,{"$f":"IF($D396<>\"\",VLOOKUP($D396,Feuil2!A$1:B$1289,2,FALSE),\"\")","v":""}]
[null,null,null,null,{"$f":"IF($D397<>\"\",VLOOKUP($D397,Feuil2!A$1:B$1289,2,FALSE),\"\")","v":""}]
[null,null,null,"Total",null,null,{"$f":"_xlfn.IFS(SUM(G393:G397)>=0,SUM(G393:G397),SUM(G393:G397)<0,\"Erreur\")","v":0}]
[null,"Autres boues\n(Spécifiez ci-dessous)\n",null,"Code géo municipal","Provenance par municipalité"]
[null,null,null,null,{"$f":"IF($D400<>\"\",VLOOKUP($D400,Feuil2!A$1:B$1289,2,FALSE),\"\")","v":""}]
[null,null,null,null,{"$f":"IF($D401<>\"\",VLOOKUP($D401,Feuil2!A$1:B$1289,2,FALSE),\"\")","v":""}]
[null,null,null,null,{"$f":"IF($D402<>\"\",VLOOKUP($D402,Feuil2!A$1:B$1289,2,FALSE),\"\")","v":""}]
[null,null,null,"Total",null,null,{"$f":"_xlfn.IFS(SUM(G400:G402)>=0,SUM(G400:G402),SUM(G400:G402)<0,\"Erreur\")","v":0}]
[null,null,null,"Total 3.2",null,null,{"$f":"G403+G391+G398+G380+G371+G364+G357","v":0}]
[]
[null,"4. Matières résiduelles utilisées pour le recouvrement"]
[]
[null,"4.1. Sols ou autres matières utilisées en RECOUVREMENT JOURNALIER ou pour la confection de chemins d'accès\nAttention! Cette section doit être remplie uniquement par les LET, les LEDCD et les LEET."]
[null,"Catégorie de matières",null,"Provenance par municipalité d'origine des matières collectées\nPour connaître le code géo de la municipalité, consultez le Répertoire des municipalités du MAMH :",null,null,"Quantité par municipalité"]
[null,null,null,"www.mamh.gouv.qc.ca/repertoire-des-municipalites/ ",null,null,"Poids (tonnes)"]
[null,"Sols propres",null,"Code géo municipal","Provenance par municipalité"]
[null,null,null,null,{"$f":"IF($D412<>\"\",VLOOKUP($D412,Feuil2!A$1:B$1289,2,FALSE),\"\")","v":""}]
[null,null,null,null,{"$f":"IF($D413<>\"\",VLOOKUP($D413,Feuil2!A$1:B$1289,2,FALSE),\"\")","v":""}]
[null,null,null,null,{"$f":"IF($D414<>\"\",VLOOKUP($D414,Feuil2!A$1:B$1289,2,FALSE),\"\")","v":""}]
[null,null,null,null,{"$f":"IF($D415<>\"\",VLOOKUP($D415,Feuil2!A$1:B$1289,2,FALSE),\"\")","v":""}]
[null,null,null,null,{"$f":"IF($D416<>\"\",VLOOKUP($D416,Feuil2!A$1:B$1289,2,FALSE),\"\")","v":""}]
[null,null,null,null,{"$f":"IF($D417<>\"\",VLOOKUP($D417,Feuil2!A$1:B$1289,2,FALSE),\"\")","v":""}]
[null,null,null,null,{"$f":"IF($D418<>\"\",VLOOKUP($D418,Feuil2!A$1:B$1289,2,FALSE),\"\")","v":""}]
[null,null,null,null,{"$f":"IF($D419<>\"\",VLOOKUP($D419,Feuil2!A$1:B$1289,2,FALSE),\"\")","v":""}]
[null,null,null,"Total",null,null,{"$f":"_xlfn.IFS(SUM(G412:G419)>=0,SUM(G412:G419),SUM(G412:G419)<0,\"Erreur\")","v":0}]
[null,"Sols contaminés\n(visés par le Règlement sur les redevances favorisant le traitement et la valorisation des sols contaminés excavés)",null,"Code géo municipal","Provenance par municipalité"]
[null,null,null,null,{"$f":"IF($D422<>\"\",VLOOKUP($D422,Feuil2!A$1:B$1289,2,FALSE),\"\")","v":""}]
[null,null,null,null,{"$f":"IF($D423<>\"\",VLOOKUP($D423,Feuil2!A$1:B$1289,2,FALSE),\"\")","v":""}]
[null,null,null,null,{"$f":"IF($D424<>\"\",VLOOKUP($D424,Feuil2!A$1:B$1289,2,FALSE),\"\")","v":""}]
[null,null,null,null,{"$f":"IF($D425<>\"\",VLOOKUP($D425,Feuil2!A$1:B$1289,2,FALSE),\"\")","v":""}]
[null,null,null,null,{"$f":"IF($D426<>\"\",VLOOKUP($D426,Feuil2!A$1:B$1289,2,FALSE),\"\")","v":""}]
[null,null,null,null,{"$f":"IF($D427<>\"\",VLOOKUP($D427,Feuil2!A$1:B$1289,2,FALSE),\"\")","v":""}]
[null,null,null,null,{"$f":"IF($D428<>\"\",VLOOKUP($D428,Feuil2!A$1:B$1289,2,FALSE),\"\")","v":""}]
[null,null,null,null,{"$f":"IF($D429<>\"\",VLOOKUP($D429,Feuil2!A$1:B$1289,2,FALSE),\"\")","v":""}]
[null,null,null,"Total",null,null,{"$f":"_xlfn.IFS(SUM(G422:G429)>=0,SUM(G422:G429),SUM(G422:G429)<0,\"Erreur\")","v":0}]
[null,"Résidus de déchiquetage\n de carcasses d'automobiles\n (« fluff ») ",null,"Code géo municipal","Provenance par municipalité"]
[]
[null,null,null,null,{"$f":"IF($D433<>\"\",VLOOKUP($D433,Feuil2!A$1:B$1289,2,FALSE),\"\")","v":""}]
[null,null,null,null,{"$f":"IF($D434<>\"\",VLOOKUP($D434,Feuil2!A$1:B$1289,2,FALSE),\"\")","v":""}]
[null,null,null,null,{"$f":"IF($D435<>\"\",VLOOKUP($D435,Feuil2!A$1:B$1289,2,FALSE),\"\")","v":""}]
[null,null,null,null,{"$f":"IF($D436<>\"\",VLOOKUP($D436,Feuil2!A$1:B$1289,2,FALSE),\"\")","v":""}]
[null,null,null,null,{"$f":"IF($D437<>\"\",VLOOKUP($D437,Feuil2!A$1:B$1289,2,FALSE),\"\")","v":""}]
[null,null,null,null,{"$f":"IF($D438<>\"\",VLOOKUP($D438,Feuil2!A$1:B$1289,2,FALSE),\"\")","v":""}]
[null,null,null,null,{"$f":"IF($D439<>\"\",VLOOKUP($D439,Feuil2!A$1:B$1289,2,FALSE),\"\")","v":""}]
[null,null,null,"Total",null,null,{"$f":"_xlfn.IFS(SUM(G432:G439)>=0,SUM(G432:G439),SUM(G432:G439)<0,\"Erreur\")","v":0}]
[null,"Résidus CRD « fins » de broyage et de tamisage (fines)",null,"Code géo municipal","Provenance par municipalité"]
[null,null,null,null,{"$f":"IF($D442<>\"\",VLOOKUP($D442,Feuil2!A$1:B$1289,2,FALSE),\"\")","v":""}]
[null,null,null,null,{"$f":"IF($D443<>\"\",VLOOKUP($D443,Feuil2!A$1:B$1289,2,FALSE),\"\")","v":""}]
[null,null,null,null,{"$f":"IF($D444<>\"\",VLOOKUP($D444,Feuil2!A$1:B$1289,2,FALSE),\"\")","v":""}]
[null,null,null,null,{"$f":"IF($D445<>\"\",VLOOKUP($D445,Feuil2!A$1:B$1289,2,FALSE),\"\")","v":""}]
[null,null,null,null,{"$f":"IF($D446<>\"\",VLOOKUP($D446,Feuil2!A$1:B$1289,2,FALSE),\"\")","v":""}]
[null,null,null,null,{"$f":"IF($D447<>\"\",VLOOKUP($D447,Feuil2!A$1:B$1289,2,FALSE),\"\")","v":""}]
[null,null,null,null,{"$f":"IF($D448<>\"\",VLOOKUP($D448,Feuil2!A$1:B$1289,2,FALSE),\"\")","v":""}]
[null,null,null,"Total",null,null,{"$f":"_xlfn.IFS(SUM(G442:G448)>=0,SUM(G442:G448),SUM(G442:G448)<0,\"Erreur\")","v":0}]
[null,"Autres résidus CRD  (bardeaux, briques, bois, granulats de béton, etc.)",null,"Code géo municipal","Provenance par municipalité"]
[null,null,null,null,{"$f":"IF($D451<>\"\",VLOOKUP($D451,Feuil2!A$1:B$1289,2,FALSE),\"\")","v":""}]
[null,null,null,null,{"$f":"IF($D452<>\"\",VLOOKUP($D452,Feuil2!A$1:B$1289,2,FALSE),\"\")","v":""}]
[null,null,null,null,{"$f":"IF($D453<>\"\",VLOOKUP($D453,Feuil2!A$1:B$1289,2,FALSE),\"\")","v":""}]
[null,null,null,null,{"$f":"IF($D454<>\"\",VLOOKUP($D454,Feuil2!A$1:B$1289,2,FALSE),\"\")","v":""}]
[null,null,null,null,{"$f":"IF($D455<>\"\",VLOOKUP($D455,Feuil2!A$1:B$1289,2,FALSE),\"\")","v":""}]
[null,null,null,null,{"$f":"IF($D456<>\"\",VLOOKUP($D456,Feuil2!A$1:B$1289,2,FALSE),\"\")","v":""}]
[null,null,null,null,{"$f":"IF($D457<>\"\",VLOOKUP($D457,Feuil2!A$1:B$1289,2,FALSE),\"\")","v":""}]
[null,null,null,"Total",null,null,{"$f":"_xlfn.IFS(SUM(G451:G457)>=0,SUM(G451:G457),SUM(G451:G457)<0,\"Erreur\")","v":0}]
[null,"Résidus d'incinération\n(cendres) \n",null,"Code géo municipal","Provenance par municipalité"]
[null,null,null,null,{"$f":"IF($D460<>\"\",VLOOKUP($D460,Feuil2!A$1:B$1289,2,FALSE),\"\")","v":""}]
[null,null,null,null,{"$f":"IF($D461<>\"\",VLOOKUP($D461,Feuil2!A$1:B$1289,2,FALSE),\"\")","v":""}]
[null,null,null,null,{"$f":"IF($D462<>\"\",VLOOKUP($D462,Feuil2!A$1:B$1289,2,FALSE),\"\")","v":""}]
[null,null,null,null,{"$f":"IF($D463<>\"\",VLOOKUP($D463,Feuil2!A$1:B$1289,2,FALSE),\"\")","v":""}]
[null,null,null,null,{"$f":"IF($D464<>\"\",VLOOKUP($D464,Feuil2!A$1:B$1289,2,FALSE),\"\")","v":""}]
[null,null,null,null,{"$f":"IF($D465<>\"\",VLOOKUP($D465,Feuil2!A$1:B$1289,2,FALSE),\"\")","v":""}]
[null,null,null,null,{"$f":"IF($D466<>\"\",VLOOKUP($D466,Feuil2!A$1:B$1289,2,FALSE),\"\")","v":""}]
[null,null,null,null,{"$f":"IF($D467<>\"\",VLOOKUP($D467,Feuil2!A$1:B$1289,2,FALSE),\"\")","v":""}]
[null,null,null,"Total",null,null,{"$f":"_xlfn.IFS(SUM(G460:G467)>=0,SUM(G460:G467),SUM(G460:G467)<0,\"Erreur\")","v":0}]
[null,"Autres\n(Spécifiez ci-dessous)\n",null,"Code géo municipal","Provenance par municipalité"]
[null,null,null,null,{"$f":"IF($D470<>\"\",VLOOKUP($D470,Feuil2!A$1:B$1289,2,FALSE),\"\")","v":""}]
[null,null,null,null,{"$f":"IF($D471<>\"\",VLOOKUP($D471,Feuil2!A$1:B$1289,2,FALSE),\"\")","v":""}]
[null,null,null,null,{"$f":"IF($D472<>\"\",VLOOKUP($D472,Feuil2!A$1:B$1289,2,FALSE),\"\")","v":""}]
[null,null,null,null,{"$f":"IF($D473<>\"\",VLOOKUP($D473,Feuil2!A$1:B$1289,2,FALSE),\"\")","v":""}]
[null,null,null,null,{"$f":"IF($D474<>\"\",VLOOKUP($D474,Feuil2!A$1:B$1289,2,FALSE),\"\")","v":""}]
[null,null,null,null,{"$f":"IF($D475<>\"\",VLOOKUP($D475,Feuil2!A$1:B$1289,2,FALSE),\"\")","v":""}]
[null,null,null,null,{"$f":"IF($D476<>\"\",VLOOKUP($D476,Feuil2!A$1:B$1289,2,FALSE),\"\")","v":""}]
[null,null,null,null,{"$f":"IF($D477<>\"\",VLOOKUP($D477,Feuil2!A$1:B$1289,2,FALSE),\"\")","v":""}]
[null,null,null,"Total",null,null,{"$f":"_xlfn.IFS(SUM(G470:G477)>=0,SUM(G470:G477),SUM(G470:G477)<0,\"Erreur\")","v":0}]
[null,null,null,"Total 4.1",null,null,{"$f":"G478+G449+G458+G440+G430+G420+G468","v":0}]
[]
[null,"4.2. Sols ou autres matières utilisées en RECOUVREMENT FINAL\nAttention! Cette section doit être remplie uniquement par les LET, les LEDCD et les LEET."]
[null,"Catégorie de matières",null,"Provenance par municipalité d'origine des matières collectées\nPour connaître le code géo de la municipalité, consultez le Répertoire des municipalités du MAMH :",null,null,"Quantité par municipalité"]
[null,null,null,"www.mamh.gouv.qc.ca/repertoire-des-municipalites/ ",null,null,"Poids (tonnes)"]
[null,"Sols propres\n",null,"Code géo municipal","Provenance par municipalité"]
[null,null,null,null,{"$f":"IF($D485<>\"\",VLOOKUP($D485,Feuil2!A$1:B$1289,2,FALSE),\"\")","v":""}]
[null,null,null,null,{"$f":"IF($D486<>\"\",VLOOKUP($D486,Feuil2!A$1:B$1289,2,FALSE),\"\")","v":""}]
[null,null,null,null,{"$f":"IF($D487<>\"\",VLOOKUP($D487,Feuil2!A$1:B$1289,2,FALSE),\"\")","v":""}]
[null,null,null,null,{"$f":"IF($D488<>\"\",VLOOKUP($D488,Feuil2!A$1:B$1289,2,FALSE),\"\")","v":""}]
[null,null,null,null,{"$f":"IF($D489<>\"\",VLOOKUP($D489,Feuil2!A$1:B$1289,2,FALSE),\"\")","v":""}]
[null,null,null,null,{"$f":"IF($D490<>\"\",VLOOKUP($D490,Feuil2!A$1:B$1289,2,FALSE),\"\")","v":""}]
[null,null,null,null,{"$f":"IF($D491<>\"\",VLOOKUP($D491,Feuil2!A$1:B$1289,2,FALSE),\"\")","v":""}]
[null,null,null,null,{"$f":"IF($D492<>\"\",VLOOKUP($D492,Feuil2!A$1:B$1289,2,FALSE),\"\")","v":""}]
[null,null,null,null,{"$f":"IF($D493<>\"\",VLOOKUP($D493,Feuil2!A$1:B$1289,2,FALSE),\"\")","v":""}]
[null,null,null,"Total",null,null,{"$f":"_xlfn.IFS(SUM(G485:G493)>=0,SUM(G485:G493),SUM(G485:G493)<0,\"Erreur\")","v":0}]
[null,"Sols contaminés\n(visés par le Règlement sur les redevances favorisant le traitement et la valorisation des sols contaminés excavés)\n",null,"Code géo municipal","Provenance par municipalité"]
[null,null,null,null,{"$f":"IF($D496<>\"\",VLOOKUP($D496,Feuil2!A$1:B$1289,2,FALSE),\"\")","v":""}]
[null,null,null,null,{"$f":"IF($D497<>\"\",VLOOKUP($D497,Feuil2!A$1:B$1289,2,FALSE),\"\")","v":""}]
[null,null,null,null,{"$f":"IF($D498<>\"\",VLOOKUP($D498,Feuil2!A$1:B$1289,2,FALSE),\"\")","v":""}]
[null,null,null,null,{"$f":"IF($D499<>\"\",VLOOKUP($D499,Feuil2!A$1:B$1289,2,FALSE),\"\")","v":""}]
[null,null,null,null,{"$f":"IF($D500<>\"\",VLOOKUP($D500,Feuil2!A$1:B$1289,2,FALSE),\"\")","v":""}]
[null,null,null,null,{"$f":"IF($D501<>\"\",VLOOKUP($D501,Feuil2!A$1:B$1289,2,FALSE),\"\")","v":""}]
[null,null,null,null,{"$f":"IF($D502<>\"\",VLOOKUP($D502,Feuil2!A$1:B$1289,2,FALSE),\"\")","v":""}]
[null,null,null,null,{"$f":"IF($D503<>\"\",VLOOKUP($D503,Feuil2!A$1:B$1289,2,FALSE),\"\")","v":""}]
[null,null,null,"Total",null,null,{"$f":"_xlfn.IFS(SUM(G496:G503)>=0,SUM(G496:G503),SUM(G496:G503)<0,\"Erreur\")","v":0}]
[null,"Résidus d'incinération\n(cendres) \n",null,"Code géo municipal","Provenance par municipalité"]
[null,null,null,null,{"$f":"IF($D506<>\"\",VLOOKUP($D506,Feuil2!A$1:B$1289,2,FALSE),\"\")","v":""}]
[null,null,null,null,{"$f":"IF($D507<>\"\",VLOOKUP($D507,Feuil2!A$1:B$1289,2,FALSE),\"\")","v":""}]
[null,null,null,null,{"$f":"IF($D508<>\"\",VLOOKUP($D508,Feuil2!A$1:B$1289,2,FALSE),\"\")","v":""}]
[null,null,null,null,{"$f":"IF($D509<>\"\",VLOOKUP($D509,Feuil2!A$1:B$1289,2,FALSE),\"\")","v":""}]
[null,null,null,null,{"$f":"IF($D510<>\"\",VLOOKUP($D510,Feuil2!A$1:B$1289,2,FALSE),\"\")","v":""}]
[null,null,null,null,{"$f":"IF($D511<>\"\",VLOOKUP($D511,Feuil2!A$1:B$1289,2,FALSE),\"\")","v":""}]
[null,null,null,null,{"$f":"IF($D512<>\"\",VLOOKUP($D512,Feuil2!A$1:B$1289,2,FALSE),\"\")","v":""}]
[null,null,null,null,{"$f":"IF($D513<>\"\",VLOOKUP($D513,Feuil2!A$1:B$1289,2,FALSE),\"\")","v":""}]
[null,null,null,"Total",null,null,{"$f":"_xlfn.IFS(SUM(G506:G513)>=0,SUM(G506:G513),SUM(G506:G513)<0,\"Erreur\")","v":0}]
[null,"Autres\n(Spécifiez ci-dessous)\n",null,"Code géo municipal","Provenance par municipalité"]
[null,null,null,null,{"$f":"IF($D516<>\"\",VLOOKUP($D516,Feuil2!A$1:B$1289,2,FALSE),\"\")","v":""}]
[null,null,null,null,{"$f":"IF($D517<>\"\",VLOOKUP($D517,Feuil2!A$1:B$1289,2,FALSE),\"\")","v":""}]
[null,null,null,null,{"$f":"IF($D518<>\"\",VLOOKUP($D518,Feuil2!A$1:B$1289,2,FALSE),\"\")","v":""}]
[null,null,null,null,{"$f":"IF($D519<>\"\",VLOOKUP($D519,Feuil2!A$1:B$1289,2,FALSE),\"\")","v":""}]
[null,null,null,null,{"$f":"IF($D520<>\"\",VLOOKUP($D520,Feuil2!A$1:B$1289,2,FALSE),\"\")","v":""}]
[null,null,null,null,{"$f":"IF($D521<>\"\",VLOOKUP($D521,Feuil2!A$1:B$1289,2,FALSE),\"\")","v":""}]
[null,null,null,null,{"$f":"IF($D522<>\"\",VLOOKUP($D522,Feuil2!A$1:B$1289,2,FALSE),\"\")","v":""}]
[null,null,null,null,{"$f":"IF($D523<>\"\",VLOOKUP($D523,Feuil2!A$1:B$1289,2,FALSE),\"\")","v":""}]
[null,null,null,"Total",null,null,{"$f":"_xlfn.IFS(SUM(G516:G523)>=0,SUM(G516:G523),SUM(G516:G523)<0,\"Erreur\")","v":0}]
[null,null,null,"Total 4.2",null,null,{"$f":"G524+G504+G494+G514","v":0}]
[]
[null,"5. Redevances totales à verser"]
[]
[null,"5.1 Total des matières résiduelles reçues pour élimination",null,null,null,null,"Total (tonnes)"]
[null,"Matières résiduelles reçues d'un centre de transfert de faible capacité (section 2.1)",null,null,null,"Total 2.1 (saisie automatique)",{"$f":"G64","v":0}]
[null,"Matières résiduelles reçues pour élimination, excluant les boues (section 3.1)",null,null,null,"Total 3.1 (saisie automatique)",{"$f":"G346","v":0}]
[null,"Boues reçues pour élimination (section 3.2)",null,null,null,"Total 3.2 (saisie automatique)",{"$f":"G404","v":0}]
[null,"Exclusion : Cendres générées par une installation d’incinération visée (incinérateurs seulement)",null,null,null,"Total (à inscrire, le cas échéant) "]
[null,"Exclusion : Matières résiduelles reçues pour élimination, mais récupérées et valorisées",null,null,null,"Total (à inscrire, le cas échéant) "]
[null,"Exclusion : Résidus miniers ou générés par un procédé de valorisation des résidus miniers enfouis",null,null,null,"Total (à inscrire, le cas échéant) "]
[null,null,null,null,"Tonnage total de matières éliminées assujetties aux redevances pour 2024",null,{"$f":"SUM(G530:G532)-G533-G534-G535","v":0}]
[null,"Montant total à verser pour les matières éliminées pour 2024 (32 $/tonne)",null,null,null,null,{"$f":"_xlfn.SWITCH(E13,\"LEET\",\"Aucune redevance\",\"Centre de transfert de faible capacité\",\"Aucune redevance\",\"LET\",G536*32,\"LEDCD\",G536*32,\"Centre de transfert\",G536*32,\"Incinérateur\",G536*32)","v":{"$error":"#N/A"}}]
[]
[null,"5.2. Total des matières utilisées en recouvrement journalier ou pour la confection de chemins d'accès",null,null,null,null,"Total (tonnes)"]
[null,"Sols ou autres matières utilisées en recouvrement journalier ou pour la confection de chemins d'accès",null,null,null,"Total 4.1 (saisie automatique)",{"$f":"G479","v":0}]
[null,"Exclusion : Sols propres ou contaminés destinés au recouvrement journalier",null,null,null,"Total - Sols (saisie automatique)",{"$f":"G420+G430","v":0}]
[null,"Exclusion : Résidus fins provenant du tamisage de résidus CRD (fines) destinés au recouvrement journalier",null,null,null,"Total - Fines (saisie automatique)",{"$f":"G449","v":0}]
[null,null,null,"Tonnage total des matières utilisées en recouvrement journalier assujetties à la redevance partielle en 2024",null,null,{"$f":"G540-(G541+G542)","v":0}]
[null,"Montant total à verser pour les matières utilisées en recouvrement journalier (10,67 $/tonne)",null,null,null,null,{"$f":"_xlfn.SWITCH(E13,\"LEET\",\"Aucune redevance\",\"Centre de transfert de faible capacité\",\"Aucune redevance\",\"LET\",G543*10.67,\"LEDCD\",G543*10.67,\"Centre de transfert\",G543*10.67,\"Incinérateur\",G543*10.67)","v":{"$error":"#N/A"}}]
[]
[null,"Total des redevances à payer en 2024"]
[null,"Total des redevances à verser en 2024 (5.1 + 5.2)",null,null,null,null,{"$f":"_xlfn.SWITCH(E13,\"LEET\",\"Aucune redevance\",\"Centre de transfert de faible capacité\",\"Aucune redevance\",\"LET\",G537+G544,\"LEDCD\",G537+G544,\"Centre de transfert\",G537+G544,\"Incinérateur\",G537+G544)","v":{"$error":"#N/A"}}]
[]
[]
[null,"6. Rapport du professionnel en exercice indépendant"]
[null,"Conformément à l'article 9 du Règlement sur les redevances exigibles pour l'élimination de matières résiduelles, veuillez joindre le rapport de l'auditeur indépendant sur les quantités de matières résiduelles admissibles aux redevances pour les LET, les LEDCD, les incinérateurs et les centres de transfert, excluant ceux de faible capacité (voir page 6 du Guide). Ce tonnage doit être présenté avec deux décimales."]
[]
[null,"7. Déclaration amendée (si nécessaire)"]
[null,"Si un écart entre les quantités déclarées chaque trimestre et la quantité inscrite dans la déclaration annuelle est observé, l’exploitant doit transmettre à l’équipe des redevances un formulaire de remise trimestrielle amendé pour chaque trimestre concerné et effectuer le paiement par transfert électronique de fonds, s'il y a lieu."]
[]
[null,"8. Documents à transmettre à votre direction régionale"]
[null,null,"Déclaration annuelle dûment remplie et signée, au format PDF"]
[null,null,"Mission d'assurance limitée selon la norme NCMC 3000"]
[null,null,"Rapport de mission de procédures convenues selon la norme NCSC 4400, si nécessaire"]
[]
[null,"9. Documents à transmettre à l'équipe des redevances"]
[null,"Ces documents doivent être envoyés à l'adresse redevances@environnement.gouv.qc.ca :"]
[null,null,"Déclaration annuelle dûment remplie, au format Excel, datée et signée"]
[null,null,"Formulaires de remise trimestrielle amendés, si nécessaire"]
[null,null,"Avis de dépôt de transfert électronique de fonds, si nécessaire"]
[null,"Si des modifications doivent être apportées à la déclaration annuelle en cours d'année, une version amendée doit être acheminée à l'équipe des redevances, aux formats Excel et PDF."]
[]
[null,"10. Déclaration de l'exploitant"]
[]
[null,"Personne autorisée à agir au nom de l'exploitant :"]
[null,"Prénom et nom :",null,null,"Fonction :"]
[]
[null,"Déclaration de l'exploitant :"]
[null,"Je, soussigné(e), certifie l'exactitude des renseignements contenus dans le présent formulaire :"]
[]
[]
[null,"Signature",null,null,null,null,"Date"]

{"sheet":"Feuil2","index":1,"n_rows":1285,"n_cols":3,"rows_kept":1285,"cut":false,"hidden":true,"merged":[]}
[99999,"(Autre - à spécifier)","M"]
[1023,"Les Îles-de-la-Madeleine (M)","M"]
[1042,"Grosse-Île (M)","V"]
[2005,"Percé (V)","M"]
[2010,"Sainte-Thérèse-de-Gaspé (M)","V"]
[2015,"Grande-Rivière (V)","V"]
[2028,"Chandler (V)","M"]
[2047,"Port-Daniel–Gascons (M)","NO"]
[2902,"Mont-Alexandre (NO)","V"]
[3005,"Gaspé (V)","CT"]
[3010,"Cloridorme (CT)","M"]
[3015,"Petite-Vallée (M)","M"]
[3020,"Grande-Vallée (M)","V"]
[3025,"Murdochville (V)","NO"]
[3902,"Rivière-Saint-Jean (NO)","NO"]
[3904,"Collines-du-Basque (NO)","M"]
[4005,"Sainte-Madeleine-de-la-Rivière-Madeleine (M)","M"]
[4010,"Saint-Maxime-du-Mont-Louis (M)","VL"]
[4015,"Mont-Saint-Pierre (VL)","M"]
[4020,"Rivière-à-Claude (M)","VL"]
[4025,"Marsoui (VL)","M"]
[4030,"La Martre (M)","V"]
[4037,"Sainte-Anne-des-Monts (V)","V"]
[4047,"Cap-Chat (V)","NO"]
[4902,"Mont-Albert (NO)","NO"]
[4904,"Coulée-des-Adolphe (NO)","M"]
[5010,"Shigawake (M)","CT"]
[5015,"Saint-Godefroi (CT)","M"]
[5020,"Hope Town (M)","CT"]
[5025,"Hope (CT)","V"]
[5032,"Paspébiac (V)","M"]
[5040,"New Carlisle (M)","V"]
[5045,"Bonaventure (V)","M"]
[5050,"Saint-Elzéar (M)","P"]
[5055,"Saint-Siméon (P)","M"]
[5060,"Caplan (M)","M"]
[5065,"Saint-Alphonse ((M) - Gaspésie-Îles-de-la-Madeleine)","V"]
[5070,"New Richmond (V)","M"]
[5077,"Cascapédia–Saint-Jules (M)","NO"]
[5902,"Rivière-Bonaventure (NO)","M"]
[6005,"Maria (M)","V"]
[6013,"Carleton-sur-Mer (V)","M"]
[6020,"Nouvelle (M)","M"]
[6025,"Escuminac (M)","M"]
[6030,"Pointe-à-la-Croix (M)","CT"]
[6035,"Ristigouche-Partie-Sud-Est (CT)","M"]
[6040,"Saint-André-de-Restigouche (M)","M"]
[6045,"Matapédia (M)","M"]
[6050,"Saint-Alexis-de-Matapédia (M)","M"]
[6055,"Saint-François-d'Assise (M)","M"]
[6060,"L'Ascension-de-Patapédia (M)","R"]
[6802,"Gesgapegiag (R)","R"]
[6804,"Listuguj (R)","NO"]
[6902,"Rivière-Nouvelle (NO)","NO"]
[6904,"Ruisseau-Ferguson (NO)","M"]
[7005,"Sainte-Marguerite-Marie (M)","M"]
[7010,"Sainte-Florence (M)","V"]
[7018,"Causapscal (V)","M"]
[7025,"Albertville (M)","P"]
[7030,"Saint-Léon-le-Grand (P)","P"]
[7035,"Saint-Zénon-du-Lac-Humqui (P)","P"]
[7040,"Sainte-Irène (P)","V"]
[7047,"Amqui (V)","M"]
[7057,"Lac-au-Saumon (M)","P"]
[7065,"Saint-Alexandre-des-Lacs (P)","P"]
[7070,"Saint-Tharcisius (P)","M"]
[7075,"Saint-Vianney (M)","M"]
[7080,"Val-Brillant (M)","M"]
[7085,"Sayabec (M)","P"]
[7090,"Saint-Cléophas ((P)- Bas-Saint-Laurent)","P"]
[7095,"Saint-Moïse (P)","VL"]
[7100,"Saint-Noël (VL)","P"]
[7105,"Saint-Damase ((P) - Bas-Saint-Laurent)","NO"]
[7902,"Routhierville (NO)","NO"]
[7904,"Rivière-Vaseuse (NO)","NO"]
[7906,"Rivière-Patapédia-Est (NO)","NO"]
[7908,"Lac-Casault (NO)","NO"]
[7910,"Ruisseau-des-Mineurs (NO)","NO"]
[7912,"Lac-Alfred (NO)","NO"]
[7914,"Lac-Matapédia (NO)","M"]
[8005,"Les Méchins (M)","P"]
[8010,"Saint-Jean-de-Cherbourg (P)","M"]
[8015,"Grosses-Roches (M)","M"]
[8023,"Sainte-Félicité (M)","P"]
[8030,"Saint-Adelme (P)","M"]
[8035,"Saint-René-de-Matane (M)","M"]
[8040,"Sainte-Paule (M)","V"]
[8053,"Matane (V)","P"]
[8065,"Saint-Léandre (P)","M"]
[8073,"Saint-Ulric (M)","M"]
[8080,"Baie-des-Sables (M)","NO"]
[8902,"Rivière-Bonjour (NO)","P"]
[9005,"La Rédemption (P)","P"]
[9010,"Saint-Charles-Garnier (P)","M"]
[9015,"Les Hauteurs (M)","P"]
[9020,"Sainte-Jeanne-d'Arc (P)","M"]
[9025,"Saint-Gabriel-de-Rimouski (M)","P"]
[9030,"Saint-Donat (P)","M"]
[9035,"Sainte-Angèle-de-Mérici (M)","M"]
[9040,"Padoue (M)","V"]
[9048,"Métis-sur-Mer (V)","P"]
[9055,"Saint-Octave-de-Métis (P)","M"]
[9060,"Grand-Métis (M)","VL"]
[9065,"Price (VL)","P"]
[9070,"Saint-Joseph-de-Lepage (P)","V"]
[9077,"Mont-Joli (V)","P"]
[9085,"Sainte-Flavie (P)","M"]
[9092,"Sainte-Luce (M)","NO"]
[9902,"Lac-des-Eaux-Mortes (NO)","NO"]
[9904,"Lac-à-la-Croix (NO)","M"]
[10005,"Esprit-Saint (M)","P"]
[10010,"La Trinité-des-Monts (P)","P"]
[10015,"Saint-Narcisse-de-Rimouski (P)","P"]
[10025,"Saint-Marcellin (P)","P"]
[10030,"Saint-Anaclet-de-Lessard (P)","V"]
[10043,"Rimouski (V)","P"]
[10060,"Saint-Valérien ((P) - Bas-Saint-Laurent)","P"]
[10070,"Saint-Fabien ((P) - Bas-Saint-Laurent)","P"]
[10075,"Saint-Eugène-de-Ladrière (P)","NO"]
[10902,"Lac-Huron (NO)","M"]
[11005,"Saint-Clément (M)","M"]
[11010,"Saint-Jean-de-Dieu (M)","M"]
[11015,"Sainte-Rita (M)","M"]
[11020,"Saint-Guy (M)","M"]
[11025,"Saint-Médard (M)","P"]
[11030,"Sainte-Françoise (P)","P"]
[11035,"Saint-Éloi (P)","V"]
[11040,"Trois-Pistoles (V)","M"]
[11045,"Notre-Dame-des-Neiges (M)","M"]
[11050,"Saint-Mathieu-de-Rioux (M)","M"]
[11055,"Saint-Simon-de-Rimouski ((M) - Bas-Saint-Laurent)","NO"]
[11902,"Lac-Boisbouscache (NO)","M"]
[12005,"Saint-Cyprien ((M) - Bas-Saint-Laurent)","M"]
[12010,"Saint-Hubert-de-Rivière-du-Loup (M)","M"]
[12015,"Saint-Antonin (M)","M"]
[12020,"Saint-Modeste (M)","M"]
[12025,"Saint-François-Xavier-de-Viger (M)","M"]
[12030,"Saint-Épiphane (M)","M"]
[12035,"Saint-Paul-de-la-Croix (M)","M"]
[12043,"L'Isle-Verte (M)","P"]
[12045,"Notre-Dame-des-Sept-Douleurs (P)","M"]
[12057,"Cacouna (M)","P"]
[12065,"Saint-Arsène (P)","V"]
[12072,"Rivière-du-Loup (V)","M"]
[12080,"Notre-Dame-du-Portage (M)","R"]
[12802,"Whitworth (R)","R"]
[12804,"Cacouna (R)","V"]
[13005,"Dégelis (V)","M"]
[13010,"Saint-Jean-de-la-Lande (M)","P"]
[13015,"Packington (P)","P"]
[13020,"Saint-Marc-du-Lac-Long (P)","M"]
[13025,"Rivière-Bleue (M)","P"]
[13030,"Saint-Eusèbe (P)","M"]
[13040,"Saint-Juste-du-Lac (M)","M"]
[13045,"Auclair (M)","M"]
[13050,"Lejeune (M)","M"]
[13055,"Biencourt (M)","M"]
[13060,"Lac-des-Aigles (M)","M"]
[13065,"Saint-Michel-du-Squatec (M)","V"]
[13073,"Témiscouata-sur-le-Lac (V)","M"]
[13075,"Saint-Pierre-de-Lamy (M)","P"]
[13080,"Saint-Louis-du-Ha! Ha! (P)","M"]
[13085,"Saint-Elzéar-de-Témiscouata (M)","M"]
[13090,"Saint-Honoré-de-Témiscouata (M)","V"]
[13095,"Pohénégamook (V)","M"]
[13100,"Saint-Athanase (M)","M"]
[14005,"Mont-Carmel (M)","M"]
[14010,"Saint-Bruno-de-Kamouraska (M)","V"]
[14018,"Saint-Pascal (V)","M"]
[14025,"Sainte-Hélène-de-Kamouraska (M)","P"]
[14030,"Saint-Joseph-de-Kamouraska (P)","M"]
[14035,"Saint-Alexandre-de-Kamouraska (M)","M"]
[14040,"Saint-André-de-Kamouraska ((M) - Bas-Saint-Laurent)","P"]
[14045,"Saint-Germain ((P) - Bas-Saint-Laurent)","M"]
[14050,"Kamouraska (M)","M"]
[14055,"Saint-Denis-De La Bouteillerie ((M) - Bas-Saint-Laurent)","P"]
[14060,"Saint-Philippe-de-Néri (P)","M"]
[14065,"Rivière-Ouelle (M)","M"]
[14070,"Saint-Pacôme (M)","M"]
[14075,"Saint-Gabriel-Lalemant (M)","M"]
[14080,"Saint-Onésime-d'Ixworth (M)","V"]
[14085,"La Pocatière (V)","P"]
[14090,"Sainte-Anne-de-la-Pocatière (P)","NO"]
[14902,"Picard (NO)","NO"]
[14904,"Petit-Lac-Sainte-Anne (NO)","M"]
[15005,"Saint-Irénée (M)","V"]
[15013,"La Malbaie (V)","M"]
[15025,"Notre-Dame-des-Monts (M)","M"]
[15030,"Saint-Aimé-des-Lacs (M)","V"]
[15035,"Clermont (V)","M"]
[15058,"Saint-Siméon (M)","M"]
[15065,"Baie-Sainte-Catherine (M)","NO"]
[15902,"Mont-Élie (NO)","NO"]
[15904,"Sagard (NO)","M"]
[16005,"Petite-Rivière-Saint-François (M)","V"]
[16013,"Baie-Saint-Paul (V)","M"]
[16023,"L'Isle-aux-Coudres (M)","M"]
[16048,"Les Éboulements (M)","P"]
[16050,"Saint-Hilarion (P)","P"]
[16055,"Saint-Urbain ((P) - Capitale-Nationale)","NO"]
[16902,"Lac-Pikauba (NO)","M"]
[17005,"Saint-Omer (M)","V"]
[17010,"Saint-Pamphile (V)","M"]
[17015,"Saint-Adalbert (M)","M"]
[17020,"Saint-Marcel ((M) - Chaudière-Appalaches)","M"]
[17025,"Sainte-Félicité (M)","M"]
[17030,"Sainte-Perpétue (M)","M"]
[17035,"Tourville (M)","M"]
[17040,"Saint-Damase-de-L'Islet (M)","P"]
[17045,"Saint-Cyrille-de-Lessard (P)","M"]
[17055,"Saint-Aubert (M)","P"]
[17060,"Sainte-Louise (P)","M"]
[17065,"Saint-Roch-des-Aulnaies (M)","M"]
[17070,"Saint-Jean-Port-Joli (M)","M"]
[17078,"L'Islet (M)","M"]
[18005,"Saint-Just-de-Bretenières (M)","M"]
[18010,"Lac-Frontière (M)","P"]
[18015,"Saint-Fabien-de-Panet (P)","M"]
[18020,"Sainte-Lucie-de-Beauregard (M)","M"]
[18025,"Sainte-Apolline-de-Patton (P)","M"]
[18030,"Saint-Paul-de-Montminy (M)","M"]
[18035,"Sainte-Euphémie-sur-Rivière-du-Sud (M)","M"]
[18040,"Notre-Dame-du-Rosaire (M)","M"]
[18045,"Cap-Saint-Ignace (M)","V"]
[18050,"Montmagny (V)","P"]
[18055,"Saint-Pierre-de-la-Rivière-du-Sud (P)","M"]
[18060,"Saint-François-de-la-Rivière-du-Sud (M)","M"]
[18065,"Berthier-sur-Mer (M)","P"]
[18070,"Saint-Antoine-de-l'Isle-aux-Grues (P)","P"]
[19005,"Saint-Philémon (P)","P"]
[19010,"Notre-Dame-Auxiliatrice-de-Buckland (P)","P"]
[19015,"Saint-Nazaire-de-Dorchester (P)","P"]
[19020,"Saint-Léon-de-Standon (P)","P"]
[19025,"Saint-Malachie (P)","P"]
[19030,"Saint-Damien-de-Buckland (P)","M"]
[19037,"Armagh (M)","M"]
[19045,"Saint-Nérée-de-Bellechasse (M)","M"]
[19050,"Saint-Lazare-de-Bellechasse (M)","M"]
[19055,"Sainte-Claire (M)","M"]
[19062,"Saint-Anselme (M)","M"]
[19068,"Saint-Henri ((M) - Chaudière-Appalaches)","M"]
[19070,"Honfleur (M)","M"]
[19075,"Saint-Gervais (M)","M"]
[19082,"Saint-Raphaël (M)","P"]
[19090,"La Durantaye (P)","M"]
[19097,"Saint-Charles-de-Bellechasse (M)","M"]
[19105,"Beaumont (M)","M"]
[19110,"Saint-Michel-de-Bellechasse (M)","M"]
[19117,"Saint-Vallier (M)","M"]
[20005,"Saint-François-de-l'Île-d'Orléans (M)","M"]
[20010,"Sainte-Famille-de-l'Île-d'Orléans (M)","M"]
[20015,"Saint-Jean-de-l'Île-d'Orléans (M)","M"]
[20020,"Saint-Laurent-de-l'Île-d'Orléans (M)","M"]
[20025,"Saint-Pierre-de-l'Île-d'Orléans (M)","VL"]
[20030,"Sainte-Pétronille (VL)","M"]
[21005,"Saint-Tite-des-Caps (M)","M"]
[21010,"Saint-Ferréol-les-Neiges (M)","P"]
[21015,"Saint-Louis-de-Gonzague-du-Cap-Tourmente (P)","P"]
[21020,"Saint-Joachim ((P) - Capitale-Nationale)","V"]
[21025,"Beaupré (V)","V"]
[21030,"Sainte-Anne-de-Beaupré (V)","V"]
[21035,"Château-Richer (V)","M"]
[21040,"L'Ange-Gardien ((M) - Capitale-Nationale)","M"]
[21045,"Boischatel (M)","NO"]
[21902,"Sault-au-Cochon (NO)","NO"]
[21904,"Lac-Jacques-Cartier (NO)","V"]
[22005,"Sainte-Catherine-de-la-Jacques-Cartier (V)","V"]
[22010,"Fossambault-sur-le-Lac (V)","V"]
[22015,"Lac-Saint-Joseph (V)","V"]
[22020,"Shannon (V)","M"]
[22025,"Saint-Gabriel-de-Valcartier (M)","V"]
[22030,"Lac-Delage (V)","CU"]
[22035,"Stoneham-et-Tewkesbury (CU)","M"]
[22040,"Lac-Beauport (M)","V"]
[22045,"Sainte-Brigitte-de-Laval (V)","NO"]
[22902,"Lac-Croche (NO)","P"]
[23015,"Notre-Dame-des-Anges (P)","V"]
[23027,"Québec (V)","V"]
[23057,"L'Ancienne-Lorette (V)","V"]
[23072,"Saint-Augustin-de-Desmaures (V)","R"]
[23802,"Wendake (R)","V"]
[25213,"Lévis (V)","M"]
[26005,"Frampton (M)","M"]
[26010,"Saints-Anges (M)","M"]
[26015,"Vallée-Jonction (M)","M"]
[26022,"Saint-Elzéar ((M) - Chaudière-Appalaches)","V"]
[26030,"Sainte-Marie ((V) - Chaudière-Appalaches)","P"]
[26035,"Sainte-Marguerite ((P) - Chaudière-Appalaches)","P"]
[26040,"Sainte-Hénédine (P)","M"]
[26048,"Scott (M)","M"]
[26055,"Saint-Bernard ((M) - Chaudière-Appalaches)","M"]
[26063,"Saint-Isidore ((M) - Chaudière-Appalaches)","M"]
[26070,"Saint-Lambert-de-Lauzon (M)","M"]
[27008,"Saint-Victor (M)","M"]
[27015,"Saint-Alfred (M)","V"]
[27028,"Beauceville (V)","P"]
[27035,"Saint-Odilon-de-Cranbourne (P)","V"]
[27043,"Saint-Joseph-de-Beauce (V)","M"]
[27050,"Saint-Joseph-des-Érables (M)","P"]
[27055,"Saint-Jules (P)","VL"]
[27060,"Tring-Jonction (VL)","P"]
[27065,"Saint-Frédéric (P)","P"]
[27070,"Saint-Séverin ((P) - Chaudière-Appalaches)","M"]
[28005,"Saint-Zacharie (M)","M"]
[28015,"Sainte-Aurélie (M)","M"]
[28020,"Saint-Prosper ((M) - Chaudière-Appalaches)","M"]
[28025,"Saint-Benjamin (M)","M"]
[28030,"Sainte-Rose-de-Watford (M)","M"]
[28035,"Saint-Louis-de-Gonzague (M)","P"]
[28040,"Saint-Cyprien ((P) - Chaudière-Appalaches)","M"]
[28045,"Sainte-Justine ((M)  - Chaudière-Appalaches)","M"]
[28053,"Lac-Etchemin (M)","M"]
[28060,"Saint-Luc-de-Bellechasse (M)","P"]
[28065,"Sainte-Sabine (P)","P"]
[28070,"Saint-Camille-de-Lellis (P)","M"]
[28075,"Saint-Magloire (M)","M"]
[29005,"Saint-Théophile (M)","M"]
[29013,"Saint-Gédéon-de-Beauce (M)","P"]
[29020,"Saint-Hilaire-de-Dorset (P)","M"]
[29027,"Courcelles-Saint-Évariste","M"]
[29030,"La Guadeloupe (VL)","M"]
[29038,"Saint-Honoré-de-Shenley (M)","P"]
[29045,"Saint-Martin (P)","P"]
[29050,"Saint-René ((P) - Chaudière-Appalaches)","M"]
[29057,"Saint-Côme–Linière (M)","M"]
[29065,"Saint-Philibert (M)","V"]
[29073,"Saint-Georges ((V) - Chaudière-Appalaches)","VL"]
[29095,"Lac-Poulin (VL)","M"]
[29100,"Saint-Benoît-Labre (M)","M"]
[29112,"Saint-Éphrem-de-Beauce (M)","P"]
[29120,"Notre-Dame-des-Pins (P)","M"]
[29125,"Saint-Simon-les-Mines (M)","P"]
[30005,"Saint-Augustin-de-Woburn (P)","M"]
[30010,"Notre-Dame-des-Bois (M)","M"]
[30015,"Val-Racine (M)","M"]
[30020,"Piopolis (M)","M"]
[30025,"Frontenac (M)","V"]
[30030,"Lac-Mégantic (V)","CT"]
[30035,"Marston (CT)","M"]
[30040,"Milan (M)","M"]
[30045,"Nantes (M)","M"]
[30050,"Sainte-Cécile-de-Whitton (M)","M"]
[30055,"Audet (M)","M"]
[30070,"Saint-Robert-Bellarmin (M)","M"]
[30072,"Saint-Ludger ((M) - Estrie)","M"]
[30080,"Lac-Drolet (M)","M"]
[30085,"Saint-Sébastien ((M) - Estrie)","M"]
[30095,"Lambton (M)","M"]
[30100,"Saint-Romain (M)","M"]
[30105,"Stornoway (M)","CT"]
[30110,"Stratford (CT)","M"]
[31008,"Beaulac-Garthby (M)","V"]
[31015,"Disraeli (V)","P"]
[31020,"Disraeli (P)","P"]
[31025,"Saint-Jacques-le-Majeur-de-Wolfestown (P)","M"]
[31030,"Saint-Fortunat (M)","M"]
[31035,"Saint-Julien (M)","M"]
[31040,"Irlande (M)","M"]
[31045,"Saint-Joseph-de-Coleraine (M)","P"]
[31050,"Sainte-Praxède (P)","M"]
[31056,"Adstock (M)","M"]
[31060,"Sainte-Clotilde-de-Beauce (M)","V"]
[31084,"Thetford Mines (V)","M"]
[31095,"Saint-Adrien-d'Irlande (M)","M"]
[31100,"Saint-Jean-de-Brébeuf (M)","M"]
[31105,"Kinnear's Mills (M)","M"]
[31122,"East Broughton (M)","P"]
[31130,"Sacré-Coeur-de-Jésus (P)","M"]
[31135,"Saint-Pierre-de-Broughton (M)","M"]
[31140,"Saint-Jacques-de-Leeds (M)","M"]
[32013,"Saint-Ferdinand (M)","M"]
[32023,"Sainte-Sophie-d'Halifax (M)","V"]
[32033,"Princeville (V)","V"]
[32043,"Plessisville (V)","V"]
[32050,"Saint-Pierre-Baptiste (P)","M"]
[32058,"Inverness (M)","M"]
[32065,"Lyster (M)","M"]
[32072,"Laurierville (M)","P"]
[32080,"Notre-Dame-de-Lourdes (P)","M"]
[32085,"Villeroy (M)","M"]
[33007,"Saint-Sylvestre (M)","M"]
[33017,"Sainte-Agathe-de-Lotbinière (M)","M"]
[33025,"Saint-Patrice-de-Beaurivage (M)","P"]
[33030,"Saint-Narcisse-de-Beaurivage (P)","M"]
[33035,"Saint-Gilles (M)","M"]
[33040,"Dosquet (M)","M"]
[33045,"Saint-Agapit (M)","M"]
[33052,"Saint-Flavien (M)","VL"]
[33060,"Laurier-Station (VL)","M"]
[33065,"Saint-Janvier-de-Joly (M)","M"]
[33070,"Val-Alain (M)","P"]
[33080,"Saint-Édouard-de-Lotbinière (P)","P"]
[33085,"Notre-Dame-du-Sacré-Coeur-d'Issoudun (P)","M"]
[33090,"Saint-Apollinaire (M)","M"]
[33095,"Saint-Antoine-de-Tilly (M)","M"]
[33102,"Sainte-Croix (M)","M"]
[33115,"Lotbinière (M)","M"]
[33123,"Leclercville (M)","V"]
[34007,"Neuville (V)","V"]
[34017,"Pont-Rouge (V)","V"]
[34025,"Donnacona (V)","V"]
[34030,"Cap-Santé (V)","V"]
[34038,"Saint-Basile ((V) - Capitale-Nationale)","V"]
[34048,"Portneuf (V)","M"]
[34058,"Deschambault-Grondines (M)","P"]
[34060,"Saint-Gilbert (P)","V"]
[34065,"Saint-Marc-des-Carrières (V)","M"]
[34078,"Saint-Casimir (M)","P"]
[34085,"Saint-Thuribe (P)","M"]
[34090,"Saint-Ubalde (M)","M"]
[34097,"Saint-Alban (M)","M"]
[34105,"Sainte-Christine-d'Auvergne (M)","M"]
[34115,"Saint-Léonard-de-Portneuf (M)","V"]
[34120,"Lac-Sergent (V)","V"]
[34128,"Saint-Raymond (V)","M"]
[34135,"Rivière-à-Pierre (M)","NO"]
[34902,"Lac-Blanc (NO)","NO"]
[34904,"Linton (NO)","NO"]
[34906,"Lac-Lapeyrère (NO)","M"]
[35005,"Notre-Dame-de-Montauban (M)","P"]
[35010,"Lac-aux-Sables (P)","P"]
[35015,"Saint-Adelphe (P)","P"]
[35020,"Saint-Séverin ((P) - Mauricie)","V"]
[35027,"Saint-Tite ((V) - Mauricie)","P"]
[35035,"Hérouxville (P)","VL"]
[35040,"Grandes-Piles (VL)","P"]
[35045,"Saint-Roch-de-Mékinac (P)","M"]
[35050,"Sainte-Thècle (M)","M"]
[35055,"Trois-Rives (M)","NO"]
[35902,"Lac-Masketsi (NO)","NO"]
[35904,"Lac-Normand (NO)","NO"]
[35906,"Rivière-de-la-Savane (NO)","NO"]
[35908,"Lac-Boulé (NO)","V"]
[36033,"Shawinigan (V)","V"]
[37067,"Trois-Rivières (V)","M"]
[37205,"Sainte-Anne-de-la-Pérade (M)","M"]
[37210,"Batiscan (M)","P"]
[37215,"Sainte-Geneviève-de-Batiscan (P)","M"]
[37220,"Champlain (M)","M"]
[37225,"Saint-Luc-de-Vincennes (M)","P"]
[37230,"Saint-Maurice (P)","P"]
[37235,"Notre-Dame-du-Mont-Carmel (P)","P"]
[37240,"Saint-Narcisse ((P) - Mauricie)","M"]
[37245,"Saint-Stanislas ((M) - Mauricie)","M"]
[37250,"Saint-Prosper-de-Champlain (M)","M"]
[38005,"Saint-Sylvère (M)","V"]
[38010,"Bécancour (V)","M"]
[38015,"Sainte-Marie-de-Blandford (M)","M"]
[38020,"Lemieux (M)","M"]
[38028,"Manseau (M)","M"]
[38035,"Sainte-Françoise (M)","P"]
[38040,"Sainte-Sophie-de-Lévrard (P)","M"]
[38047,"Fortierville (M)","P"]
[38055,"Parisville (P)","P"]
[38060,"Sainte-Cécile-de-Lévrard (P)","M"]
[38065,"Saint-Pierre-les-Becquets (M)","M"]
[38070,"Deschaillons-sur-Saint-Laurent (M)","R"]
[38802,"Wôlinak (R)","P"]
[39005,"Saints-Martyrs-Canadiens (P)","CT"]
[39010,"Ham-Nord (CT)","M"]
[39015,"Notre-Dame-de-Ham (M)","M"]
[39020,"Saint-Rémi-de-Tingwick (M)","M"]
[39025,"Tingwick (M)","M"]
[39030,"Chesterville (M)","M"]
[39035,"Sainte-Hélène-de-Chester (M)","M"]
[39043,"Saint-Norbert-d'Arthabaska (M)","P"]
[39060,"Saint-Christophe-d'Arthabaska (P)","V"]
[39062,"Victoriaville (V)","V"]
[39077,"Warwick (V)","M"]
[39085,"Saint-Albert (M)","M"]
[39090,"Sainte-Élizabeth-de-Warwick (M)","V"]
[39097,"Kingsey Falls (V)","P"]
[39105,"Sainte-Séraphine (P)","M"]
[39117,"Sainte-Clotilde-de-Horton (M)","M"]
[39130,"Saint-Samuel (M)","M"]
[39135,"Saint-Valère (M)","P"]
[39145,"Saint-Rosaire (P)","V"]
[39152,"Daveluyville (V)","M"]
[39165,"Maddington Falls (M)","M"]
[39170,"Saint-Louis-de-Blandford (M)","M"]
[40005,"Ham-Sud (M)","M"]
[40010,"Saint-Adrien ((M) - Estrie)","M"]
[40017,"Wotton (M)","CT"]
[40025,"Saint-Camille ((CT) - Estrie)","M"]
[40032,"Saint-Georges-de-Windsor (M)","V"]
[40043,"Val-des-Sources (V)","V"]
[40047,"Danville (V)","M"]
[41012,"Saint-Isidore-de-Clifton (M)","M"]
[41020,"Chartierville (M)","M"]
[41027,"La Patrie (M)","M"]
[41037,"Newport (M)","V"]
[41038,"Cookshire-Eaton (V)","M"]
[41055,"Ascot Corner (M)","V"]
[41060,"East Angus (V)","CT"]
[41065,"Westbury (CT)","M"]
[41070,"Bury (M)","CT"]
[41075,"Hampden (CT)","V"]
[41080,"Scotstown (V)","CT"]
[41085,"Lingwick (CT)","M"]
[41098,"Weedon (M)","M"]
[41117,"Dudswell (M)","M"]
[42005,"Stoke (M)","M"]
[42020,"Saint-François-Xavier-de-Brompton (M)","M"]
[42025,"Saint-Denis-de-Brompton (M)","M"]
[42032,"Racine (M)","M"]
[42040,"Bonsecours (M)","VL"]
[42045,"Lawrenceville (VL)","M"]
[42050,"Sainte-Anne-de-la-Rochelle (M)","V"]
[42055,"Valcourt (V)","CT"]
[42060,"Valcourt (CT)","M"]
[42065,"Maricourt (M)","VL"]
[42070,"Kingsbury (VL)","CT"]
[42075,"Melbourne (CT)","M"]
[42078,"Ulverton (M)","V"]
[42088,"Windsor (V)","M"]
[42095,"Val-Joli (M)","V"]
[42098,"Richmond (V)","M"]
[42100,"Saint-Claude (M)","CT"]
[42110,"Cleveland (CT)","V"]
[43027,"Sherbrooke (V)","M"]
[44003,"Saint-Malo (M)","M"]
[44005,"Saint-Venant-de-Paquette (M)","M"]
[44010,"East Hereford (M)","M"]
[44015,"Saint-Herménégilde (M)","M"]
[44023,"Dixville (M)","V"]
[44037,"Coaticook (V)","M"]
[44045,"Barnston-Ouest (M)","M"]
[44050,"Stanstead-Est (M)","CT"]
[44055,"Sainte-Edwidge-de-Clifton (CT)","M"]
[44060,"Martinville (M)","M"]
[44071,"Compton (M)","V"]
[44080,"Waterville (V)","V"]
[45008,"Stanstead (V)","M"]
[45020,"Ogden (M)","CT"]
[45025,"Stanstead (CT)","CT"]
[45030,"Potton (CT)","VL"]
[45035,"Ayer's Cliff (VL)","M"]
[45043,"Hatley (M)","VL"]
[45050,"North Hatley (VL)","CT"]
[45055,"Hatley (CT)","M"]
[45060,"Sainte-Catherine-de-Hatley (M)","V"]
[45072,"Magog (V)","M"]
[45080,"Saint-Benoît-du-Lac (M)","M"]
[45085,"Austin (M)","M"]
[45093,"Eastman (M)","M"]
[45095,"Bolton-Est (M)","M"]
[45100,"Saint-Étienne-de-Bolton (M)","VL"]
[45105,"Stukely-Sud (VL)","CT"]
[45115,"Orford (CT)","VL"]
[46005,"Abercorn (VL)","M"]
[46010,"Frelighsburg (M)","M"]
[46017,"Saint-Armand (M)","M"]
[46025,"Pike River (M)","M"]
[46030,"Stanbridge Station (M)","V"]
[46035,"Bedford (V)","CT"]
[46040,"Bedford (CT)","M"]
[46045,"Stanbridge East (M)","V"]
[46050,"Dunham (V)","V"]
[46058,"Sutton (V)","M"]
[46065,"Bolton-Ouest (M)","VL"]
[46070,"Brome (VL)","V"]
[46075,"Lac-Brome (V)","V"]
[46078,"Bromont (V)","V"]
[46080,"Cowansville (V)","M"]
[46085,"East Farnham (M)","M"]
[46090,"Brigham (M)","M"]
[46095,"Saint-Ignace-de-Stanbridge (M)","M"]
[46100,"Notre-Dame-de-Stanbridge (M)","M"]
[46105,"Sainte-Sabine (M)","V"]
[46112,"Farnham (V)","M"]
[47010,"Saint-Alphonse-de-Granby (M)","V"]
[47017,"Granby (V)","V"]
[47025,"Waterloo (V)","VL"]
[47030,"Warden (VL)","CT"]
[47035,"Shefford (CT)","M"]
[47040,"Saint-Joachim-de-Shefford (M)","M"]
[47047,"Roxton Pond (M)","M"]
[47055,"Sainte-Cécile-de-Milton (M)","M"]
[48005,"Béthanie (M)","VL"]
[48010,"Roxton Falls (VL)","CT"]
[48015,"Roxton (CT)","P"]
[48020,"Sainte-Christine ((P) - Montérégie)","V"]
[48028,"Acton Vale (V)","M"]
[48038,"Upton (M)","M"]
[48045,"Saint-Théodore-d'Acton (M)","P"]
[48050,"Saint-Nazaire-d'Acton (P)","M"]
[49005,"Saint-Félix-de-Kingsey (M)","M"]
[49015,"Durham-Sud (M)","M"]
[49020,"Lefebvre (M)","M"]
[49025,"L'Avenir (M)","M"]
[49030,"Saint-Lucien (M)","M"]
[49040,"Wickham (M)","M"]
[49048,"Saint-Germain-de-Grantham (M)","V"]
[49058,"Drummondville (V)","M"]
[49070,"Saint-Cyrille-de-Wendover (M)","VL"]
[49075,"Notre-Dame-du-Bon-Conseil (VL)","P"]
[49080,"Notre-Dame-du-Bon-Conseil (P)","P"]
[49085,"Sainte-Brigitte-des-Saults (P)","P"]
[49095,"Saint-Majorique-de-Grantham (P)","P"]
[49100,"Saint-Edmond-de-Grantham (P)","M"]
[49105,"Saint-Eugène ((M) - Centre-du-Québec)","M"]
[49113,"Saint-Guillaume ((M) - Centre-du-Québec)","M"]
[49125,"Saint-Bonaventure (M)","P"]
[49130,"Saint-Pie-de-Guire (P)","M"]
[50005,"Sainte-Eulalie (M)","M"]
[50013,"Aston-Jonction (M)","M"]
[50023,"Saint-Wenceslas (M)","VL"]
[50030,"Saint-Célestin (VL)","M"]
[50035,"Saint-Célestin (M)","M"]
[50042,"Saint-Léonard-d'Aston (M)","P"]
[50050,"Sainte-Perpétue ((P) - Centre-du-Québec)","M"]
[50057,"Sainte-Monique ((M) - Centre-du-Québec)","M"]
[50065,"Grand-Saint-Esprit (M)","V"]
[50072,"Nicolet (V)","M"]
[50085,"La Visitation-de-Yamaska (M)","P"]
[50090,"Saint-Zéphirin-de-Courval (P)","P"]
[50095,"Saint-Elphège (P)","M"]
[50100,"Baie-du-Febvre (M)","M"]
[50113,"Pierreville (M)","M"]
[50128,"Saint-François-du-Lac (M)","R"]
[50802,"Odanak (R)","M"]
[51008,"Maskinongé (M)","V"]
[51015,"Louiseville (V)","M"]
[51020,"Yamachiche (M)","P"]
[51025,"Saint-Barnabé (P)","P"]
[51030,"Saint-Sévère (P)","P"]
[51035,"Saint-Léon-le-Grand (P)","M"]
[51040,"Sainte-Ursule (M)","M"]
[51045,"Saint-Justin (M)","M"]
[51050,"Saint-Édouard-de-Maskinongé (M)","M"]
[51055,"Sainte-Angèle-de-Prémont (M)","M"]
[51060,"Saint-Paulin (M)","P"]
[51065,"Saint-Alexis-des-Monts (P)","M"]
[51070,"Saint-Mathieu-du-Parc (M)","M"]
[51075,"Saint-Élie-de-Caxton (M)","M"]
[51080,"Charette (M)","M"]
[51085,"Saint-Boniface (M)","P"]
[51090,"Saint-Étienne-des-Grès (P)","V"]
[52007,"Lavaltrie (V)","M"]
[52017,"Lanoraie (M)","M"]
[52030,"Sainte-Élisabeth ((M) - Lanaudière)","V"]
[52035,"Berthierville (V)","M"]
[52040,"Sainte-Geneviève-de-Berthier (M)","M"]
[52045,"Saint-Ignace-de-Loyola (M)","M"]
[52050,"La Visitation-de-l'Île-Dupas (M)","P"]
[52055,"Saint-Barthélemy (P)","M"]
[52062,"Saint-Cuthbert (M)","P"]
[52070,"Saint-Norbert ((P) - Lanaudière)","M"]
[52075,"Saint-Cléophas-de-Brandon (M)","V"]
[52080,"Saint-Gabriel (V)","M"]
[52085,"Saint-Gabriel-de-Brandon (M)","P"]
[52090,"Saint-Didace (P)","M"]
[52095,"Mandeville (M)","M"]
[53005,"Saint-David ((M) - Montérégie)","VL"]
[53010,"Massueville (VL)","M"]
[53015,"Saint-Aimé ((M)- Montérégie)","M"]
[53020,"Saint-Robert ((M) - Montérégie)","M"]
[53025,"Sainte-Victoire-de-Sorel (M)","V"]
[53032,"Saint-Ours (V)","M"]
[53040,"Saint-Roch-de-Richelieu (M)","V"]
[53050,"Saint-Joseph-de-Sorel (V)","V"]
[53052,"Sorel-Tracy (V)","M"]
[53065,"Sainte-Anne-de-Sorel (M)","M"]
[53072,"Yamaska (M)","P"]
[53085,"Saint-Gérard-Majella (P)","V"]
[54008,"Saint-Pie ((V) - Montérégie)","M"]
[54017,"Saint-Damase ((M) - Montérégie)","VL"]
[54025,"Sainte-Madeleine ((VL) - Montérégie)","P"]
[54030,"Sainte-Marie-Madeleine (P)","M"]
[54035,"La Présentation (M)","V"]
[54048,"Saint-Hyacinthe (V)","M"]
[54060,"Saint-Dominique ((M) - Montérégie)","M"]
[54065,"Saint-Valérien-de-Milton (M)","M"]
[54072,"Saint-Liboire (M)","M"]
[54090,"Saint-Simon ((M) - Montérégie)","M"]
[54095,"Sainte-Hélène-de-Bagot (M)","M"]
[54100,"Saint-Hugues (M)","M"]
[54105,"Saint-Barnabé-Sud (M)","M"]
[54110,"Saint-Jude (M)","M"]
[54115,"Saint-Bernard-de-Michaudville (M)","M"]
[54120,"Saint-Louis ((M) - Montérégie)","M"]
[54125,"Saint-Marcel-de-Richelieu (M)","M"]
[55008,"Ange-Gardien (M)","M"]
[55015,"Saint-Paul-d'Abbotsford (M)","V"]
[55023,"Saint-Césaire (V)","M"]
[55030,"Sainte-Angèle-de-Monnoir (M)","M"]
[55037,"Rougemont (M)","V"]
[55048,"Marieville (V)","V"]
[55057,"Richelieu (V)","M"]
[55065,"Saint-Mathias-sur-Richelieu (M)","M"]
[56005,"Venise-en-Québec (M)","M"]
[56010,"Saint-Georges-de-Clarenceville (M)","M"]
[56015,"Noyan (M)","M"]
[56023,"Lacolle (M)","M"]
[56030,"Saint-Valentin (M)","M"]
[56035,"Saint-Paul-de-l'Île-aux-Noix (M)","M"]
[56042,"Henryville (M)","M"]
[56050,"Saint-Sébastien ((M) - Montérégie)","M"]
[56055,"Saint-Alexandre ((M) - Montérégie)","P"]
[56060,"Sainte-Anne-de-Sabrevois (P)","M"]
[56065,"Saint-Blaise-sur-Richelieu (M)","V"]
[56083,"Saint-Jean-sur-Richelieu (V)","M"]
[56097,"Mont-Saint-Grégoire (M)","M"]
[56105,"Sainte-Brigide-d'Iberville (M)","V"]
[57005,"Chambly (V)","V"]
[57010,"Carignan (V)","V"]
[57020,"Saint-Basile-le-Grand (V)","M"]
[57025,"McMasterville (M)","V"]
[57030,"Otterburn Park (V)","M"]
[57033,"Saint-Jean-Baptiste (M)","V"]
[57035,"Mont-Saint-Hilaire (V)","V"]
[57040,"Beloeil (V)","M"]
[57045,"Saint-Mathieu-de-Beloeil (M)","M"]
[57050,"Saint-Marc-sur-Richelieu (M)","M"]
[57057,"Saint-Charles-sur-Richelieu (M)","M"]
[57068,"Saint-Denis-sur-Richelieu (M)","M"]
[57075,"Saint-Antoine-sur-Richelieu (M)","V"]
[58007,"Brossard (V)","V"]
[58012,"Saint-Lambert ((V) - Montérégie)","V"]
[58033,"Boucherville (V)","V"]
[58037,"Saint-Bruno-de-Montarville (V)","V"]
[58227,"Longueuil (V)","V"]
[59010,"Sainte-Julie (V)","V"]
[59015,"Saint-Amable (V)","V"]
[59020,"Varennes (V)","M"]
[59025,"Verchères (M)","M"]
[59030,"Calixa-Lavallée (M)","V"]
[59035,"Contrecoeur (V)","V"]
[60005,"Charlemagne (V)","V"]
[60013,"Repentigny (V)","P"]
[60020,"Saint-Sulpice (P)","V"]
[60028,"L'Assomption (V)","V"]
[60037,"L'Épiphanie (V)","M"]
[61005,"Saint-Paul ((M) - Lanaudière)","M"]
[61013,"Crabtree (M)","VL"]
[61020,"Saint-Pierre ((VL) - Lanaudière)","V"]
[61025,"Joliette (V)","M"]
[61027,"Saint-Thomas ((M) - Lanaudière)","V"]
[61030,"Notre-Dame-des-Prairies (V)","V"]
[61035,"Saint-Charles-Borromée (V)","M"]
[61040,"Saint-Ambroise-de-Kildare (M)","M"]
[61045,"Notre-Dame-de-Lourdes (M)","M"]
[61050,"Sainte-Mélanie (M)","M"]
[62007,"Saint-Félix-de-Valois (M)","M"]
[62015,"Saint-Jean-de-Matha (M)","M"]
[62020,"Sainte-Béatrix (M)","M"]
[62025,"Saint-Alphonse-Rodriguez (M)","M"]
[62030,"Sainte-Marcelline-de-Kildare (M)","M"]
[62037,"Rawdon (M)","M"]
[62047,"Chertsey (M)","M"]
[62053,"Entrelacs (M)","M"]
[62055,"Notre-Dame-de-la-Merci (M)","M"]
[62060,"Saint-Donat (M)","M"]
[62065,"Saint-Côme ((M) - Lanaudière)","M"]
[62070,"Sainte-Émélie-de-l'Énergie (M)","P"]
[62075,"Saint-Damien ((P) - Lanaudière)","M"]
[62080,"Saint-Zénon ((M) - Lanaudière)","M"]
[62085,"Saint-Michel-des-Saints (M)","R"]
[62802,"Manawan (R)","NO"]
[62902,"Lac-Minaki (NO)","NO"]
[62904,"Lac-Devenyns (NO)","NO"]
[62906,"Baie-de-la-Bouteille (NO)","NO"]
[62908,"Lac-Matawin (NO)","NO"]
[62910,"Lac-Legendre (NO)","NO"]
[62912,"Saint-Guillaume-Nord (NO)","NO"]
[62914,"Lac-des-Dix-Milles (NO)","NO"]
[62916,"Lac-Santé (NO)","NO"]
[62918,"Baie-Obaoca (NO)","NO"]
[62919,"Lac-Cabasta (NO)","NO"]
[62920,"Baie-Atibenne (NO)","NO"]
[62922,"Lac-du-Taureau (NO)","M"]
[63005,"Sainte-Marie-Salomé (M)","M"]
[63013,"Saint-Jacques ((M) - Lanaudière)","M"]
[63023,"Saint-Alexis (M)","M"]
[63030,"Saint-Esprit (M)","M"]
[63035,"Saint-Roch-de-l'Achigan (M)","M"]
[63040,"Saint-Roch-Ouest (M)","V"]
[63048,"Saint-Lin–Laurentides (V)","M"]
[63055,"Saint-Calixte (M)","M"]
[63060,"Sainte-Julienne (M)","M"]
[63065,"Saint-Liguori (M)","V"]
[64008,"Terrebonne (V)","V"]
[64015,"Mascouche (V)","V"]
[65005,"Laval (V)","V"]
[66007,"Montréal-Est (V)","V"]
[66023,"Montréal (V)","V"]
[66032,"Westmount (V)","V"]
[66047,"Montréal-Ouest (V)","V"]
[66058,"Côte-Saint-Luc (V)","V"]
[66062,"Hampstead (V)","V"]
[66072,"Mont-Royal (V)","V"]
[66087,"Dorval (V)","V"]
[66092,"L'Île-Dorval (V)","V"]
[66097,"Pointe-Claire (V)","V"]
[66102,"Kirkland (V)","V"]
[66107,"Beaconsfield (V)","V"]
[66112,"Baie-D'Urfé (V)","V"]
[66117,"Sainte-Anne-de-Bellevue (V)","VL"]
[66127,"Senneville (VL)","V"]
[66142,"Dollard-Des Ormeaux (V)","M"]
[67005,"Saint-Mathieu ((M) - Montérégie)","V"]
[67010,"Saint-Philippe ((V) - Montérégie)","V"]
[67015,"La Prairie (V)","V"]
[67020,"Candiac (V)","V"]
[67025,"Delson (V)","V"]
[67030,"Sainte-Catherine ((V) - Montérégie)","V"]
[67035,"Saint-Constant (V)","P"]
[67040,"Saint-Isidore ((P) - Montérégie)","V"]
[67045,"Mercier (V)","V"]
[67050,"Châteauguay (V)","V"]
[67055,"Léry (V)","R"]
[67802,"Kahnawake (R)","M"]
[68005,"Saint-Bernard-de-Lacolle (M)","VL"]
[68010,"Hemmingford (VL)","CT"]
[68015,"Hemmingford (CT)","M"]
[68020,"Sainte-Clotilde ((M) - Montérégie)","M"]
[68025,"Saint-Patrice-de-Sherrington (M)","M"]
[68030,"Napierville (M)","M"]
[68035,"Saint-Cyprien-de-Napierville (M)","M"]
[68040,"Saint-Jacques-le-Mineur (M)","M"]
[68045,"Saint-Édouard ((M) - Montérégie)","M"]
[68050,"Saint-Michel ((M) - Montérégie)","V"]
[68055,"Saint-Rémi ((V) - Montérégie)","CT"]
[69005,"Havelock (CT)","M"]
[69010,"Franklin (M)","M"]
[69017,"Saint-Chrysostome (M)","M"]
[69025,"Howick (M)","P"]
[69030,"Très-Saint-Sacrement (P)","M"]
[69037,"Ormstown (M)","M"]
[69045,"Hinchinbrooke (M)","M"]
[69050,"Elgin (M)","V"]
[69055,"Huntingdon (V)","CT"]
[69060,"Godmanchester (CT)","M"]
[69065,"Sainte-Barbe (M)","M"]
[69070,"Saint-Anicet (M)","CT"]
[69075,"Dundee (CT)","R"]
[69802,"Akwesasne (partie) (R)","M"]
[70005,"Saint-Urbain-Premier (M)","M"]
[70012,"Sainte-Martine (M)","V"]
[70022,"Beauharnois (V)","M"]
[70030,"Saint-Étienne-de-Beauharnois (M)","P"]
[70035,"Saint-Louis-de-Gonzague (P)","M"]
[70040,"Saint-Stanislas-de-Kostka (M)","V"]
[70052,"Salaberry-de-Valleyfield (V)","M"]
[71005,"Rivière-Beaudette (M)","M"]
[71015,"Saint-Télesphore (M)","M"]
[71020,"Saint-Polycarpe (M)","M"]
[71025,"Saint-Zotique (M)","M"]
[71033,"Les Coteaux (M)","V"]
[71040,"Coteau-du-Lac (V)","M"]
[71045,"Saint-Clet (M)","M"]
[71050,"Les Cèdres (M)","VL"]
[71055,"Pointe-des-Cascades (VL)","V"]
[71060,"L'Île-Perrot (V)","V"]
[71065,"Notre-Dame-de-l'Île-Perrot (V)","V"]
[71070,"Pincourt (V)","M"]
[71075,"Terrasse-Vaudreuil (M)","V"]
[71083,"Vaudreuil-Dorion (V)","VL"]
[71090,"Vaudreuil-sur-le-Lac (VL)","V"]
[71095,"L'Île-Cadieux (V)","V"]
[71100,"Hudson (V)","V"]
[71105,"Saint-Lazare ((V) - Montérégie)","M"]
[71110,"Sainte-Marthe ((M) - Montérégie)","M"]
[71115,"Sainte-Justine-de-Newton (M)","M"]
[71125,"Très-Saint-Rédempteur (M)","V"]
[71133,"Rigaud (V)","VL"]
[71140,"Pointe-Fortune (VL)","V"]
[72005,"Saint-Eustache (V)","V"]
[72010,"Deux-Montagnes (V)","V"]
[72015,"Sainte-Marthe-sur-le-Lac (V)","M"]
[72020,"Pointe-Calumet (M)","M"]
[72025,"Saint-Joseph-du-Lac (M)","M"]
[72032,"Oka (M)","M"]
[72043,"Saint-Placide (M)","EI"]
[72802,"Kanesatake (EI)","V"]
[73005,"Boisbriand (V)","V"]
[73010,"Sainte-Thérèse (Ville - Laurentides)","V"]
[73015,"Blainville (V)","V"]
[73020,"Rosemère (V)","V"]
[73025,"Lorraine (V)","V"]
[73030,"Bois-des-Filion (V)","V"]
[73035,"Sainte-Anne-des-Plaines (V)","V"]
[74005,"Mirabel (V)","V"]
[75005,"Saint-Colomban (V)","V"]
[75017,"Saint-Jérôme (V)","M"]
[75028,"Sainte-Sophie ((M) - Laurentides)","V"]
[75040,"Prévost (V)","M"]
[75045,"Saint-Hippolyte (M)","M"]
[76008,"Saint-André-d'Argenteuil (M)","V"]
[76020,"Lachute (V)","CT"]
[76025,"Gore (CT)","M"]
[76030,"Mille-Isles (M)","CT"]
[76035,"Wentworth (CT)","V"]
[76043,"Brownsburg-Chatham (V)","M"]
[76052,"Grenville-sur-la-Rouge (M)","VL"]
[76055,"Grenville (VL)","CT"]
[76065,"Harrington (CT)","V"]
[77011,"Estérel (V)","V"]
[77012,"Sainte-Marguerite-du-Lac-Masson (V)","V"]
[77022,"Sainte-Adèle (V)","M"]
[77030,"Piedmont (M)","P"]
[77035,"Sainte-Anne-des-Lacs (P)","V"]
[77043,"Saint-Sauveur (V)","M"]
[77050,"Morin-Heights (M)","M"]
[77055,"Lac-des-Seize-Îles (M)","M"]
[77060,"Wentworth-Nord (M)","M"]
[77065,"Saint-Adolphe-d'Howard (M)","M"]
[78005,"Val-Morin (M)","VL"]
[78010,"Val-David (VL)","M"]
[78015,"Lantier (M)","M"]
[78020,"Sainte-Lucie-des-Laurentides (M)","V"]
[78032,"Sainte-Agathe-des-Monts (V)","M"]
[78042,"Ivry-sur-le-Lac (M)","M"]
[78047,"Saint-Faustin–Lac-Carré (M)","V"]
[78050,"Barkmere (V)","M"]
[78055,"Montcalm (M)","CT"]
[78060,"Arundel (CT)","M"]
[78065,"Huberdeau (M)","CT"]
[78070,"Amherst (CT)","P"]
[78075,"Brébeuf (P)","M"]
[78095,"Lac-Supérieur (M)","M"]
[78100,"Val-des-Lacs (M)","V"]
[78102,"Mont-Tremblant (V)","M"]
[78115,"La Conception (M)","M"]
[78120,"Labelle (M)","M"]
[78127,"Lac-Tremblant-Nord (M)","M"]
[78130,"La Minerve (M)","R"]
[78802,"Doncaster (R)","M"]
[79005,"Notre-Dame-du-Laus (M)","M"]
[79010,"Notre-Dame-de-Pontmain (M)","M"]
[79015,"Lac-du-Cerf (M)","M"]
[79022,"Saint-Aimé-du-Lac-des-Îles (M)","M"]
[79025,"Kiamika (M)","M"]
[79030,"Nominingue (M)","V"]
[79037,"Rivière-Rouge (V)","M"]
[79047,"La Macaza (M)","M"]
[79050,"L'Ascension (M)","VL"]
[79060,"Lac-Saguay (VL)","M"]
[79065,"Chute-Saint-Philippe (M)","M"]
[79078,"Lac-des-Écorces (M)","V"]
[79088,"Mont-Laurier (V)","M"]
[79097,"Ferme-Neuve (M)","M"]
[79105,"Lac-Saint-Paul (M)","M"]
[79110,"Mont-Saint-Michel (M)","M"]
[79115,"Sainte-Anne-du-Lac (M)","NO"]
[79902,"Lac-de-la-Pomme (NO)","NO"]
[79904,"Lac-Akonapwehikan (NO)","NO"]
[79906,"Lac-Wagwabika (NO)","NO"]
[79910,"Lac-Bazinet (NO)","NO"]
[79912,"Lac-De La Bidière (NO)","NO"]
[79914,"Lac-Oscar (NO)","NO"]
[79916,"Lac-de-la-Maison-de-Pierre (NO)","NO"]
[79920,"Baie-des-Chaloupes (NO)","NO"]
[79922,"Lac-Douaire (NO)","NO"]
[79924,"Lac-Ernest (NO)","NO"]
[79926,"Lac-Marguerite (NO)","M"]
[80005,"Fassett (M)","M"]
[80010,"Montebello (M)","M"]
[80015,"Notre-Dame-de-Bonsecours (M)","M"]
[80020,"Notre-Dame-de-la-Paix (M)","M"]
[80027,"Saint-André-Avellin (M)","M"]
[80037,"Papineauville (M)","M"]
[80045,"Plaisance (M)","V"]
[80050,"Thurso (V)","CT"]
[80055,"Lochaber (CT)","CT"]
[80060,"Lochaber-Partie-Ouest (CT)","M"]
[80065,"Mayo (M)","M"]
[80070,"Saint-Sixte (M)","M"]
[80078,"Ripon (M)","M"]
[80085,"Mulgrave-et-Derry (M)","M"]
[80090,"Montpellier (M)","M"]
[80095,"Lac-Simon (M)","M"]
[80103,"Chénéville (M)","M"]
[80110,"Namur (M)","M"]
[80115,"Boileau (M)","M"]
[80125,"Saint-Émile-de-Suffolk (M)","M"]
[80130,"Lac-des-Plages (M)","M"]
[80135,"Duhamel (M)","M"]
[80140,"Val-des-Bois (M)","M"]
[80145,"Bowman (M)","V"]
[81017,"Gatineau (V)","M"]
[82005,"L'Ange-Gardien ((M) - Outaouais)","M"]
[80087,"Notre-Dame-de-la-Salette (M)","M"]
[82015,"Val-des-Monts (M)","M"]
[82020,"Cantley (M)","M"]
[82025,"Chelsea (M)","M"]
[82030,"Pontiac (M)","M"]
[82035,"La Pêche (M)","M"]
[83005,"Denholm (M)","CT"]
[83010,"Low (CT)","M"]
[83015,"Kazabazua (M)","M"]
[83020,"Lac-Sainte-Marie (M)","V"]
[83032,"Gracefield (V)","M"]
[83040,"Cayamant (M)","M"]
[83045,"Blue Sea (M)","M"]
[83050,"Bouchette (M)","M"]
[83055,"Sainte-Thérèse-de-la-Gatineau (M)","M"]
[83060,"Messines (M)","V"]
[83065,"Maniwaki (V)","M"]
[83070,"Déléage (M)","M"]
[83075,"Egan-Sud (M)","M"]
[83085,"Bois-Franc (M)","M"]
[83088,"Montcerf-Lytton (M)","CT"]
[83090,"Aumond (CT)","M"]
[83095,"Grand-Remous (M)","R"]
[83802,"Kitigan Zibi (R)","R"]
[83804,"Lac-Rapide (R)","NO"]
[83902,"Lac-Pythonga (NO)","NO"]
[83904,"Cascades-Malignes (NO)","NO"]
[83906,"Lac-Lenôtre (NO)","NO"]
[83908,"Lac-Moselle (NO)","NO"]
[83912,"Dépôt-Échouani (NO)","M"]
[84005,"Bristol (M)","M"]
[84010,"Shawville (M)","M"]
[84015,"Clarendon (M)","VL"]
[84020,"Portage-du-Fort (VL)","M"]
[84025,"Bryson (M)","M"]
[84030,"Campbell's Bay (M)","M"]
[84035,"L'Île-du-Grand-Calumet (M)","M"]
[84040,"Litchfield (M)","M"]
[84045,"Thorne (M)","M"]
[84050,"Alleyn-et-Cawood (M)","M"]
[84055,"Otter Lake (M)","VL"]
[84060,"Fort-Coulonge (VL)","M"]
[84065,"Mansfield-et-Pontefract (M)","M"]
[84070,"Waltham (M)","M"]
[84082,"L'Isle-aux-Allumettes (M)","CT"]
[84090,"Chichester (CT)","M"]
[84095,"Sheenboro (M)","M"]
[84100,"Rapides-des-Joachims (M)","NO"]
[84902,"Lac-Nilgaut (NO)","V"]
[85005,"Témiscaming (V)","M"]
[85010,"Kipawa (M)","P"]
[85015,"Saint-Édouard-de-Fabre (P)","M"]
[85020,"Béarn (M)","V"]
[85025,"Ville-Marie (V)","M"]
[85030,"Duhamel-Ouest (M)","M"]
[85037,"Lorrainville (M)","M"]
[85045,"Saint-Bruno-de-Guigues (M)","M"]
[85052,"Laverlochère-Angliers (M)","M"]
[85055,"Fugèreville (M)","CU"]
[85060,"Latulipe-et-Gaboury (CU)","V"]
[85065,"Belleterre (V)","M"]
[85070,"Laforce (M)","M"]
[85075,"Moffet (M)","M"]
[85085,"Saint-Eugène-de-Guigues (M)","M"]
[85090,"Notre-Dame-du-Nord (M)","CT"]
[85095,"Guérin (CT)","CT"]
[85100,"Nédélec (CT)","M"]
[85105,"Rémigny (M)","R"]
[85802,"Kebaowek (R)","EI"]
[85803,"Hunter's Point (EI)","EI"]
[85804,"Winneway (EI)","R"]
[85806,"Timiskaming (R)","NO"]
[85905,"Laniel (NO)","NO"]
[85907,"Les Lacs-du-Témiscamingue (NO)","V"]
[86042,"Rouyn-Noranda (V)","V"]
[87005,"Duparquet (V)","M"]
[87010,"Rapide-Danseur (M)","M"]
[87015,"Roquemaure (M)","M"]
[87020,"Gallichan (M)","M"]
[87025,"Palmarolle (M)","M"]
[87030,"Sainte-Germaine-Boulé (M)","M"]
[87035,"Poularies (M)","M"]
[87042,"Taschereau (M)","M"]
[87050,"Authier (M)","V"]
[87058,"Macamic (V)","P"]
[87070,"Sainte-Hélène-de-Mancebourg (P)","M"]
[87075,"Clerval (M)","M"]
[87080,"La Reine (M)","M"]
[87085,"Dupuy (M)","V"]
[87090,"La Sarre (V)","M"]
[87095,"Chazel (M)","M"]
[87100,"Authier-Nord (M)","M"]
[87105,"Val-Saint-Gilles (M)","CT"]
[87110,"Clermont (CT)","M"]
[87115,"Normétal (M)","P"]
[87120,"Saint-Lambert ((P) - Abitibi-Témiscamingue)","NO"]
[87902,"Lac-Duparquet (NO)","NO"]
[87904,"Rivière-Ojima (NO)","M"]
[88005,"Champneuf (M)","M"]
[88010,"Rochebaucourt (M)","M"]
[88012,"Morandière-Rochebaucourt (M)","M"]
[88015,"La Morandière (M)","M"]
[88022,"Barraute (M)","M"]
[88030,"La Corne (M)","CT"]
[88035,"Landrienne (CT)","P"]
[88040,"Saint-Marc-de-Figuery (P)","M"]
[88045,"La Motte (M)","M"]
[88050,"Saint-Mathieu-d'Harricana (M)","V"]
[88055,"Amos (V)","M"]
[88060,"Saint-Félix-de-Dalquier (M)","M"]
[88065,"Saint-Dominique-du-Rosaire (M)","M"]
[88070,"Berry (M)","CT"]
[88075,"Trécesson (CT)","CT"]
[88080,"Launay (CT)","M"]
[88085,"Sainte-Gertrude-Manneville (M)","M"]
[88090,"Preissac (M)","R"]
[88802,"Pikogan (R)","NO"]
[88902,"Lac-Despinassy (NO)","NO"]
[88904,"Lac-Chicobi (NO)","V"]
[89008,"Val-d'Or (V)","M"]
[89010,"Rivière-Héva (M)","V"]
[89015,"Malartic (V)","V"]
[89040,"Senneterre (V)","P"]
[89045,"Senneterre (P)","M"]
[89050,"Belcourt (M)","EI"]
[89802,"Kitcisakik (EI)","R"]
[89804,"Lac-Simon (R)","NO"]
[89902,"Matchi-Manitou (NO)","NO"]
[89908,"Lac-Metei (NO)","NO"]
[89910,"Réservoir-Dozois (NO)","NO"]
[89912,"Lac-Granet (NO)","V"]
[90012,"La Tuque (V)","M"]
[90017,"La Bostonnais (M)","M"]
[90027,"Lac-Édouard (M)","R"]
[90801,"Coucoucache (R)","R"]
[90802,"Wemotaci (R)","R"]
[90804,"Obedjiwan (R)","M"]
[91005,"Lac-Bouchette (M)","VL"]
[91010,"Saint-André-du-Lac-Saint-Jean (VL)","M"]
[91015,"Saint-François-de-Sales (M)","M"]
[91020,"Chambord (M)","V"]
[91025,"Roberval (V)","M"]
[91030,"Sainte-Hedwidge (M)","M"]
[91035,"Saint-Prime (M)","V"]
[91042,"Saint-Félicien (V)","P"]
[91050,"La Doré (P)","R"]
[91802,"Mashteuiatsh (R)","NO"]
[91902,"Lac-Ashuapmushuan (NO)","P"]
[92005,"Saint-Augustin ((P) - Saguenay-Lac-Saint-Jean)","M"]
[92010,"Péribonka (M)","VL"]
[92015,"Sainte-Jeanne-d'Arc (VL)","V"]
[92022,"Dolbeau-Mistassini (V)","M"]
[92030,"Albanel (M)","V"]
[92040,"Normandin (V)","M"]
[92045,"Saint-Thomas-Didyme (M)","M"]
[92050,"Saint-Edmond-les-Plaines (M)","M"]
[92055,"Girardville (M)","M"]
[92060,"Notre-Dame-de-Lorette (M)","M"]
[92065,"Saint-Eugène-d'Argentenay (M)","M"]
[92070,"Saint-Stanislas ((M) - Saguenay-Lac-Saint-Jean)","NO"]
[92902,"Passes-Dangereuses (NO)","NO"]
[92904,"Rivière-Mistassini (NO)","V"]
[93005,"Desbiens (V)","V"]
[93012,"Métabetchouan–Lac-à-la-Croix (V)","M"]
[93020,"Hébertville (M)","VL"]
[93025,"Hébertville-Station (VL)","M"]
[93030,"Saint-Bruno ((M)- Saguenay-Lac-Saint-Jean)","M"]
[93035,"Saint-Gédéon ((M) - Saguenay-Lac-Saint-Jean)","V"]
[93042,"Alma (V)","M"]
[93045,"Saint-Nazaire ((M) - Saguenay-Lac-Saint-Jean)","M"]
[93055,"Labrecque (M)","M"]
[93060,"Lamarche (M)","P"]
[93065,"L'Ascension-de-Notre-Seigneur (P)","M"]
[93070,"Saint-Henri-de-Taillon (M)","M"]
[93075,"Sainte-Monique ((M) - Saguenay-Lac-Saint-Jean)","M"]
[93080,"Saint-Ludger-de-Milot (M)","NO"]
[93902,"Mont-Apica (NO)","NO"]
[93904,"Lac-Moncouche (NO)","NO"]
[93906,"Lac-Achouakan (NO)","NO"]
[93908,"Belle-Rivière (NO)","V"]
[94068,"Saguenay (V)","M"]
[94205,"Petit-Saguenay (M)","M"]
[94210,"L'Anse-Saint-Jean (M)","M"]
[94215,"Rivière-Éternité (M)","M"]
[94220,"Ferland-et-Boilleau (M)","M"]
[94225,"Saint-Félix-d'Otis (M)","P"]
[94230,"Sainte-Rose-du-Nord (P)","M"]
[94235,"Saint-Fulgence (M)","V"]
[94240,"Saint-Honoré (V) - Saguenay-Lac-Saint-Jean)","M"]
[94245,"Saint-David-de-Falardeau (M)","M"]
[94250,"Bégin (M)","M"]
[94255,"Saint-Ambroise ((M) - Saguenay-Lac-Saint-Jean)","M"]
[94260,"Saint-Charles-de-Bourget (M)","M"]
[94265,"Larouche (M)","NO"]
[94926,"Lalemant (NO)","NO"]
[94928,"Lac-Ministuk (NO)","NO"]
[94930,"Mont-Valin (NO)","VL"]
[95005,"Tadoussac (VL)","M"]
[95010,"Sacré-Coeur ((M) - Côte-Nord)","M"]
[95018,"Les Bergeronnes (M)","M"]
[95025,"Les Escoumins (M)","M"]
[95032,"Longue-Rive (M)","M"]
[95040,"Portneuf-sur-Mer (M)","V"]
[95045,"Forestville (V)","M"]
[95050,"Colombier (M)","R"]
[95802,"Essipit (R)","NO"]
[95902,"Lac-au-Brochet (NO)","VL"]
[96005,"Baie-Trinité (VL)","VL"]
[96010,"Godbout (VL)","M"]
[96015,"Franquelin (M)","V"]
[96020,"Baie-Comeau (V)","VL"]
[96025,"Pointe-Lebel (VL)","VL"]
[96030,"Pointe-aux-Outardes (VL)","VL"]
[96035,"Chute-aux-Outardes (VL)","P"]
[96040,"Ragueneau (P)","R"]
[96802,"Pessamit (R)","NO"]
[96902,"Rivière-aux-Outardes (NO)","V"]
[97007,"Sept-Îles (V)","V"]
[97022,"Port-Cartier (V)","V"]
[97035,"Fermont (V)","V"]
[97040,"Schefferville (V)","R"]
[97802,"Uashat (R)","R"]
[97804,"Maliotenam (R)","TK"]
[97806,"Kawawachikamach (TK)","R"]
[97808,"Matimekosh (R)","R"]
[97810,"Lac-John (R)","NO"]
[97902,"Rivière-Nipissis (NO)","NO"]
[97904,"Lac-Walker (NO)","NO"]
[97906,"Rivière-Mouchalagane (NO)","NO"]
[97908,"Caniapiscau (NO)","NO"]
[97912,"Lac-Juillet (NO)","NO"]
[97914,"Lac-Vacher (NO)","M"]
[98005,"Blanc-Sablon (M)","M"]
[98010,"Bonne-Espérance (M)","M"]
[98012,"Saint-Augustin ((M) - Côte-Nord)","M"]
[98014,"Gros-Mécatina (M)","M"]
[98015,"Côte-Nord-du-Golfe-du-Saint-Laurent (M)","M"]
[98020,"L'Île-d'Anticosti (M)","M"]
[98025,"Natashquan (M)","M"]
[98030,"Aguanish (M)","M"]
[98035,"Baie-Johan-Beetz (M)","M"]
[98040,"Havre-Saint-Pierre (M)","M"]
[98045,"Longue-Pointe-de-Mingan (M)","M"]
[98050,"Rivière-Saint-Jean (M)","M"]
[98055,"Rivière-au-Tonnerre (M)","EI"]
[98802,"Pakuashipi (EI)","R"]
[98804,"La Romaine (R)","R"]
[98806,"Nutashkuan (R)","R"]
[98808,"Mingan (R)","NO"]
[98904,"Lac-Jérôme (NO)","NO"]
[98912,"Petit-Mécatina (NO)","V"]
[99005,"Lebel-sur-Quévillon (V)","VC"]
[99010,"Waswanipi (VC)","V"]
[99015,"Matagami (V)","V"]
[99020,"Chapais (V)","V"]
[99025,"Chibougamau (V)","VC"]
[99030,"Mistissini (VC)","VC"]
[99035,"Waskaganish (VC)","VC"]
[99040,"Nemaska (VC)","VC"]
[99045,"Eastmain (VC)","VC"]
[99050,"Wemindji (VC)","VC"]
[99055,"Chisasibi (VC)","M"]
[99060,"Eeyou Istchee Baie-James (Gouvernement régional) (M)","VK"]
[99065,"Kawawachikamach (VK)","VC"]
[99070,"Whapmagoostui (VC)","VN"]
[99075,"Kuujjuarapik (VN)","VN"]
[99080,"Umiujaq (VN)","VN"]
[99085,"Inukjuak (VN)","VN"]
[99090,"Kangiqsualujjuaq (VN)","VN"]
[99095,"Kuujjuaq (VN)","VN"]
[99100,"Tasiujaq (VN)","VN"]
[99105,"Aupaluk (VN)","VN"]
[99110,"Kangirsuk (VN)","VN"]
[99115,"Quaqtaq (VN)","VN"]
[99120,"Puvirnituq (VN)","VN"]
[99125,"Akulivik (VN)","VN"]
[99130,"Kangiqsujuaq (VN)","VN"]
[99135,"Salluit (VN)","VN"]
[99140,"Ivujivik (VN)","TC"]
[99802,"Waswanipi (TC)","TC"]
[99804,"Mistissini (TC)","TC"]
[99806,"Waskaganish (TC)","TC"]
[99808,"Nemaska (TC)","TC"]
[99810,"Eastmain (TC)","TC"]
[99812,"Wemindji (TC)","TC"]
[99814,"Chisasibi (TC)","TC"]
[99816,"Whapmagoostui (TC)","TC"]
[99818,"Oujé-Bougoumou (TC)","TI"]
[99877,"Kuujjuarapik (TI)","TI"]
[99878,"Umiujaq (TI)","TI"]
[99879,"Inukjuak (TI)","TI"]
[99883,"Akulivik (TI)","TI"]
[99885,"Ivujivik (TI)","TI"]
[99887,"Salluit (TI)","TI"]
[99888,"Kangiqsujuaq (TI)","TI"]
[99889,"Quaqtaq (TI)","TI"]
[99890,"Kangirsuk (TI)","TI"]
[99891,"Aupaluk (TI)","TI"]
[99892,"Tasiujaq (TI)","TI"]
[99893,"Kuujjuaq (TI)","TI"]
[99894,"Kangiqsualujjuaq (TI)","NO"]
[99902,"Rivière-Koksoak (NO)","NO"]
[99904,"Baie-d'Hudson (NO)"]

{"sheet":"Installation","index":2,"n_rows":124,"n_cols":9,"rows_kept":124,"cut":false,"hidden":true,"merged":[]}
[]
["Type d'installation",null,"Type","Installation","Numéro de dossier de l'exploitant","Région","MRC"]
["Centre de transfert",null,"Centre de transfert","Centre de transfert d'Amqui (Fusion environnement inc.)","3912-01-070-220","01 - Bas-Saint-Laurent","La Matapédia"]
["Centre de transfert de faible capacité",null,"Centre de transfert","Centre de transfert de Mont-Joli (RITMR des MRC de La Matapédia et de la Mitis)","3912-01-090-143","01 - Bas-Saint-Laurent","La Mitis"]
["Incinérateur",null,"Centre de transfert","Centre de transfert de Roberval (RGMR du Lac-Saint-Jean)","3912-02-910-157","02 - Saguenay-Lac-Saint-Jean","Domaine-du-Roy"]
["LEET",null,"Centre de transfert","Centre de transfert de Dolbeau-Mistassini (RGMR du Lac-Saint-Jean)","3912-02-920-158","02 - Saguenay-Lac-Saint-Jean","Maria-Chapdelaine"]
["LEDCD",null,"Centre de transfert","Centre de transfert de Saguenay (GFL Environnement/Matrec)","3912-02-999-147","02 - Saguenay-Lac-Saint-Jean","Hors MRC"]
["LET",null,"Centre de transfert","Centre de transfert de Québec (GFL Environnement/Matrec)","3912-03-210-137","03 - Capitale-Nationale","La Côte-de-Beaupré"]
[null,null,"Centre de transfert","Centre de transfert de Bury (Valoris/Régie intermunicipale du Haut-Saint-François et de Sherbrooke)","3912-05-360-200","05 - Estrie","Hors MRC"]
["Régions administratives",null,"Centre de transfert","Centre de transfert des Entreprises Raylobec inc. (Sherbrooke)","3912-05-430-219","05 - Estrie","Hors MRC"]
["01 - Bas-Saint-Laurent",null,"Centre de transfert","Centre de Recyclage Notre-Dame inc./EBI (Anjou)","3912-06-660-140","06 - Montréal","Hors MRC"]
["02 - Saguenay-Lac-Saint-Jean",null,"Centre de transfert","Centre de transfert d'Anjou (WM Québec Inc.)","3912-06-660-222","06 - Montréal","Hors MRC"]
["03 - Capitale-Nationale",null,"Centre de transfert","Centre de transfert de Chénéville (Épursol)","3912-07-800-217","07 - Outaouais","Papineau"]
["04 - Mauricie",null,"Centre de transfert","Centre de transfert de la Ville de Gatineau","3912-07-810-160","07 - Outaouais","Hors MRC"]
["05 - Estrie",null,"Centre de transfert","Centre de transfert de Gatineau (GFL Environnement/Matrec)","3912-07-810-208","07 - Outaouais","Hors MRC"]
["06 - Montréal",null,"Centre de transfert","Centre de transfert de LGL Globe/Enviro Connexions (Gatineau)","3912-07-810-218","07 - Outaouais","Hors MRC"]
["07 - Outaouais",null,"Centre de transfert","Centre de transfert de la MRC des Collines-de-l'Outaouais","3912-07-820-154","07 - Outaouais","Collines-de-l'Outaouais"]
["08 - Abitibi-Témiscamingue",null,"Centre de transfert","Centre de transfert de McGrimmon Cartage (Clarendon/MRC Pontiac)","3912-07-820-221","07 - Outaouais","Collines-de-l'Outaouais"]
["09 - Côte-Nord",null,"Centre de transfert","Centre de transfert Fillogreen – Pontiac (Litchfield)","3912-07-840-225","07 - Outaouais","Pontiac",null,"Nouvelle inscription (fonctionnel depuis août 2024)"]
["10 - Nord-du-Québec",null,"Centre de transfert","Centre de transfert de la MRC de la Vallée-de-la-Gatineau","3912-07-830-172","07 - Outaouais","La Vallée-de-la-Gatineau"]
["11 - Gaspésie-Îles-de-la-Madeleine",null,"Centre de transfert","Centre de transfert de la MRC d'Abitibi-Ouest","3912-08-870-152","08 - Abitibi-Témiscamingue","Abitibi-Ouest"]
["12 - Chaudière-Appalaches",null,"Centre de transfert","Centre de transfert d'Exploitation Jaffa inc. (Saint-Alphonse) - Inactif","3912-11-040-206","11 - Gaspésie-Îles-de-la-Madeleine","La Haute-Gaspésie"]
["13 - Laval",null,"Centre de transfert","Centre de transfert de L'Islet (Énercycle)","3912-12-170-144","12 - Chaudière-Appalaches","L'Islet"]
["14 - Lanaudière",null,"Centre de transfert","Centre de transfert de Saint-Georges (Services sanitaires DF de Beauce inc.)","3912-12-290-216","12 - Chaudière-Appalaches","Beauce-Sartigan"]
["15 - Laurentides",null,"Centre de transfert","Centre de transfert de Thetford Mines (Services sanitaires Denis Fortier inc.)","3912-12-310-145","12 - Chaudière-Appalaches","Appalaches"]
["16 - Montérégie",null,"Centre de transfert","Centre de transfert de Laval (WM Québec inc.)","3912-13-650-156","13 - Laval","Hors MRC"]
["17 - Centre-du-Québec",null,"Centre de transfert","Centre de transfert de Saint-Hyacinthe (GFL Environnement/Matrec)","3912-16-540-136","16 - Montérégie","Maskoutains"]
[null,null,"Centre de transfert","Centre de transfert de JMV Environnement inc. (Saint-Hyacinthe)","3912-16-540-214","16 - Montérégie","Maskoutains"]
[null,null,"Centre de transfert","Centre de transfert de Beloeil (Services environnementaux du Richelieu)","3912-16-570-142","16 - Montérégie","La Vallée-du-Richelieu"]
[null,null,"Centre de transfert","Centre de transfert Fibres J.C. inc. (Chambly)","3912-16-570-202","16 - Montérégie","La Vallée-du-Richelieu"]
[null,null,"Centre de transfert","Centre de transfert de Saint-Constant - Inactif","3912-16-670-215","16 - Montérégie","Roussillon"]
[null,null,"Centre de transfert","Centre de transfert de Saint-Rémi (WM Québec inc.)","3912-16-680-155","16 - Montérégie","Jardins-de-Napierville"]
[null,null,"Centre de transfert","Centre de transfert de Salaberry-de-Valleyfield (WM Québec inc.) - Inactif","3912-16-700-139","16 - Montérégie","Beauharnois-Salaberry"]
[null,null,"Centre de transfert","Centre de transfert de Récupération Mario Hart inc. (Salaberry-de-Valleyfield)","3912-16-700-207","16 - Montérégie","Beauharnois-Salaberry"]
[null,null,"Centre de transfert","Centre de transfert des Entreprises Raylobec inc. (Vaudreuil-Dorion)","3912-16-710-141","16 - Montérégie","Vaudreuil-Soulanges"]
[null,null,"Centre de transfert","Centre de transfert de Saint-Hubert (GFL Environnement/Matrec)","3912-16-999-138","16 - Montérégie","Hors MRC"]
[null,null,"Centre de transfert","Centre de transfert Transit Longueuil (WM Québec inc.) - Inactif","3912-16-999-162","16 - Montérégie","Hors MRC"]
[null,null,"Centre de transfert","Centre de transfert de Longueuil (WM Québec inc.)","3912-16-999-171","16 - Montérégie","Hors MRC"]
[null,null,"Centre de transfert","Centre de transfert de Gaudreau environnement inc. (Victoriaville)","3912-17-390-150","17 - Centre-du-Québec","Arthabaska"]
[null,null,"Centre de transfert","Centre de transfert de Drummondville (GFL Environnement/Matrec)","3912-17-490-211","17 - Centre-du-Québec","Drummond"]
[null,null,"CT - Faible","Centre de transfert de la MRC de Charlevoix (Faible capacité)","3912-03-160-161","03 - Capitale-Nationale","Charlevoix"]
[null,null,"CT - Faible","Centre de transfert de la ville de La Tuque (Faible capacité)","3912-04-999-149","04 - Mauricie","Hors MRC"]
[null,null,"CT - Faible","Centre de transfert de RLS Environnement de Papineauville (Faible capacité)","3912-07-800-224","07 - Outaouais","Papineauville",null,"Nouvelle inscription "]
[null,null,"CT - Faible","Centre de transfert de la MRC de Témiscamingue (Faible capacité)","3912-08-850-163","08 - Abitibi-Témiscamingue","Témiscamingue"]
[null,null,"CT - Faible","Centre de transfert de la MRC de La Haute-Côte-Nord - Bergeronnes (Faible capacité)","3912-09-950-210","09 - Côte-Nord","La Haute-Côte-Nord"]
[null,null,"CT - Faible","Centre de transfert des Îles-de-la-Madeleine (Faible capacité)","3912-11-999-165","11 - Gaspésie-Îles-de-la-Madeleine","Hors MRC"]
[null,null,"CT - Faible","Centre de transfert de la RIGD Islet-Sud (Faible capacité)","3912-12-170-166","12 - Chaudière-Appalaches","L'Islet"]
[null,null,"INC","Incinérateur de la Ville de Québec","3912-03-999-035","03 - Capitale-Nationale","Hors MRC"]
[null,null,"INC","Incinérateur de la Station d'épuration des eaux usées de Montréal ","3912-06-999-056","06 - Montréal","Hors MRC"]
[null,null,"INC","Incinérateur de la Ville de Lévis","3912-12-999-092","12 - Chaudière-Appalaches","Hors MRC"]
[null,null,"INC","Incinérateur de Longueuil (Aquacers, Société de gestion du CERS inc.)","3912-16-999-118","16 - Montérégie","Hors MRC"]
[null,null,"LEDCD","LEDCD Les Entreprises Jean Tremblay et Fils inc (Saint-Félicien) - Inactif","3912-02-910-012","02 - Saguenay-Lac-Saint-Jean","Domaine-du-Roy"]
[null,null,"LEDCD","LEDCD d'Excavation Dolbeau inc.","3912-02-920-014","02 - Saguenay-Lac-Saint-Jean","Maria-Chapdelaine"]
[null,null,"LEDCD","LEDCD de Sable des Forges inc.","3912-04-371-038","04 - Mauricie","Hors MRC"]
[null,null,"LEDCD","LEDCD de Thibault Démolition ltée (Val-des-Monts)","3912-07-820-058","07 - Outaouais","Collines-de-l'Outaouais"]
[null,null,"LEDCD","LEDCD de Gestion intégrée de matériaux secs Lanaudière Inc.","3912-14-620-095","14 - Lanaudière","Matawinie"]
[null,null,"LEDCD","LEDCD de Sainte-Julienne","3912-14-630-096","14 - Lanaudière","Montcalm"]
[null,null,"LEDCD","LEDCD de Lemay-Bec inc. (Bécancour) ","3912-17-380-121","17 - Centre-du-Québec","Bécancour"]
[null,null,"LEET","LEET du secteur de la baie Jean-Pierre ","3912-04-999-184","04 - Mauricie","Hors MRC"]
[null,null,"LEET","LEET du secteur Lac Châteauvert","3912-04-999-185","04 - Mauricie","Hors MRC"]
[null,null,"LEET","LEET de La Tuque, canton Bardy (Flamand)","3912-04-999-186","04 - Mauricie","Hors MRC"]
[null,null,"LEET","LEET de La Tuque, secteur Parent (Lamy)","3912-04-999-187","04 - Mauricie","Hors MRC"]
[null,null,"LEET","LEET de La Tuque, relais 22","3912-04-999-188","04 - Mauricie","Hors MRC"]
[null,null,"LEET","LEET de Wemotaci","3912-04-999-189","04 - Mauricie","Hors MRC"]
[null,null,"LEET","LEET d'Opitciwan","3912-04-999-209","04 - Mauricie","Hors MRC"]
[null,null,"LEET","LEET du Camp Brooch","3912-09-971-196","09 - Côte-Nord","Sept-Rivières"]
[null,null,"LEET","LEET du Mont-Wright","3912-09-972-190","09 - Côte-Nord","Caniapiscau"]
[null,null,"LEET","LEET d'Anticosti","3912-09-981-174","09 - Côte-Nord","Minganie"]
[null,null,"LEET","LEET du Complexe Romaine-2","3912-09-981-176","09 - Côte-Nord","Minganie"]
[null,null,"LEET","LEET de la Longue-Pointe-de-Mingan","3912-09-981-191","09 - Côte-Nord","Minganie"]
[null,null,"LEET","LEET de la Régie intermunicipale de gestion des matières résiduelles de l'Est de la Minganie","3912-09-981-205","09 - Côte-Nord","Minganie"]
[null,null,"LEET","LEET de la mine Troilus","3912-10-999-173","10 - Nord-du-Québec","Hors MRC"]
[null,null,"LEET","LEET de LG-4 (Hydro-Québec)","3912-10-999-175","10 - Nord-du-Québec","Hors MRC"]
[null,null,"LEET","LEET de la MBJ-Radisson","3912-10-999-177","10 - Nord-du-Québec","Hors MRC"]
[null,null,"LEET","LEET de la MBJ-Miquelon","3912-10-999-178","10 - Nord-du-Québec","Hors MRC"]
[null,null,"LEET","LEET de la MBJ-VVB Villebois","3912-10-999-179","10 - Nord-du-Québec","Hors MRC"]
[null,null,"LEET","LEET de Nemiscau (Hydro-Québec)","3912-10-999-181","10 - Nord-du-Québec","Hors MRC"]
[null,null,"LEET","LEET du village cri Mistissini","3912-10-999-182","10 - Nord-du-Québec","Hors MRC"]
[null,null,"LEET","LEET du village cri Nemaska","3912-10-999-183","10 - Nord-du-Québec","Hors MRC"]
[null,null,"LEET","LEET d'Eastmain-1 (Société d'énergie de la baie James)","3912-10-999-192","10 - Nord-du-Québec","Hors MRC"]
[null,null,"LEET","LEET de Matagami","3912-10-999-194","10 - Nord-du-Québec","Hors MRC"]
[null,null,"LEET","LEET de Lebel-sur-Quévillon ","3912-10-999-195","10 - Nord-du-Québec","Hors MRC"]
[null,null,"LEET","LEET du village cri Oujé-Bougoumou","3912-10-999-198","10 - Nord-du-Québec","Hors MRC"]
[null,null,"LEET","LEET de la Propriété Éléonore","3912-10-999-203","10 - Nord-du-Québec","Hors MRC"]
[null,null,"LEET","LEET de la Propriété Renard","3912-10-999-204","10 - Nord-du-Québec","Hors MRC"]
[null,null,"LET","LET de Matane","3912-01-080-001","01 - Bas-Saint-Laurent","La Matanie"]
[null,null,"LET","LET de Rimouski","3912-01-100-005","01 - Bas-Saint-Laurent","Rimouski-Neigette"]
[null,null,"LET","LET de Rivière-du-Loup","3912-01-120-006","01 - Bas-Saint-Laurent","Rivière-du-Loup"]
[null,null,"LET","LET de Dégelis (RIDT)","3912-01-130-007","01 - Bas-Saint-Laurent","Témiscouata"]
[null,null,"LET","LET d'Hébertville-Station","3912-02-930-201","02 - Saguenay-Lac-Saint-Jean","Lac-Saint-Jean-Est"]
[null,null,"LET","LET de la MRC de Charlevoix-Est","3912-03-150-026","03 - Capitale-Nationale","Charlevoix-Est"]
[null,null,"LET","LET de Neuville (RRGMR de Portneuf)","3912-03-340-031","03 - Capitale-Nationale","Portneuf"]
[null,null,"LET","LET de la Ville de Québec (Saint-Joachim)","3912-03-999-028","03 - Capitale-Nationale","Hors MRC"]
[null,null,"LET","LET Champlain (GFL Environnement/Matrec)","3912-04-372-040","04 - Mauricie","Chenaux"]
[null,null,"LET","LET de Saint-Étienne-des-Grès (RGMR de la Mauricie)","3912-04-510-041","04 - Mauricie","Maskinongé"]
[null,null,"LET","LET de la Régie intermunicipale du Haut-Saint-François et de Sherbrooke","3912-05-410-045","05 - Estrie","Haut-Saint-François"]
[null,null,"LET","LET de la RIGDS de Coaticook","3912-05-440-051","05 - Estrie","Coaticook"]
[null,null,"LET","LET de la RIEDS de Brome-Missisquoi","3912-05-460-106","05 - Estrie","Brome-Missisquoi"]
[null,null,"LET","LET de Sainte-Cécile-de-Milton (GFL Environnement/Matrec)","3912-05-470-108","05 - Estrie","La Haute-Yamaska"]
[null,null,"LET","LET de la Station d'épuration des eaux usées de Montréal ","3912-06-999-056","06 - Montréal","Hors MRC"]
[null,null,"LET","LET Fillogreen (Pontiac) ","3912-07-840-223","07 - Outaouais","Pontiac"]
[null,null,"LET","LET de Rouyn-Noranda (Multitech Environnement Canada inc)","3912-08-860-060","08 - Abitibi-Témiscamingue","Hors MRC"]
[null,null,"LET","LET d’Amos","3912-08-880-062","08 - Abitibi-Témiscamingue","Abitibi"]
[null,null,"LET","LET de la MRC de la Vallée-de-L'Or","3912-08-890-064","08 - Abitibi-Témiscamingue","La Vallée-de-l'Or"]
[null,null,"LET","LET de Ragueneau (RGMR Manicouagan)","3912-09-960-067","09 - Côte-Nord","Manicouagan"]
[null,null,"LET","LET de Sept-Îles","3912-09-971-069","09 - Côte-Nord","Sept-Rivières"]
[null,null,"LET","LET de Chibougamau","3912-10-991-071","10 - Nord-du-Québec","Hors MRC"]
[null,null,"LET","LET de Gaspé","3912-11-030-078","11 - Gaspésie-Îles-de-la-Madeleine","La Côte-de-Gaspé"]
[null,null,"LET","LET de Saint-Alphonse","3912-11-050-134","11 - Gaspésie-Îles-de-la-Madeleine","Bonaventure"]
[null,null,"LET","LET d'Armagh","3912-12-190-083","12 - Chaudière-Appalaches","Bellechasse"]
[null,null,"LET","LET de Saint-Édouard-de-Frampton","3912-12-260-084","12 - Chaudière-Appalaches","La Nouvelle-Beauce"]
[null,null,"LET","LET de Saint-Lambert-de-Lauzon","3912-12-260-085","12 - Chaudière-Appalaches","La Nouvelle-Beauce"]
[null,null,"LET","LET de la Régie intermunicipale du comté de Beauce-Sud","3912-12-290-086","12 - Chaudière-Appalaches","Beauce-Sartigan"]
[null,null,"LET","LET de Saint-Flavien (MRC de Lotbinière)","3912-12-330-091","12 - Chaudière-Appalaches","Lotbinière"]
[null,null,"LET","LET de Saint-Thomas (Dépôt Rive-Nord inc.)","3912-14-520-093","14 - Lanaudière","D'Autray"]
[null,null,"LET","LET de Terrebonne (Complexe Enviro Connexions)","3912-14-640-098","14 - Lanaudière","Moulins"]
[null,null,"LET","LET de Sainte-Sophie (WM Québec inc.)","3912-15-750-099","15 - Laurentides","La Rivière-du-Nord"]
[null,null,"LET","LET de Lachute (Régie intermunicipale Argenteuil/Deux-Montagnes)","3912-15-760-100","15 - Laurentides","Argenteuil"]
[null,null,"LET","LET de la RID de la Lièvre","3912-15-790-102","15 - Laurentides","Antoine-Labelle"]
[null,null,"LET","LET de la RID de la Rouge","3912-15-790-103","15 - Laurentides","Antoine-Labelle"]
[null,null,"LET","LET d'Olin Canada ULC (Bécancour)","3912-17-380-135","17 - Centre-du-Québec","Bécancour"]
[null,null,"LET","LET de Gestion 3LB inc. (Bécancour)","3912-17-380-199","17 - Centre-du-Québec","Bécancour"]
[null,null,"LET","LET de Saint-Rosaire (Société de développement durable Arthabaska inc.)","3912-17-390-132","17 - Centre-du-Québec","Arthabaska"]
[null,null,"LET","LET de Saint-Nicéphore (WM Québec inc.)","3912-17-490-124","17 - Centre-du-Québec","Drummond"]

{"sheet":"No.Dos.-Adresse","index":3,"n_rows":120,"n_cols":11,"rows_kept":120,"cut":false,"hidden":true,"merged":[]}
["Type","Numéro dossier","Colonne1","Nom","Exploitant","Adresse ","Municipalité","Code postal","MRC"]
["CT","3912-01-070-220","01 - Bas-Saint-Laurent","Centre de transfert d'Amqui (Fusion environnement inc.)","Fusion environnement inc.","15, rang Saint-Édouard","Amqui","G5J 3N8","La Matapédia"]
["LET","3912-01-080-001","01 - Bas-Saint-Laurent","LET de Matane","Ville de Matane","230, avenue Saint-Jérôme","Matane","G4W 3A2","La Matanie"]
["CT","3912-01-090-143","01 - Bas-Saint-Laurent","Centre de transfert de Mont-Joli (RITMR des MRC de La Matapédia et de la Mitis)","RITMR des MRC de la Matapédia et de La Mitis","300, avenue Sanatorium","Mont-Joli","G5H 1V7","La Mitis"]
["LET","3912-01-100-005","01 - Bas-Saint-Laurent","LET de Rimouski","Ville de Rimouski","205, avenue de la Cathédrale, C. P. 710","Rimouski","G5L 7C7","Rimouski-Neigette"]
["LET","3912-01-120-006","01 - Bas-Saint-Laurent","LET de Rivière-du-Loup","Ville de Rivière-du-Loup","65, rue L'Hôtel-de-Ville, C. P. 37","Rivière-du-Loup","G5R 3Y7","Rivière-du-Loup"]
["LET","3912-01-130-007","01 - Bas-Saint-Laurent","LET de Dégelis (RIDT)","Régie intermunicipale des déchets de Témiscouata","369, avenue Principale","Dégelis","G5T 2G3","Témiscouata"]
["LEDCD","3912-02-910-012","02 - Saguenay-Lac-Saint-Jean","LEDCD Les Entreprises Jean Tremblay et Fils inc (Saint-Félicien)","Entreprises Jean Tremblay et Fils inc.","1227, Rang Simple Nord","Saint-Félicien","G8K 2N8","Domaine-du-Roy"]
["CT","3912-02-910-157","02 - Saguenay-Lac-Saint-Jean","Centre de transfert de Roberval (RGMR du Lac-Saint-Jean)","Régie de gestion des matières résiduelles du Lac-Saint-Jean","625, rue Bergeron Ouest","Alma","G8B 1V3","Domaine-du-Roy"]
["LEDCD","3912-02-920-014","02 - Saguenay-Lac-Saint-Jean","LEDCD d'Excavation Dolbeau inc.","Excavation Dolbeau inc.","493, 2e Avenue","Dolbeau-Mistassini","G8L 1V3","Maria-Chapdelaine",null,"01 - Bas-Saint-Laurent"]
["CT","3912-02-920-158","02 - Saguenay-Lac-Saint-Jean","Centre de transfert de Dolbeau-Mistassini (RGMR du Lac-Saint-Jean)","Régie de gestion des matières résiduelles du Lac-Saint-Jean","625, rue Bergeron Ouest\r\nAlma (Québec)","Alma","G8B 1V3","Maria-Chapdelaine",null,"02 - Saguenay-Lac-Saint-Jean"]
["LET","3912-02-930-201","02 - Saguenay-Lac-Saint-Jean","LET d'Hébertville-Station","Régie de gestion des matières résiduelles du Lac-Saint-Jean","625, rue Bergeron Ouest","Alma","G8B 1V3","Lac-Saint-Jean-Est",null,"03 - Capitale-Nationale"]
["CT","3912-02-999-147","02 - Saguenay-Lac-Saint-Jean","Centre de transfert de Saguenay (GFL Environnement/Matrec)","GFL Environmental inc.","3199, boul. Talbot","Ville Saguenay","G7B 5B1","Hors MRC",null,"04 - Mauricie"]
["LET","3912-03-150-026","03 - Capitale-Nationale","LET de la MRC de Charlevoix-Est","Municipalité régionale de comté de Charlevoix-Est","172, boul. Notre-Dame","Clermont","G4A 1G1","Charlevoix-Est",null,"05 - Estrie"]
["CT Faible","3912-03-160-161","03 - Capitale-Nationale","Centre de transfert de la MRC de Charlevoix (Faible capacité)","Municipalité régionale de comté de Charlevoix","4, Place de l'Église, local 201","Baie-Saint-Paul","G3Z 1T2","Charlevoix",null,"06 - Montréal"]
["CT","3912-03-210-137","03 - Capitale-Nationale","Centre de transfert de Québec (GFL Environnement/Matrec)","GFL environmental inc.","4, chemin du Tremblay","Boucherville","J4B 6Z5","La Côte-de-Beaupré",null,"07 - Outaouais"]
["LET","3912-03-340-031","03 - Capitale-Nationale","LET de Neuville (RRGMR de Portneuf)","Régie régionale de gestion des matières résiduelles de Portneuf","1300, chemin du Site","Neuville","G0A 2R0","Portneuf",null,"08 - Abitibi-Témiscamingue"]
["LET","3912-03-999-028","03 - Capitale-Nationale","LET de la Ville de Québec (Saint-Joachim)","Ville de Québec","1210, boulevard Montmorency","Québec","G1J 3V9","Hors MRC",null,"09 - Côte-Nord"]
["INC","3912-03-999-035","03 - Capitale-Nationale","Incinérateur de la Ville de Québec","Ville de Québec","1210, boulevard Montmorency","Québec","G1J 3V9","Hors MRC",null,"10 - Nord-du-Québec"]
["LEDCD","3912-04-371-038","04 - Mauricie","LEDCD de Sable des Forges inc.","Sable des Forges inc.","11450, boulevard Industriel","Trois-Rivières","G9A 5E1","Hors MRC",null,"11 - Gaspésie-Îles-de-la-Madeleine"]
["LET","3912-04-372-040","04 - Mauricie","LET Champlain (GFL Environnement/Matrec)","Régie de gestion des matières résiduelles de la Mauricie","295, route Ste-Marie","Champlain","G0X 1C0","Chenaux",null,"12 - Chaudière-Appalaches"]
["LET","3912-04-510-041","04 - Mauricie","LET de Saint-Étienne-des-Grès (RGMR de la Mauricie)","Régie de gestion des matières résiduelles de la Mauricie","400, boul. de la Gabelle","Saint-Étienne-des-Grès","G0X 2P0","Maskinongé",null,"13 - Laval"]
["CT Faible","3912-04-999-149","04 - Mauricie","Centre de transfert de la ville de La Tuque (Faible capacité)","Ville de La Tuque","375, rue Saint-Joseph","La Tuque","G9X 1L7","Hors MRC",null,"14 - Lanaudière"]
["LEET","3912-04-999-184","04 - Mauricie","LEET du secteur de la baie Jean-Pierre ","Ville de la Tuque","375 rue Saint-Joseph","La Tuque","G9X 1L5","Hors MRC",null,"15 - Laurentides"]
["LEET","3912-04-999-185","04 - Mauricie","LEET du secteur Lac Châteauvert","Ville de la Tuque","375 rue Saint-Joseph","La Tuque","G9X 1L5","Hors MRC",null,"16 - Montérégie"]
["LEET","3912-04-999-186","04 - Mauricie","LEET de La Tuque, canton Bardy (Flamand)","Ville de la Tuque","375 rue Saint-Joseph","La Tuque","G9X 1L5","Hors MRC",null,"17 - Centre-du-Québec"]
["LEET","3912-04-999-187","04 - Mauricie","LEET de La Tuque, secteur Parent (Lamy)","Ville de la Tuque","375 rue Saint-Joseph","La Tuque","G9X 1L5","Hors MRC"]
["LEET","3912-04-999-188","04 - Mauricie","LEET de La Tuque, relais 22","Ville de la Tuque","375 rue Saint-Joseph","La Tuque","G9X 1L5","Hors MRC"]
["LEET","3912-04-999-189","04 - Mauricie","LEET de Wemotaci","Conseil des Atikamekw de Wemotaci","36 rue Kenosi","Wemotaci","G0X 3P5","Hors MRC"]
["LEET","3912-04-999-209","04 - Mauricie","LEET d'Opitciwan","Conseil des Atikamekw d’Opitciwan","22, rue Ami","Obedjiwan","G0W 3B0","Hors MRC"]
["CT","3912-05-360-200","05 - Estrie","Centre de transfert de Bury (Valoris/Régie intermunicipale du Haut-Saint-François et de Sherbrooke)","Valoris","2215, rue Claude-Greffard","Sherbrooke","J1H 5H1","Hors MRC"]
["LET","3912-05-410-045","05 - Estrie","LET de la Régie intermunicipale du Haut-Saint-François et de Sherbrooke","Valoris","107, chemin Maine Central","Bury","J0B 1J0","Haut-Saint-François"]
["CT","3912-05-430-219","05 - Estrie","Centre de transfert des Entreprises Raylobec inc. (Sherbrooke)","Les entreprises Raylobec inc.","405, Rodolphe-Racine","Sherbrooke","J1R 0S7","Hors MRC"]
["LET","3912-05-440-051","05 - Estrie","LET de la RIGDS de Coaticook","RIGDS de la région de Coaticook","1095, chemin Bilodeau","Coaticook","J1A 2S4","Coaticook"]
["LET","3912-05-460-106","05 - Estrie","LET de la RIEDS de Brome-Missisquoi","RIGMR de Brome-Missisquoi","2500, rang Saint-Joseph","Cowansville","J2K 3G6","Brome-Missisquoi"]
["LET","3912-05-470-108","05 - Estrie","LET de Sainte-Cécile-de-Milton (GFL Environnement/Matrec)","GFL Environmental inc.","702, Route 137 Sud","Sainte-Cécile-de-Milton","J0E 2C0","La Haute-Yamaska"]
["CT","3912-06-660-140","06 - Montréal","Centre de Recyclage Notre-Dame inc./EBI (Anjou)","Recyclage Notre-Dame inc.","151, rue Lakefield","Montréal-Est","H1B 5J1","Hors MRC"]
["CT","3912-06-660-222","06 - Montréal","Centre de transfert d'Anjou (WM Québec Inc.)","WM Québec inc.","9501, boulevard Ray Lawson","Anjou","H1J 1L4","Hors MRC"]
["INC","3912-06-999-056","06 - Montréal","Incinérateur de la Station d'épuration des eaux usées de Montréal ","Ville de Montréal","12 001, boul. Maurice-Duplessis","Montréal","H1C 1V3","Hors MRC"]
["CT","3912-07-800-217","07 - Outaouais","Centre de transfert de Chénéville (Épursol)","9147-9279 Québec inc.","47, rue Albert-Ferland","Chénéville","J0V 1E0","Papineau"]
["CT","3912-07-810-160","07 - Outaouais","Centre de transfert de la Ville de Gatineau","Ville de Gatineau","25, rue Laurier, C. P. 1970, succ. Hull","Gatineau","J8X 3Y9","Hors MRC"]
["CT","3912-07-810-208","07 - Outaouais","Centre de transfert de Gatineau (GFL Environnement/Matrec)","Services Matrec inc.","500, rue de Vernon","Gatineau","J9J 3K5","Hors MRC"]
["CT","3912-07-810-218","07 - Outaouais","Centre de transfert de LGL Globe/Enviro Connexions (Gatineau)","Waste Connections of Canada inc.","1765, boul. Maloney Est","Gatineau","J8R 1B4","Hors MRC"]
["LEDCD","3912-07-820-058","07 - Outaouais","LEDCD de Thibault Démolition ltée (Val-des-Monts)","Thibault Démolition Ltée","135, chemin Saint-Antoine","Val-des-Monts","J8N 7G9","Collines-de-l'Outaouais"]
["CT","3912-07-820-154","07 - Outaouais","Centre de transfert de la MRC des Collines-de-l'Outaouais","Municipalité régionale de comté des Collines-de- l'Outaouais","216, chemin Old Chelsea","Chelsea","J9B 1J4","Collines-de-l'Outaouais"]
["CT","3912-07-820-221","07 - Outaouais","Centre de transfert de McGrimmon Cartage (Clarendon/MRC Pontiac)","9828745 Canada inc.","C384, 7e Concession","Clarendon","J0X 2Y0","Collines-de-l'Outaouais"]
["CT","3912-07-830-172","07 - Outaouais","Centre de transfert de la MRC de la Vallée-de-la-Gatineau","Municipalité régionale de comté de La Vallée-de-la-Gatineau","7, rue de la Polyvalene, C.P. 307","Gracefield","J0X 1W0","La Vallée-de-la-Gatineau"]
["LET","3912-07-840-223","07 - Outaouais","LET Fillogreen (Pontiac) ","Fillogreen inc.– 9231-6082 Québec inc.","14, chemin Richard","Litchfield","J0X 2W0","Pontiac"]
["CT Faible","3912-08-850-163","08 - Abitibi-Témiscamingue","Centre de transfert de la MRC de Témiscamingue (Faible capacité)","Municipalité régionale de comté de Témiscamingue","21, rue Notre-Dame-de-Lourdes","Ville Marie","J9V 1X8","Témiscamingue"]
["LET","3912-08-860-060","08 - Abitibi-Témiscamingue","LET de Rouyn-Noranda (Multitech Environnement Canada inc)","3766063 Canada inc.","2690, rue Saguenay","Rouyn-Noranda","J9X 2H4","Hors MRC"]
["CT","3912-08-870-152","08 - Abitibi-Témiscamingue","Centre de transfert de la MRC d'Abitibi-Ouest","Municipalité Régionale de Comté d'Abitibi-Ouest","6, 8e Avenue Est, bureau 105","La Sarre","J9Z 1N6","Abitibi-Ouest"]
["LET","3912-08-880-062","08 - Abitibi-Témiscamingue","LET d’Amos","Ville d’Amos","182, 1re Rue Est","Amos","J9T 2G1","Abitibi"]
["LET","3912-08-890-064","08 - Abitibi-Témiscamingue","LET de la MRC de la Vallée-de-L'Or","Municipalité régionale de comté de la Vallée-de-L'Or","42, Place Hammond","Val d'Or","J9P 3A9","La Vallée-de-l'Or"]
["CT Faible","3912-09-950-210","09 - Côte-Nord","Centre de transfert de la MRC de La Haute-Côte-Nord - Bergeronnes (Faible capacité)","Municipalité régionale de comté de La Haute Côte-Nord","Rang III, secteur Ouest","Bergeronnes","G0T 1G0","La Haute-Côte-Nord"]
["LET","3912-09-960-067","09 - Côte-Nord","LET de Ragueneau (RGMR Manicouagan)","Régie de gestion des matières résiduelles de Manicouagan","800, avenue Léonard-E.-Schlemm","Baie-Comeau","G4Z 3B7","Manicouagan"]
["LET","3912-09-971-069","09 - Côte-Nord","LET de Sept-Îles","Ville de Sept-Îles","546, avenue De Quen","Sept-Îles","G4R 2R4","Sept-Rivières"]
["LEET","3912-09-971-196","09 - Côte-Nord","LEET du Camp Brooch","Produits forestiers arbec S.E.N.C.","1053, boul. Ducharme","La Tuque","G9X 3C3","Sept-Rivières"]
["LEET","3912-09-972-190","09 - Côte-Nord","LEET du Mont-Wright","ArcelorMittal Exploitation Minière Canada s.e.n.c","1000 route 389 C.P.1817","Fermont","G0G 1J0","Caniapiscau"]
["LEET","3912-09-981-174","09 - Côte-Nord","LEET d'Anticosti","Municipalité de l'Île-d'Anticosti","25-B, Chemin des Forestiers","Port-Menier","G0G 2Y0","Minganie"]
["LEET","3912-09-981-176","09 - Côte-Nord","LEET du Complexe Romaine-2","Hydro-Québec","1140, boul. de Maisonneuve, 14e étage","Montréal","H3A 1M8","Minganie"]
["LEET","3912-09-981-191","09 - Côte-Nord","LEET de la Longue-Pointe-de-Mingan","Régie intermunicipale de gestion des matières résiduelles de l'Ouest de la Minganie","800 chemin du roi","Longue-Pointe-de-Mingan","G0G 1V0","Minganie"]
["LEET","3912-09-981-205","09 - Côte-Nord","LEET de la Régie intermunicipale de gestion des matières résiduelles de l'Est de la Minganie","Régie intermunicipale de gestion des matières résiduelles de l'Est de la Minganie","106, Jacques-Cartier","Aguanish","G0G 1A0","Minganie"]
["LET","3912-10-991-071","10 - Nord-du-Québec","LET de Chibougamau","Ville de Chibougamau","650, 3e Rue","Chibougamau","G8P 1P1","Hors MRC"]
["LEET","3912-10-999-173","10 - Nord-du-Québec","LEET de la mine Troilus","Inmet Mining corporation","167, 4e Avenue, C.P. 280","Chibougamau","G8P 2K7","Hors MRC"]
["LEET","3912-10-999-175","10 - Nord-du-Québec","LEET de LG-4 (Hydro-Québec)","Hydro-Québec","1400, rue de la Manic","Saguenay","G7K 1A3","Hors MRC"]
["LEET","3912-10-999-177","10 - Nord-du-Québec","LEET de la MBJ-Radisson","Gouvernement régional d'Eeyou Istchee Baie-James","2, rue des Rapides,  C.P. 819","Matagami","J0Y 2A0","Hors MRC"]
["LEET","3912-10-999-178","10 - Nord-du-Québec","LEET de la MBJ-Miquelon","Gouvernement régional d'Eeyou Istchee Baie-James","2, rue des Rapides,  C.P. 819","Matagami","J0Y 2A0","Hors MRC"]
["LEET","3912-10-999-179","10 - Nord-du-Québec","LEET de la MBJ-VVB Villebois","Gouvernement régional d'Eeyou Istchee Baie-James","2, rue des Rapides,  C.P. 819","Matagami","J0Y 2A0","Hors MRC"]
["LEET","3912-10-999-181","10 - Nord-du-Québec","LEET de Nemiscau (Hydro-Québec)","Hydro-Québec","75, Boulevard René-Lévesque","Montréal","H2Z 1A4","Hors MRC"]
["LEET","3912-10-999-182","10 - Nord-du-Québec","LEET du village cri Mistissini","Nation Crie de Mistissinie","187 Main Street","Mistissini","G0W 1C0","Hors MRC"]
["LEET","3912-10-999-183","10 - Nord-du-Québec","LEET du village cri Nemaska","Nation Crie de Nemaska","32 Machishteweyaau Trail","Nemaska","J0Y 3B0","Hors MRC"]
["LEET","3912-10-999-192","10 - Nord-du-Québec","LEET d'Eastmain-1 (Société d'énergie de la baie James)","Société d'énergie de la Baie James","855, rue Sainte-Catherine Est, 20e étage","Montréal","H2L 4P5","Hors MRC"]
["LEET","3912-10-999-194","10 - Nord-du-Québec","LEET de Matagami","Ville de Matagami","195 boul. Matagami c.p.160","Matagami","J0Y 2A0","Hors MRC"]
["LEET","3912-10-999-195","10 - Nord-du-Québec","LEET de Lebel-sur-Quévillon ","Ville de Lebel-sur-Quévillon","500, place Quévillon","Lebel-sur-Quévillon","J0Y 1X0","Hors MRC"]
["LEET","3912-10-999-198","10 - Nord-du-Québec","LEET du village cri Oujé-Bougoumou","Oujé-Bougoumou Eenuch Association","207, Opemiska Meskino","Oujé-Bougoumou","G0W 3C0","Hors MRC"]
["LEET","3912-10-999-203","10 - Nord-du-Québec","LEET de la Propriété Éléonore","Les Mines Opinaca ltée","853, boul. Rideau","Rouyn-Noranda","J9Y 0G3","Hors MRC"]
["LEET","3912-10-999-204","10 - Nord-du-Québec","LEET de la Propriété Renard","Les Diamants Stornoway (Canada) inc.","1111 St-Charles Ouest, suite 400, tour ouest","Longueuil","J4K 5G4","Hors MRC"]
["LET","3912-11-030-078","11 - Gaspésie-Îles-de-la-Madeleine","LET de Gaspé","Régie intermunicipale de traitement des matières résiduelles de la Gaspésie","25, rue de l'Hôtel-de-Ville","Gaspé","G4X 2A5","La Côte-de-Gaspé"]
["CT","3912-11-040-206","11 - Gaspésie-Îles-de-la-Madeleine","Centre de transfert d'Exploitation Jaffa inc. (Saint-Alphonse)","Exploitation Jaffa inc.","600, boulevard Perron","Maria","G0C 1Y0","La Haute-Gaspésie"]
["LET","3912-11-050-134","11 - Gaspésie-Îles-de-la-Madeleine","LET de Saint-Alphonse","Municipalité de Saint-Alphonse","127, rue Principale Est","Saint-Alphonse","G0C 2V0","Bonaventure"]
["CT Faible","3912-11-999-165","11 - Gaspésie-Îles-de-la-Madeleine","Centre de transfert des Îles-de-la-Madeleine (Faible capacité)","Centre de transfert de la Municipalité des Îles-de-la-Madeleine","460, chemin Principal","Cap-aux-Meules","G4T 1A1","Hors MRC"]
["CT","3912-12-170-144","12 - Chaudière-Appalaches","Centre de transfert de L'Islet (Énercycle)","Régie de gestion des matières résiduelles de la Mauricie","400, boul. de La Gabelle","L'Islet","G0X 2P0","L'Islet"]
["CT Faible","3912-12-170-166","12 - Chaudière-Appalaches","Centre de transfert de la RIGD Islet-Sud (Faible capacité)","Régie intermunicipale de gestion des déchets de L'Islet-Sud","366, Principale Sud, local 201","Sainte-Perpétue","G0R 3Z0","L'Islet"]
["LET","3912-12-190-083","12 - Chaudière-Appalaches","LET d'Armagh","Municipalité régionale de comté de Bellechasse","100, rue Mgr. Bilodeau","Saint-Lazare","G0R 3J0","Bellechasse"]
["LET","3912-12-260-084","12 - Chaudière-Appalaches","LET de Saint-Édouard-de-Frampton","Municipalité régionale de comté de La Nouvelle-Beauce","700, rue Notre-Dame Nord, bureau B","Sainte-Marie","G6E 2K9","La Nouvelle-Beauce"]
["LET","3912-12-260-085","12 - Chaudière-Appalaches","LET de Saint-Lambert-de-Lauzon","Régie intermunicipale de gestion des déchets des Chutes-de-la-Chaudière","1114, rue du Pont","Saint-Lambert-de-Lauzon","G0S 2W0","La Nouvelle-Beauce"]
["LET","3912-12-290-086","12 - Chaudière-Appalaches","LET de la Régie intermunicipale du comté de Beauce-Sud","Régie intermunicipale du comté de Beauce-Sud","695, rang Saint-Joseph","Saint-Côme-Linière","G0M 1J0","Beauce-Sartigan"]
["CT","3912-12-290-216","12 - Chaudière-Appalaches","Centre de transfert de Saint-Georges (Services sanitaires DF de Beauce inc.)","Services sanitaires DF de Beauce inc.","1825, 95e Rue","Saint-Georges","G5Y 8J1","Beauce-Sartigan"]
["CT","3912-12-310-145","12 - Chaudière-Appalaches","Centre de transfert de Thetford Mines (Services sanitaires Denis Fortier inc.)","Services Sanitaires Denis Fortier inc.","3878, boul. Frontenac Est","Thetford Mines","G6H 4G2","Appalaches"]
["LET","3912-12-330-091","12 - Chaudière-Appalaches","LET de Saint-Flavien (MRC de Lotbinière)","Municipalité régionale de comté de Lotbinière","6375, rue Garneau","Sainte-Croix","G0S 2H0","Lotbinière"]
["INC","3912-12-999-092","12 - Chaudière-Appalaches","Incinérateur de la Ville de Lévis","Ville de Lévis","470, 3e Avenue","Lévis","G6W 5M6","Hors MRC"]
["CT","3912-13-650-156","13 - Laval","Centre de transfert de Laval (WM Québec inc.)","WM Québec inc.","9501, boul. Ray-Lawson","Anjou","H1J 1L4","Hors MRC"]
["LET","3912-14-520-093","14 - Lanaudière","LET de Saint-Thomas (Dépôt Rive-Nord inc.)","Dépôt Rive-Nord inc.","670, rue Montcalm","Berthierville","J0K 1A0","D'Autray"]
["LEDCD","3912-14-620-095","14 - Lanaudière","LEDCD de Gestion intégrée de matériaux secs Lanaudière Inc.","Gestion Intégrée de Matériaux Secs Lanaudière Inc.","621, route Louis-Cyr","Saint-Jean-de-Matha","J0K 2S0","Matawinie"]
["LEDCD","3912-14-630-096","14 - Lanaudière","LEDCD de Sainte-Julienne","2845-5103 Québec Inc.","2903, Montée Hamilton","Sainte-Julienne","J0K 2T0","Montcalm"]
["LET","3912-14-640-098","14 - Lanaudière","LET de Terrebonne (Complexe Enviro Connexions)","Complexe Enviro Connexions Ltée","3779, chemin des 40-Arpents","Terrebonne","J6V 9T6","Moulins"]
["LET","3912-15-750-099","15 - Laurentides","LET de Sainte-Sophie (WM Québec inc.)","WM Québec inc.","2535, 1re Rue","Sainte-Sophie","J5J 2R7","La Rivière-du-Nord"]
["LET","3912-15-760-100","15 - Laurentides","LET de Lachute (Régie intermunicipale Argenteuil/Deux-Montagnes)","Régie intermunicipale  Argenteuil-Deux-Montagnes","380, rue Principale","Lachute","J8H 1Y2","Argenteuil"]
["LET","3912-15-790-102","15 - Laurentides","LET de la RID de la Lièvre","Régie intermunicipale des déchets de la Lièvre","1064, rue Industrielle","Mont-Laurier","J9L 3V6","Antoine-Labelle"]
["LET","3912-15-790-103","15 - Laurentides","LET de la RID de la Rouge","Ville de Rivière-Rouge","688, chemin du Parc Industriel, C.P. 4669","Rivière-Rouge","J0T 1H0","Antoine-Labelle"]
["CT","3912-16-540-136","16 - Montérégie","Centre de transfert de Saint-Hyacinthe (GFL Environnement/Matrec)","GFL Environmental inc.","3525, boul. Laurier Est","Saint-Hyacinthe","J2R 2B2","Maskoutains"]
["CT","3912-16-540-214","16 - Montérégie","Centre de transfert de JMV Environnement inc. (Saint-Hyacinthe)","JMV Environnement inc. -","3550, boulevard Laframboise","Saint-Hyacinthe","J2R 1S6","Maskoutains"]
["CT","3912-16-570-142","16 - Montérégie","Centre de transfert de Beloeil (Services environnementaux du Richelieu)","9197-4220 Québec inc.","1205, rue Louis-Marchand","Beloeil","J3G 6S4","La Vallée-du-Richelieu"]
["CT","3912-16-570-202","16 - Montérégie","Centre de transfert Fibres J.C. inc. (Chambly)","Les Fibres J.C. inc.","3718, chemin de la Grande-Ligne","Chambly","J3L 4A7","La Vallée-du-Richelieu"]
["CT","3912-16-670-215","16 - Montérégie","Centre de transfert de Saint-Constant","9148-6811 Québec inc.","700, rue Saint-Régis Sud","Saint-Constant","J5A 2E7","Roussillon"]
["CT","3912-16-680-155","16 - Montérégie","Centre de transfert de Saint-Rémi (WM Québec inc.)","WM Québec inc.","85, rue Paul Ouest, bureau 500","Montréal","H2Y 3V4","Jardins-de-Napierville"]
["CT","3912-16-700-139","16 - Montérégie","Centre de transfert de Salaberry-de-Valleyfield (WM Québec inc.)","WM Québec inc.","978, boul. Gérard-Cadieux","Salaberry-de-Valleyfield","J6T 4L6","Beauharnois-Salaberry"]
["CT","3912-16-700-207","16 - Montérégie","Centre de transfert de Récupération Mario Hart inc. (Salaberry-de-Valleyfield)","Récupération Mario Hart inc.","840, boul. des Érables","Salaberrry-de-Valleyfield","J6T 6G4","Beauharnois-Salaberry"]
["CT","3912-16-710-141","16 - Montérégie","Centre de transfert des Entreprises Raylobec inc. (Vaudreuil-Dorion)","Les Entreprises Raylobec inc.","325, Marie-Curie","Vaudreuil-Dorion","J7V 5V5","Vaudreuil-Soulanges"]
["INC","3912-16-999-118","16 - Montérégie","Incinérateur de Longueuil (Aquacers, Société de gestion du CERS inc.)","Ville de Longueuil","2999, Île Charron","Longueuil","J4G 1R6","Hors MRC"]
["CT","3912-16-999-138","16 - Montérégie","Centre de transfert de Saint-Hubert (GFL Environnement/Matrec)","GFL environmental inc.","4, chemin du Tremblay","Boucherville","J4B 6Z5","Hors MRC"]
["CT","3912-16-999-162","16 - Montérégie","Transit Longueuil (WM Québec inc.)","WM Québec inc.","2457, chemin du Lac","Longueuil","J4N 1P1","Hors MRC"]
["CT","3912-16-999-171","16 - Montérégie","Centre de transfert de Longueuil (WM Québec inc.)","WM Québec inc.","2355, chemin du Lac","Longueuil","J4N 1C1","Hors MRC"]
["LEDCD","3912-17-380-121","17 - Centre-du-Québec","LEDCD de Lemay-Bec inc. (Bécancour)","Lemay-Bec inc","18055, rue Gauthier","Bécancour","G9H 1C1","Bécancour"]
["LET","3912-17-380-135","17 - Centre-du-Québec","LET d'Olin Canada ULC (Bécancour)","Olin Canada ULC","675, boul. Alphonse Deshaies","Bécancour","G9H 2Y8","Bécancour"]
["LET","3912-17-380-199","17 - Centre-du-Québec","LET de Gestion 3LB inc. (Bécancour)","Gestion 3 L B inc.","18055, rue Gauthier","Bécancour","G9H 1C1","Bécancour"]
["LET","3912-17-390-132","17 - Centre-du-Québec","LET de Saint-Rosaire (Société de développement durable Arthabaska inc.)","Société de développement durable d'Arthabaska inc.","330, rue J. Aurèle-Roux","Victoriaville","G6T 0N5","Arthabaska"]
["CT","3912-17-390-150","17 - Centre-du-Québec","Centre de transfert de Gaudreau environnement inc. (Victoriaville)","Gaudreau environnement inc.","365, bou. de la Bonaventure","Victoriaville","G6P 6V7","Arthabaska"]
["LET","3912-17-490-124","17 - Centre-du-Québec","LET de Saint-Nicéphore (WM Québec inc.)","WM Québec inc.","25, rue Gagnon","Drummondville","J2A 3H3","Drummond"]
["CT","3912-17-490-211","17 - Centre-du-Québec","Centre de transfert de Drummondville (GFL Environnement/Matrec)","GFL Environmental inc.","4, chemin du Tremblay","Boucherville","J4B 6Z5","Drummond"]